{"text_format":"1","workbook":"xlsx","n_sheets":6,"sheets":["Provincial uniformisé","Provincial non uniformisé","Charte des codes de poste","Pilotage charte de postes","PilotageDonnees","ParametresConnexion"],"not_rendered":{"charts":0,"images":1,"macros":1,"external_links":0,"defined_names":2,"comments":0,"pivot_tables":0},"unopened":[],"bounds":{"document_bytes":16777216,"sheet_cells":100000,"rows_first":2000,"rows_last":500,"rows_between":2000,"halvings":0,"cell_chars":16384,"cell_head_chars":4096},"cells_cut":0,"cells_raw":0,"read":"whole","date_system":"1900"}

{"sheet":"Provincial uniformisé","index":0,"n_rows":55,"n_cols":11,"rows_kept":55,"cut":false,"hidden":false,"merged":[[1,0,2,10],[4,0,5,2],[4,3,4,6],[4,7,4,10]]}
[]
["DONNÉES DE L'ÉVALUATION FONCIÈRE"]
[]
[]
["CATÉGORIE (Utilisation)",null,null,"VALEURS IMPOSABLES",null,null,null,"VALEURS NON IMPOSABLES"]
[null,null,null,"NOMBRE","TERRAINS","BÂTIMENTS","IMMEUBLES","NOMBRE","TERRAINS","BÂTIMENTS","IMMEUBLES"]
["1-- TOTALE DE LA CATÉGORIE RÉSIDENTIELLE",null,null,{"$f":"IFERROR(VLOOKUP('Pilotage charte de postes'!D6*10+1,Tableau_Lancer_la_requête_à_partir_de_apps_U_B11_1[],2,FALSE),\"\")","v":2808549},{"$f":"IFERROR(VLOOKUP('Pilotage charte de postes'!E6*10+1,Tableau_Lancer_la_requête_à_partir_de_apps_U_B11_1[],2,FALSE),\"\")","v":329109301432},{"$f":"IFERROR(VLOOKUP('Pilotage charte de postes'!F6*10+1,Tableau_Lancer_la_requête_à_partir_de_apps_U_B11_1[],2,FALSE),\"\")","v":690740840557},{"$f":"IFERROR(VLOOKUP('Pilotage charte de postes'!H6*10+1,Tableau_Lancer_la_requête_à_partir_de_apps_U_B11_1[],2,FALSE),\"\")","v":1019850141989},{"$f":"IFERROR(VLOOKUP('Pilotage charte de postes'!I6*10+1,Tableau_Lancer_la_requête_à_partir_de_apps_U_B11_1[],2,FALSE),\"\")","v":4917},{"$f":"IFERROR(VLOOKUP('Pilotage charte de postes'!J6*10+1,Tableau_Lancer_la_requête_à_partir_de_apps_U_B11_1[],2,FALSE),\"\")","v":2399813449},{"$f":"IFERROR(VLOOKUP('Pilotage charte de postes'!K6*10+1,Tableau_Lancer_la_requête_à_partir_de_apps_U_B11_1[],2,FALSE),\"\")","v":4626487222},{"$f":"IFERROR(VLOOKUP('Pilotage charte de postes'!L6*10+1,Tableau_Lancer_la_requête_à_partir_de_apps_U_B11_1[],2,FALSE),\"\")","v":7026300672}]
["   10 -- Totale Logements",null,null,{"$f":"IFERROR(VLOOKUP('Pilotage charte de postes'!D7*10+1,Tableau_Lancer_la_requête_à_partir_de_apps_U_B11_1[],2,FALSE),\"\")","v":2548288},{"$f":"IFERROR(VLOOKUP('Pilotage charte de postes'!E7*10+1,Tableau_Lancer_la_requête_à_partir_de_apps_U_B11_1[],2,FALSE),\"\")","v":312589828499},{"$f":"IFERROR(VLOOKUP('Pilotage charte de postes'!F7*10+1,Tableau_Lancer_la_requête_à_partir_de_apps_U_B11_1[],2,FALSE),\"\")","v":655982778223},{"$f":"IFERROR(VLOOKUP('Pilotage charte de postes'!H7*10+1,Tableau_Lancer_la_requête_à_partir_de_apps_U_B11_1[],2,FALSE),\"\")","v":968572606721},{"$f":"IFERROR(VLOOKUP('Pilotage charte de postes'!I7*10+1,Tableau_Lancer_la_requête_à_partir_de_apps_U_B11_1[],2,FALSE),\"\")","v":1706},{"$f":"IFERROR(VLOOKUP('Pilotage charte de postes'!J7*10+1,Tableau_Lancer_la_requête_à_partir_de_apps_U_B11_1[],2,FALSE),\"\")","v":334399409},{"$f":"IFERROR(VLOOKUP('Pilotage charte de postes'!K7*10+1,Tableau_Lancer_la_requête_à_partir_de_apps_U_B11_1[],2,FALSE),\"\")","v":782383337},{"$f":"IFERROR(VLOOKUP('Pilotage charte de postes'!L7*10+1,Tableau_Lancer_la_requête_à_partir_de_apps_U_B11_1[],2,FALSE),\"\")","v":1116782747}]
[null,"1 logement « condominium »",null,{"$f":"IFERROR(VLOOKUP('Pilotage charte de postes'!D8*10+1,Tableau_Lancer_la_requête_à_partir_de_apps_U_B11_1[],2,FALSE),\"\")","v":366527},{"$f":"IFERROR(VLOOKUP('Pilotage charte de postes'!E8*10+1,Tableau_Lancer_la_requête_à_partir_de_apps_U_B11_1[],2,FALSE),\"\")","v":23000151149},{"$f":"IFERROR(VLOOKUP('Pilotage charte de postes'!F8*10+1,Tableau_Lancer_la_requête_à_partir_de_apps_U_B11_1[],2,FALSE),\"\")","v":99136414100},{"$f":"IFERROR(VLOOKUP('Pilotage charte de postes'!H8*10+1,Tableau_Lancer_la_requête_à_partir_de_apps_U_B11_1[],2,FALSE),\"\")","v":122136565249},{"$f":"IFERROR(VLOOKUP('Pilotage charte de postes'!I8*10+1,Tableau_Lancer_la_requête_à_partir_de_apps_U_B11_1[],2,FALSE),\"\")","v":6},{"$f":"IFERROR(VLOOKUP('Pilotage charte de postes'!J8*10+1,Tableau_Lancer_la_requête_à_partir_de_apps_U_B11_1[],2,FALSE),\"\")","v":516470},{"$f":"IFERROR(VLOOKUP('Pilotage charte de postes'!K8*10+1,Tableau_Lancer_la_requête_à_partir_de_apps_U_B11_1[],2,FALSE),\"\")","v":1528085},{"$f":"IFERROR(VLOOKUP('Pilotage charte de postes'!L8*10+1,Tableau_Lancer_la_requête_à_partir_de_apps_U_B11_1[],2,FALSE),\"\")","v":2044555}]
[null,"1 logement « sauf condominium »",null,{"$f":"IFERROR(VLOOKUP('Pilotage charte de postes'!D9*10+1,Tableau_Lancer_la_requête_à_partir_de_apps_U_B11_1[],2,FALSE),\"\")","v":1799690},{"$f":"IFERROR(VLOOKUP('Pilotage charte de postes'!E9*10+1,Tableau_Lancer_la_requête_à_partir_de_apps_U_B11_1[],2,FALSE),\"\")","v":213301050708},{"$f":"IFERROR(VLOOKUP('Pilotage charte de postes'!F9*10+1,Tableau_Lancer_la_requête_à_partir_de_apps_U_B11_1[],2,FALSE),\"\")","v":375768417277},{"$f":"IFERROR(VLOOKUP('Pilotage charte de postes'!H9*10+1,Tableau_Lancer_la_requête_à_partir_de_apps_U_B11_1[],2,FALSE),\"\")","v":589069467985},{"$f":"IFERROR(VLOOKUP('Pilotage charte de postes'!I9*10+1,Tableau_Lancer_la_requête_à_partir_de_apps_U_B11_1[],2,FALSE),\"\")","v":1337},{"$f":"IFERROR(VLOOKUP('Pilotage charte de postes'!J9*10+1,Tableau_Lancer_la_requête_à_partir_de_apps_U_B11_1[],2,FALSE),\"\")","v":133998147},{"$f":"IFERROR(VLOOKUP('Pilotage charte de postes'!K9*10+1,Tableau_Lancer_la_requête_à_partir_de_apps_U_B11_1[],2,FALSE),\"\")","v":231612422},{"$f":"IFERROR(VLOOKUP('Pilotage charte de postes'!L9*10+1,Tableau_Lancer_la_requête_à_partir_de_apps_U_B11_1[],2,FALSE),\"\")","v":365610569}]
[null,"2 logements",null,{"$f":"IFERROR(VLOOKUP('Pilotage charte de postes'!D10*10+1,Tableau_Lancer_la_requête_à_partir_de_apps_U_B11_1[],2,FALSE),\"\")","v":190439},{"$f":"IFERROR(VLOOKUP('Pilotage charte de postes'!E10*10+1,Tableau_Lancer_la_requête_à_partir_de_apps_U_B11_1[],2,FALSE),\"\")","v":26931266179},{"$f":"IFERROR(VLOOKUP('Pilotage charte de postes'!F10*10+1,Tableau_Lancer_la_requête_à_partir_de_apps_U_B11_1[],2,FALSE),\"\")","v":50378750541},{"$f":"IFERROR(VLOOKUP('Pilotage charte de postes'!H10*10+1,Tableau_Lancer_la_requête_à_partir_de_apps_U_B11_1[],2,FALSE),\"\")","v":77310016720},{"$f":"IFERROR(VLOOKUP('Pilotage charte de postes'!I10*10+1,Tableau_Lancer_la_requête_à_partir_de_apps_U_B11_1[],2,FALSE),\"\")","v":188},{"$f":"IFERROR(VLOOKUP('Pilotage charte de postes'!J10*10+1,Tableau_Lancer_la_requête_à_partir_de_apps_U_B11_1[],2,FALSE),\"\")","v":38069069},{"$f":"IFERROR(VLOOKUP('Pilotage charte de postes'!K10*10+1,Tableau_Lancer_la_requête_à_partir_de_apps_U_B11_1[],2,FALSE),\"\")","v":60196100},{"$f":"IFERROR(VLOOKUP('Pilotage charte de postes'!L10*10+1,Tableau_Lancer_la_requête_à_partir_de_apps_U_B11_1[],2,FALSE),\"\")","v":98265169}]
[null,"3 logements",null,{"$f":"IFERROR(VLOOKUP('Pilotage charte de postes'!D11*10+1,Tableau_Lancer_la_requête_à_partir_de_apps_U_B11_1[],2,FALSE),\"\")","v":85458},{"$f":"IFERROR(VLOOKUP('Pilotage charte de postes'!E11*10+1,Tableau_Lancer_la_requête_à_partir_de_apps_U_B11_1[],2,FALSE),\"\")","v":15629044417},{"$f":"IFERROR(VLOOKUP('Pilotage charte de postes'!F11*10+1,Tableau_Lancer_la_requête_à_partir_de_apps_U_B11_1[],2,FALSE),\"\")","v":31406250239},{"$f":"IFERROR(VLOOKUP('Pilotage charte de postes'!H11*10+1,Tableau_Lancer_la_requête_à_partir_de_apps_U_B11_1[],2,FALSE),\"\")","v":47035294656},{"$f":"IFERROR(VLOOKUP('Pilotage charte de postes'!I11*10+1,Tableau_Lancer_la_requête_à_partir_de_apps_U_B11_1[],2,FALSE),\"\")","v":41},{"$f":"IFERROR(VLOOKUP('Pilotage charte de postes'!J11*10+1,Tableau_Lancer_la_requête_à_partir_de_apps_U_B11_1[],2,FALSE),\"\")","v":8534391},{"$f":"IFERROR(VLOOKUP('Pilotage charte de postes'!K11*10+1,Tableau_Lancer_la_requête_à_partir_de_apps_U_B11_1[],2,FALSE),\"\")","v":16716600},{"$f":"IFERROR(VLOOKUP('Pilotage charte de postes'!L11*10+1,Tableau_Lancer_la_requête_à_partir_de_apps_U_B11_1[],2,FALSE),\"\")","v":25250991}]
[null,"4 logements",null,{"$f":"IFERROR(VLOOKUP('Pilotage charte de postes'!D12*10+1,Tableau_Lancer_la_requête_à_partir_de_apps_U_B11_1[],2,FALSE),\"\")","v":39974},{"$f":"IFERROR(VLOOKUP('Pilotage charte de postes'!E12*10+1,Tableau_Lancer_la_requête_à_partir_de_apps_U_B11_1[],2,FALSE),\"\")","v":7105783273},{"$f":"IFERROR(VLOOKUP('Pilotage charte de postes'!F12*10+1,Tableau_Lancer_la_requête_à_partir_de_apps_U_B11_1[],2,FALSE),\"\")","v":15643213047},{"$f":"IFERROR(VLOOKUP('Pilotage charte de postes'!H12*10+1,Tableau_Lancer_la_requête_à_partir_de_apps_U_B11_1[],2,FALSE),\"\")","v":22748996320},{"$f":"IFERROR(VLOOKUP('Pilotage charte de postes'!I12*10+1,Tableau_Lancer_la_requête_à_partir_de_apps_U_B11_1[],2,FALSE),\"\")","v":27},{"$f":"IFERROR(VLOOKUP('Pilotage charte de postes'!J12*10+1,Tableau_Lancer_la_requête_à_partir_de_apps_U_B11_1[],2,FALSE),\"\")","v":5440461},{"$f":"IFERROR(VLOOKUP('Pilotage charte de postes'!K12*10+1,Tableau_Lancer_la_requête_à_partir_de_apps_U_B11_1[],2,FALSE),\"\")","v":21035901},{"$f":"IFERROR(VLOOKUP('Pilotage charte de postes'!L12*10+1,Tableau_Lancer_la_requête_à_partir_de_apps_U_B11_1[],2,FALSE),\"\")","v":26476362}]
[null,"5 logements",null,{"$f":"IFERROR(VLOOKUP('Pilotage charte de postes'!D13*10+1,Tableau_Lancer_la_requête_à_partir_de_apps_U_B11_1[],2,FALSE),\"\")","v":11829},{"$f":"IFERROR(VLOOKUP('Pilotage charte de postes'!E13*10+1,Tableau_Lancer_la_requête_à_partir_de_apps_U_B11_1[],2,FALSE),\"\")","v":2923700675},{"$f":"IFERROR(VLOOKUP('Pilotage charte de postes'!F13*10+1,Tableau_Lancer_la_requête_à_partir_de_apps_U_B11_1[],2,FALSE),\"\")","v":5922490884},{"$f":"IFERROR(VLOOKUP('Pilotage charte de postes'!H13*10+1,Tableau_Lancer_la_requête_à_partir_de_apps_U_B11_1[],2,FALSE),\"\")","v":8846191559},{"$f":"IFERROR(VLOOKUP('Pilotage charte de postes'!I13*10+1,Tableau_Lancer_la_requête_à_partir_de_apps_U_B11_1[],2,FALSE),\"\")","v":9},{"$f":"IFERROR(VLOOKUP('Pilotage charte de postes'!J13*10+1,Tableau_Lancer_la_requête_à_partir_de_apps_U_B11_1[],2,FALSE),\"\")","v":3790503},{"$f":"IFERROR(VLOOKUP('Pilotage charte de postes'!K13*10+1,Tableau_Lancer_la_requête_à_partir_de_apps_U_B11_1[],2,FALSE),\"\")","v":6572131},{"$f":"IFERROR(VLOOKUP('Pilotage charte de postes'!L13*10+1,Tableau_Lancer_la_requête_à_partir_de_apps_U_B11_1[],2,FALSE),\"\")","v":10362634}]
[null,"6 à 9 logements",null,{"$f":"IFERROR(VLOOKUP('Pilotage charte de postes'!D14*10+1,Tableau_Lancer_la_requête_à_partir_de_apps_U_B11_1[],2,FALSE),\"\")","v":35260},{"$f":"IFERROR(VLOOKUP('Pilotage charte de postes'!E14*10+1,Tableau_Lancer_la_requête_à_partir_de_apps_U_B11_1[],2,FALSE),\"\")","v":8140356643},{"$f":"IFERROR(VLOOKUP('Pilotage charte de postes'!F14*10+1,Tableau_Lancer_la_requête_à_partir_de_apps_U_B11_1[],2,FALSE),\"\")","v":20195752287},{"$f":"IFERROR(VLOOKUP('Pilotage charte de postes'!H14*10+1,Tableau_Lancer_la_requête_à_partir_de_apps_U_B11_1[],2,FALSE),\"\")","v":28336108930},{"$f":"IFERROR(VLOOKUP('Pilotage charte de postes'!I14*10+1,Tableau_Lancer_la_requête_à_partir_de_apps_U_B11_1[],2,FALSE),\"\")","v":33},{"$f":"IFERROR(VLOOKUP('Pilotage charte de postes'!J14*10+1,Tableau_Lancer_la_requête_à_partir_de_apps_U_B11_1[],2,FALSE),\"\")","v":12210026},{"$f":"IFERROR(VLOOKUP('Pilotage charte de postes'!K14*10+1,Tableau_Lancer_la_requête_à_partir_de_apps_U_B11_1[],2,FALSE),\"\")","v":24855863},{"$f":"IFERROR(VLOOKUP('Pilotage charte de postes'!L14*10+1,Tableau_Lancer_la_requête_à_partir_de_apps_U_B11_1[],2,FALSE),\"\")","v":37065889}]
[null,"10 à 19 logements",null,{"$f":"IFERROR(VLOOKUP('Pilotage charte de postes'!D15*10+1,Tableau_Lancer_la_requête_à_partir_de_apps_U_B11_1[],2,FALSE),\"\")","v":11132},{"$f":"IFERROR(VLOOKUP('Pilotage charte de postes'!E15*10+1,Tableau_Lancer_la_requête_à_partir_de_apps_U_B11_1[],2,FALSE),\"\")","v":4416585291},{"$f":"IFERROR(VLOOKUP('Pilotage charte de postes'!F15*10+1,Tableau_Lancer_la_requête_à_partir_de_apps_U_B11_1[],2,FALSE),\"\")","v":13001615002},{"$f":"IFERROR(VLOOKUP('Pilotage charte de postes'!H15*10+1,Tableau_Lancer_la_requête_à_partir_de_apps_U_B11_1[],2,FALSE),\"\")","v":17418200292},{"$f":"IFERROR(VLOOKUP('Pilotage charte de postes'!I15*10+1,Tableau_Lancer_la_requête_à_partir_de_apps_U_B11_1[],2,FALSE),\"\")","v":38},{"$f":"IFERROR(VLOOKUP('Pilotage charte de postes'!J15*10+1,Tableau_Lancer_la_requête_à_partir_de_apps_U_B11_1[],2,FALSE),\"\")","v":16869033},{"$f":"IFERROR(VLOOKUP('Pilotage charte de postes'!K15*10+1,Tableau_Lancer_la_requête_à_partir_de_apps_U_B11_1[],2,FALSE),\"\")","v":71025072},{"$f":"IFERROR(VLOOKUP('Pilotage charte de postes'!L15*10+1,Tableau_Lancer_la_requête_à_partir_de_apps_U_B11_1[],2,FALSE),\"\")","v":87894106}]
[null,"20 à 29 logements",null,{"$f":"IFERROR(VLOOKUP('Pilotage charte de postes'!D16*10+1,Tableau_Lancer_la_requête_à_partir_de_apps_U_B11_1[],2,FALSE),\"\")","v":3387},{"$f":"IFERROR(VLOOKUP('Pilotage charte de postes'!E16*10+1,Tableau_Lancer_la_requête_à_partir_de_apps_U_B11_1[],2,FALSE),\"\")","v":2155103270},{"$f":"IFERROR(VLOOKUP('Pilotage charte de postes'!F16*10+1,Tableau_Lancer_la_requête_à_partir_de_apps_U_B11_1[],2,FALSE),\"\")","v":6820393674},{"$f":"IFERROR(VLOOKUP('Pilotage charte de postes'!H16*10+1,Tableau_Lancer_la_requête_à_partir_de_apps_U_B11_1[],2,FALSE),\"\")","v":8975496944},{"$f":"IFERROR(VLOOKUP('Pilotage charte de postes'!I16*10+1,Tableau_Lancer_la_requête_à_partir_de_apps_U_B11_1[],2,FALSE),\"\")","v":12},{"$f":"IFERROR(VLOOKUP('Pilotage charte de postes'!J16*10+1,Tableau_Lancer_la_requête_à_partir_de_apps_U_B11_1[],2,FALSE),\"\")","v":9382392},{"$f":"IFERROR(VLOOKUP('Pilotage charte de postes'!K16*10+1,Tableau_Lancer_la_requête_à_partir_de_apps_U_B11_1[],2,FALSE),\"\")","v":42657558},{"$f":"IFERROR(VLOOKUP('Pilotage charte de postes'!L16*10+1,Tableau_Lancer_la_requête_à_partir_de_apps_U_B11_1[],2,FALSE),\"\")","v":52039950}]
[null,"30 à 49 logements",null,{"$f":"IFERROR(VLOOKUP('Pilotage charte de postes'!D17*10+1,Tableau_Lancer_la_requête_à_partir_de_apps_U_B11_1[],2,FALSE),\"\")","v":2518},{"$f":"IFERROR(VLOOKUP('Pilotage charte de postes'!E17*10+1,Tableau_Lancer_la_requête_à_partir_de_apps_U_B11_1[],2,FALSE),\"\")","v":2526524325},{"$f":"IFERROR(VLOOKUP('Pilotage charte de postes'!F17*10+1,Tableau_Lancer_la_requête_à_partir_de_apps_U_B11_1[],2,FALSE),\"\")","v":8628861069},{"$f":"IFERROR(VLOOKUP('Pilotage charte de postes'!H17*10+1,Tableau_Lancer_la_requête_à_partir_de_apps_U_B11_1[],2,FALSE),\"\")","v":11155385394},{"$f":"IFERROR(VLOOKUP('Pilotage charte de postes'!I17*10+1,Tableau_Lancer_la_requête_à_partir_de_apps_U_B11_1[],2,FALSE),\"\")","v":4},{"$f":"IFERROR(VLOOKUP('Pilotage charte de postes'!J17*10+1,Tableau_Lancer_la_requête_à_partir_de_apps_U_B11_1[],2,FALSE),\"\")","v":10079942},{"$f":"IFERROR(VLOOKUP('Pilotage charte de postes'!K17*10+1,Tableau_Lancer_la_requête_à_partir_de_apps_U_B11_1[],2,FALSE),\"\")","v":39590704},{"$f":"IFERROR(VLOOKUP('Pilotage charte de postes'!L17*10+1,Tableau_Lancer_la_requête_à_partir_de_apps_U_B11_1[],2,FALSE),\"\")","v":49670646}]
[null,"50 à 99 logements",null,{"$f":"IFERROR(VLOOKUP('Pilotage charte de postes'!D18*10+1,Tableau_Lancer_la_requête_à_partir_de_apps_U_B11_1[],2,FALSE),\"\")","v":1294},{"$f":"IFERROR(VLOOKUP('Pilotage charte de postes'!E18*10+1,Tableau_Lancer_la_requête_à_partir_de_apps_U_B11_1[],2,FALSE),\"\")","v":2433000177},{"$f":"IFERROR(VLOOKUP('Pilotage charte de postes'!F18*10+1,Tableau_Lancer_la_requête_à_partir_de_apps_U_B11_1[],2,FALSE),\"\")","v":9851545864},{"$f":"IFERROR(VLOOKUP('Pilotage charte de postes'!H18*10+1,Tableau_Lancer_la_requête_à_partir_de_apps_U_B11_1[],2,FALSE),\"\")","v":12284546041},{"$f":"IFERROR(VLOOKUP('Pilotage charte de postes'!I18*10+1,Tableau_Lancer_la_requête_à_partir_de_apps_U_B11_1[],2,FALSE),\"\")","v":3},{"$f":"IFERROR(VLOOKUP('Pilotage charte de postes'!J18*10+1,Tableau_Lancer_la_requête_à_partir_de_apps_U_B11_1[],2,FALSE),\"\")","v":7522613},{"$f":"IFERROR(VLOOKUP('Pilotage charte de postes'!K18*10+1,Tableau_Lancer_la_requête_à_partir_de_apps_U_B11_1[],2,FALSE),\"\")","v":37277929},{"$f":"IFERROR(VLOOKUP('Pilotage charte de postes'!L18*10+1,Tableau_Lancer_la_requête_à_partir_de_apps_U_B11_1[],2,FALSE),\"\")","v":44800542}]
[null,"100 à 199 logements",null,{"$f":"IFERROR(VLOOKUP('Pilotage charte de postes'!D19*10+1,Tableau_Lancer_la_requête_à_partir_de_apps_U_B11_1[],2,FALSE),\"\")","v":602},{"$f":"IFERROR(VLOOKUP('Pilotage charte de postes'!E19*10+1,Tableau_Lancer_la_requête_à_partir_de_apps_U_B11_1[],2,FALSE),\"\")","v":2309350172},{"$f":"IFERROR(VLOOKUP('Pilotage charte de postes'!F19*10+1,Tableau_Lancer_la_requête_à_partir_de_apps_U_B11_1[],2,FALSE),\"\")","v":10937937892},{"$f":"IFERROR(VLOOKUP('Pilotage charte de postes'!H19*10+1,Tableau_Lancer_la_requête_à_partir_de_apps_U_B11_1[],2,FALSE),\"\")","v":13247288064},{"$f":"IFERROR(VLOOKUP('Pilotage charte de postes'!I19*10+1,Tableau_Lancer_la_requête_à_partir_de_apps_U_B11_1[],2,FALSE),\"\")","v":5},{"$f":"IFERROR(VLOOKUP('Pilotage charte de postes'!J19*10+1,Tableau_Lancer_la_requête_à_partir_de_apps_U_B11_1[],2,FALSE),\"\")","v":44913556},{"$f":"IFERROR(VLOOKUP('Pilotage charte de postes'!K19*10+1,Tableau_Lancer_la_requête_à_partir_de_apps_U_B11_1[],2,FALSE),\"\")","v":83797645},{"$f":"IFERROR(VLOOKUP('Pilotage charte de postes'!L19*10+1,Tableau_Lancer_la_requête_à_partir_de_apps_U_B11_1[],2,FALSE),\"\")","v":128711201}]
[null,"200 logements et plus",null,{"$f":"IFERROR(VLOOKUP('Pilotage charte de postes'!D20*10+1,Tableau_Lancer_la_requête_à_partir_de_apps_U_B11_1[],2,FALSE),\"\")","v":178},{"$f":"IFERROR(VLOOKUP('Pilotage charte de postes'!E20*10+1,Tableau_Lancer_la_requête_à_partir_de_apps_U_B11_1[],2,FALSE),\"\")","v":1717912220},{"$f":"IFERROR(VLOOKUP('Pilotage charte de postes'!F20*10+1,Tableau_Lancer_la_requête_à_partir_de_apps_U_B11_1[],2,FALSE),\"\")","v":8291136347},{"$f":"IFERROR(VLOOKUP('Pilotage charte de postes'!H20*10+1,Tableau_Lancer_la_requête_à_partir_de_apps_U_B11_1[],2,FALSE),\"\")","v":10009048567},{"$f":"IFERROR(VLOOKUP('Pilotage charte de postes'!I20*10+1,Tableau_Lancer_la_requête_à_partir_de_apps_U_B11_1[],2,FALSE),\"\")","v":3},{"$f":"IFERROR(VLOOKUP('Pilotage charte de postes'!J20*10+1,Tableau_Lancer_la_requête_à_partir_de_apps_U_B11_1[],2,FALSE),\"\")","v":43072806},{"$f":"IFERROR(VLOOKUP('Pilotage charte de postes'!K20*10+1,Tableau_Lancer_la_requête_à_partir_de_apps_U_B11_1[],2,FALSE),\"\")","v":145517327},{"$f":"IFERROR(VLOOKUP('Pilotage charte de postes'!L20*10+1,Tableau_Lancer_la_requête_à_partir_de_apps_U_B11_1[],2,FALSE),\"\")","v":188590133}]
["   11 -- Chalets, maisons de villégiatures",null,null,{"$f":"IFERROR(VLOOKUP('Pilotage charte de postes'!D21*10+1,Tableau_Lancer_la_requête_à_partir_de_apps_U_B11_1[],2,FALSE),\"\")","v":137186},{"$f":"IFERROR(VLOOKUP('Pilotage charte de postes'!E21*10+1,Tableau_Lancer_la_requête_à_partir_de_apps_U_B11_1[],2,FALSE),\"\")","v":9983260416},{"$f":"IFERROR(VLOOKUP('Pilotage charte de postes'!F21*10+1,Tableau_Lancer_la_requête_à_partir_de_apps_U_B11_1[],2,FALSE),\"\")","v":14032809779},{"$f":"IFERROR(VLOOKUP('Pilotage charte de postes'!H21*10+1,Tableau_Lancer_la_requête_à_partir_de_apps_U_B11_1[],2,FALSE),\"\")","v":24016070195},{"$f":"IFERROR(VLOOKUP('Pilotage charte de postes'!I21*10+1,Tableau_Lancer_la_requête_à_partir_de_apps_U_B11_1[],2,FALSE),\"\")","v":400},{"$f":"IFERROR(VLOOKUP('Pilotage charte de postes'!J21*10+1,Tableau_Lancer_la_requête_à_partir_de_apps_U_B11_1[],2,FALSE),\"\")","v":174462409},{"$f":"IFERROR(VLOOKUP('Pilotage charte de postes'!K21*10+1,Tableau_Lancer_la_requête_à_partir_de_apps_U_B11_1[],2,FALSE),\"\")","v":27952059},{"$f":"IFERROR(VLOOKUP('Pilotage charte de postes'!L21*10+1,Tableau_Lancer_la_requête_à_partir_de_apps_U_B11_1[],2,FALSE),\"\")","v":202414468}]
["   12 -- Maisons mobiles, roulottes",null,null,{"$f":"IFERROR(VLOOKUP('Pilotage charte de postes'!D22*10+1,Tableau_Lancer_la_requête_à_partir_de_apps_U_B11_1[],2,FALSE),\"\")","v":46172},{"$f":"IFERROR(VLOOKUP('Pilotage charte de postes'!E22*10+1,Tableau_Lancer_la_requête_à_partir_de_apps_U_B11_1[],2,FALSE),\"\")","v":1182083834},{"$f":"IFERROR(VLOOKUP('Pilotage charte de postes'!F22*10+1,Tableau_Lancer_la_requête_à_partir_de_apps_U_B11_1[],2,FALSE),\"\")","v":3462815270},{"$f":"IFERROR(VLOOKUP('Pilotage charte de postes'!H22*10+1,Tableau_Lancer_la_requête_à_partir_de_apps_U_B11_1[],2,FALSE),\"\")","v":4644899104},{"$f":"IFERROR(VLOOKUP('Pilotage charte de postes'!I22*10+1,Tableau_Lancer_la_requête_à_partir_de_apps_U_B11_1[],2,FALSE),\"\")","v":149},{"$f":"IFERROR(VLOOKUP('Pilotage charte de postes'!J22*10+1,Tableau_Lancer_la_requête_à_partir_de_apps_U_B11_1[],2,FALSE),\"\")","v":827546},{"$f":"IFERROR(VLOOKUP('Pilotage charte de postes'!K22*10+1,Tableau_Lancer_la_requête_à_partir_de_apps_U_B11_1[],2,FALSE),\"\")","v":3783967},{"$f":"IFERROR(VLOOKUP('Pilotage charte de postes'!L22*10+1,Tableau_Lancer_la_requête_à_partir_de_apps_U_B11_1[],2,FALSE),\"\")","v":4611513}]
["   15 -- Habitations en commun",null,null,{"$f":"IFERROR(VLOOKUP('Pilotage charte de postes'!D23*10+1,Tableau_Lancer_la_requête_à_partir_de_apps_U_B11_1[],2,FALSE),\"\")","v":4152},{"$f":"IFERROR(VLOOKUP('Pilotage charte de postes'!E23*10+1,Tableau_Lancer_la_requête_à_partir_de_apps_U_B11_1[],2,FALSE),\"\")","v":2565982647},{"$f":"IFERROR(VLOOKUP('Pilotage charte de postes'!F23*10+1,Tableau_Lancer_la_requête_à_partir_de_apps_U_B11_1[],2,FALSE),\"\")","v":15762713240},{"$f":"IFERROR(VLOOKUP('Pilotage charte de postes'!H23*10+1,Tableau_Lancer_la_requête_à_partir_de_apps_U_B11_1[],2,FALSE),\"\")","v":18328695887},{"$f":"IFERROR(VLOOKUP('Pilotage charte de postes'!I23*10+1,Tableau_Lancer_la_requête_à_partir_de_apps_U_B11_1[],2,FALSE),\"\")","v":1450},{"$f":"IFERROR(VLOOKUP('Pilotage charte de postes'!J23*10+1,Tableau_Lancer_la_requête_à_partir_de_apps_U_B11_1[],2,FALSE),\"\")","v":1537361245},{"$f":"IFERROR(VLOOKUP('Pilotage charte de postes'!K23*10+1,Tableau_Lancer_la_requête_à_partir_de_apps_U_B11_1[],2,FALSE),\"\")","v":3731058992},{"$f":"IFERROR(VLOOKUP('Pilotage charte de postes'!L23*10+1,Tableau_Lancer_la_requête_à_partir_de_apps_U_B11_1[],2,FALSE),\"\")","v":5268420236}]
["   16 -- Hôtels résidentiels",null,null,{"$f":"IFERROR(VLOOKUP('Pilotage charte de postes'!D24*10+1,Tableau_Lancer_la_requête_à_partir_de_apps_U_B11_1[],2,FALSE),\"\")","v":28},{"$f":"IFERROR(VLOOKUP('Pilotage charte de postes'!E24*10+1,Tableau_Lancer_la_requête_à_partir_de_apps_U_B11_1[],2,FALSE),\"\")","v":8315657},{"$f":"IFERROR(VLOOKUP('Pilotage charte de postes'!F24*10+1,Tableau_Lancer_la_requête_à_partir_de_apps_U_B11_1[],2,FALSE),\"\")","v":17812332},{"$f":"IFERROR(VLOOKUP('Pilotage charte de postes'!H24*10+1,Tableau_Lancer_la_requête_à_partir_de_apps_U_B11_1[],2,FALSE),\"\")","v":26127989},{"$f":"IFERROR(VLOOKUP('Pilotage charte de postes'!I24*10+1,Tableau_Lancer_la_requête_à_partir_de_apps_U_B11_1[],2,FALSE),\"\")","v":""},{"$f":"IFERROR(VLOOKUP('Pilotage charte de postes'!J24*10+1,Tableau_Lancer_la_requête_à_partir_de_apps_U_B11_1[],2,FALSE),\"\")","v":""},{"$f":"IFERROR(VLOOKUP('Pilotage charte de postes'!K24*10+1,Tableau_Lancer_la_requête_à_partir_de_apps_U_B11_1[],2,FALSE),\"\")","v":""},{"$f":"IFERROR(VLOOKUP('Pilotage charte de postes'!L24*10+1,Tableau_Lancer_la_requête_à_partir_de_apps_U_B11_1[],2,FALSE),\"\")","v":""}]
["   17 -- Parcs de roulottes et de maisons mobiles",null,null,{"$f":"IFERROR(VLOOKUP('Pilotage charte de postes'!D25*10+1,Tableau_Lancer_la_requête_à_partir_de_apps_U_B11_1[],2,FALSE),\"\")","v":177},{"$f":"IFERROR(VLOOKUP('Pilotage charte de postes'!E25*10+1,Tableau_Lancer_la_requête_à_partir_de_apps_U_B11_1[],2,FALSE),\"\")","v":137912611},{"$f":"IFERROR(VLOOKUP('Pilotage charte de postes'!F25*10+1,Tableau_Lancer_la_requête_à_partir_de_apps_U_B11_1[],2,FALSE),\"\")","v":10705154},{"$f":"IFERROR(VLOOKUP('Pilotage charte de postes'!H25*10+1,Tableau_Lancer_la_requête_à_partir_de_apps_U_B11_1[],2,FALSE),\"\")","v":148617765},{"$f":"IFERROR(VLOOKUP('Pilotage charte de postes'!I25*10+1,Tableau_Lancer_la_requête_à_partir_de_apps_U_B11_1[],2,FALSE),\"\")","v":9},{"$f":"IFERROR(VLOOKUP('Pilotage charte de postes'!J25*10+1,Tableau_Lancer_la_requête_à_partir_de_apps_U_B11_1[],2,FALSE),\"\")","v":785554},{"$f":"IFERROR(VLOOKUP('Pilotage charte de postes'!K25*10+1,Tableau_Lancer_la_requête_à_partir_de_apps_U_B11_1[],2,FALSE),\"\")","v":2323},{"$f":"IFERROR(VLOOKUP('Pilotage charte de postes'!L25*10+1,Tableau_Lancer_la_requête_à_partir_de_apps_U_B11_1[],2,FALSE),\"\")","v":787877}]
["   18 - 19 --  Autres immeubles résidentiels",null,null,{"$f":"IFERROR(VLOOKUP('Pilotage charte de postes'!D26*10+1,Tableau_Lancer_la_requête_à_partir_de_apps_U_B11_1[],2,FALSE),\"\")","v":72546},{"$f":"IFERROR(VLOOKUP('Pilotage charte de postes'!E26*10+1,Tableau_Lancer_la_requête_à_partir_de_apps_U_B11_1[],2,FALSE),\"\")","v":2641917768},{"$f":"IFERROR(VLOOKUP('Pilotage charte de postes'!F26*10+1,Tableau_Lancer_la_requête_à_partir_de_apps_U_B11_1[],2,FALSE),\"\")","v":1471206559},{"$f":"IFERROR(VLOOKUP('Pilotage charte de postes'!H26*10+1,Tableau_Lancer_la_requête_à_partir_de_apps_U_B11_1[],2,FALSE),\"\")","v":4113124328},{"$f":"IFERROR(VLOOKUP('Pilotage charte de postes'!I26*10+1,Tableau_Lancer_la_requête_à_partir_de_apps_U_B11_1[],2,FALSE),\"\")","v":1203},{"$f":"IFERROR(VLOOKUP('Pilotage charte de postes'!J26*10+1,Tableau_Lancer_la_requête_à_partir_de_apps_U_B11_1[],2,FALSE),\"\")","v":351977287},{"$f":"IFERROR(VLOOKUP('Pilotage charte de postes'!K26*10+1,Tableau_Lancer_la_requête_à_partir_de_apps_U_B11_1[],2,FALSE),\"\")","v":81306545},{"$f":"IFERROR(VLOOKUP('Pilotage charte de postes'!L26*10+1,Tableau_Lancer_la_requête_à_partir_de_apps_U_B11_1[],2,FALSE),\"\")","v":433283831}]
["2 - 3 --TOTALE DE LA CATÉGORIE INDUSTRIES MANUFACTURIÈRES",null,null,{"$f":"IFERROR(VLOOKUP('Pilotage charte de postes'!D27*10+1,Tableau_Lancer_la_requête_à_partir_de_apps_U_B11_1[],2,FALSE),\"\")","v":10819},{"$f":"IFERROR(VLOOKUP('Pilotage charte de postes'!E27*10+1,Tableau_Lancer_la_requête_à_partir_de_apps_U_B11_1[],2,FALSE),\"\")","v":6367965351},{"$f":"IFERROR(VLOOKUP('Pilotage charte de postes'!F27*10+1,Tableau_Lancer_la_requête_à_partir_de_apps_U_B11_1[],2,FALSE),\"\")","v":21823087113},{"$f":"IFERROR(VLOOKUP('Pilotage charte de postes'!H27*10+1,Tableau_Lancer_la_requête_à_partir_de_apps_U_B11_1[],2,FALSE),\"\")","v":28191052464},{"$f":"IFERROR(VLOOKUP('Pilotage charte de postes'!I27*10+1,Tableau_Lancer_la_requête_à_partir_de_apps_U_B11_1[],2,FALSE),\"\")","v":132},{"$f":"IFERROR(VLOOKUP('Pilotage charte de postes'!J27*10+1,Tableau_Lancer_la_requête_à_partir_de_apps_U_B11_1[],2,FALSE),\"\")","v":249760077},{"$f":"IFERROR(VLOOKUP('Pilotage charte de postes'!K27*10+1,Tableau_Lancer_la_requête_à_partir_de_apps_U_B11_1[],2,FALSE),\"\")","v":235906367},{"$f":"IFERROR(VLOOKUP('Pilotage charte de postes'!L27*10+1,Tableau_Lancer_la_requête_à_partir_de_apps_U_B11_1[],2,FALSE),\"\")","v":485666445}]
["   2 - 3 -- Industries manufacturières sauf « condominium »",null,null,{"$f":"IFERROR(VLOOKUP('Pilotage charte de postes'!D28*10+1,Tableau_Lancer_la_requête_à_partir_de_apps_U_B11_1[],2,FALSE),\"\")","v":10108},{"$f":"IFERROR(VLOOKUP('Pilotage charte de postes'!E28*10+1,Tableau_Lancer_la_requête_à_partir_de_apps_U_B11_1[],2,FALSE),\"\")","v":6238661905},{"$f":"IFERROR(VLOOKUP('Pilotage charte de postes'!F28*10+1,Tableau_Lancer_la_requête_à_partir_de_apps_U_B11_1[],2,FALSE),\"\")","v":21453059782},{"$f":"IFERROR(VLOOKUP('Pilotage charte de postes'!H28*10+1,Tableau_Lancer_la_requête_à_partir_de_apps_U_B11_1[],2,FALSE),\"\")","v":27691721687},{"$f":"IFERROR(VLOOKUP('Pilotage charte de postes'!I28*10+1,Tableau_Lancer_la_requête_à_partir_de_apps_U_B11_1[],2,FALSE),\"\")","v":130},{"$f":"IFERROR(VLOOKUP('Pilotage charte de postes'!J28*10+1,Tableau_Lancer_la_requête_à_partir_de_apps_U_B11_1[],2,FALSE),\"\")","v":249669937},{"$f":"IFERROR(VLOOKUP('Pilotage charte de postes'!K28*10+1,Tableau_Lancer_la_requête_à_partir_de_apps_U_B11_1[],2,FALSE),\"\")","v":235551667},{"$f":"IFERROR(VLOOKUP('Pilotage charte de postes'!L28*10+1,Tableau_Lancer_la_requête_à_partir_de_apps_U_B11_1[],2,FALSE),\"\")","v":485221605}]
["   2 - 3 -- Industries manufacturières « condominium »",null,null,{"$f":"IFERROR(VLOOKUP('Pilotage charte de postes'!D29*10+1,Tableau_Lancer_la_requête_à_partir_de_apps_U_B11_1[],2,FALSE),\"\")","v":711},{"$f":"IFERROR(VLOOKUP('Pilotage charte de postes'!E29*10+1,Tableau_Lancer_la_requête_à_partir_de_apps_U_B11_1[],2,FALSE),\"\")","v":129303446},{"$f":"IFERROR(VLOOKUP('Pilotage charte de postes'!F29*10+1,Tableau_Lancer_la_requête_à_partir_de_apps_U_B11_1[],2,FALSE),\"\")","v":370027331},{"$f":"IFERROR(VLOOKUP('Pilotage charte de postes'!H29*10+1,Tableau_Lancer_la_requête_à_partir_de_apps_U_B11_1[],2,FALSE),\"\")","v":499330777},{"$f":"IFERROR(VLOOKUP('Pilotage charte de postes'!I29*10+1,Tableau_Lancer_la_requête_à_partir_de_apps_U_B11_1[],2,FALSE),\"\")","v":2},{"$f":"IFERROR(VLOOKUP('Pilotage charte de postes'!J29*10+1,Tableau_Lancer_la_requête_à_partir_de_apps_U_B11_1[],2,FALSE),\"\")","v":90140},{"$f":"IFERROR(VLOOKUP('Pilotage charte de postes'!K29*10+1,Tableau_Lancer_la_requête_à_partir_de_apps_U_B11_1[],2,FALSE),\"\")","v":354700},{"$f":"IFERROR(VLOOKUP('Pilotage charte de postes'!L29*10+1,Tableau_Lancer_la_requête_à_partir_de_apps_U_B11_1[],2,FALSE),\"\")","v":444840}]
["4 --- TOTALE DE LA CATÉGORIE TRANSPORTS, COMM., SERVICES PUBLICS",null,null,{"$f":"IFERROR(VLOOKUP('Pilotage charte de postes'!D30*10+1,Tableau_Lancer_la_requête_à_partir_de_apps_U_B11_1[],2,FALSE),\"\")","v":49940},{"$f":"IFERROR(VLOOKUP('Pilotage charte de postes'!E30*10+1,Tableau_Lancer_la_requête_à_partir_de_apps_U_B11_1[],2,FALSE),\"\")","v":6889150756},{"$f":"IFERROR(VLOOKUP('Pilotage charte de postes'!F30*10+1,Tableau_Lancer_la_requête_à_partir_de_apps_U_B11_1[],2,FALSE),\"\")","v":7202064046},{"$f":"IFERROR(VLOOKUP('Pilotage charte de postes'!H30*10+1,Tableau_Lancer_la_requête_à_partir_de_apps_U_B11_1[],2,FALSE),\"\")","v":14091214802},{"$f":"IFERROR(VLOOKUP('Pilotage charte de postes'!I30*10+1,Tableau_Lancer_la_requête_à_partir_de_apps_U_B11_1[],2,FALSE),\"\")","v":69795},{"$f":"IFERROR(VLOOKUP('Pilotage charte de postes'!J30*10+1,Tableau_Lancer_la_requête_à_partir_de_apps_U_B11_1[],2,FALSE),\"\")","v":6485323807},{"$f":"IFERROR(VLOOKUP('Pilotage charte de postes'!K30*10+1,Tableau_Lancer_la_requête_à_partir_de_apps_U_B11_1[],2,FALSE),\"\")","v":8060664103},{"$f":"IFERROR(VLOOKUP('Pilotage charte de postes'!L30*10+1,Tableau_Lancer_la_requête_à_partir_de_apps_U_B11_1[],2,FALSE),\"\")","v":14545987910}]
["   4111  Chemin de fer",null,null,{"$f":"IFERROR(VLOOKUP('Pilotage charte de postes'!D31*10+1,Tableau_Lancer_la_requête_à_partir_de_apps_U_B11_1[],2,FALSE),\"\")","v":914},{"$f":"IFERROR(VLOOKUP('Pilotage charte de postes'!E31*10+1,Tableau_Lancer_la_requête_à_partir_de_apps_U_B11_1[],2,FALSE),\"\")","v":2529406722},{"$f":"IFERROR(VLOOKUP('Pilotage charte de postes'!F31*10+1,Tableau_Lancer_la_requête_à_partir_de_apps_U_B11_1[],2,FALSE),\"\")","v":3194548},{"$f":"IFERROR(VLOOKUP('Pilotage charte de postes'!H31*10+1,Tableau_Lancer_la_requête_à_partir_de_apps_U_B11_1[],2,FALSE),\"\")","v":2532601270},{"$f":"IFERROR(VLOOKUP('Pilotage charte de postes'!I31*10+1,Tableau_Lancer_la_requête_à_partir_de_apps_U_B11_1[],2,FALSE),\"\")","v":263},{"$f":"IFERROR(VLOOKUP('Pilotage charte de postes'!J31*10+1,Tableau_Lancer_la_requête_à_partir_de_apps_U_B11_1[],2,FALSE),\"\")","v":583585059},{"$f":"IFERROR(VLOOKUP('Pilotage charte de postes'!K31*10+1,Tableau_Lancer_la_requête_à_partir_de_apps_U_B11_1[],2,FALSE),\"\")","v":1355622},{"$f":"IFERROR(VLOOKUP('Pilotage charte de postes'!L31*10+1,Tableau_Lancer_la_requête_à_partir_de_apps_U_B11_1[],2,FALSE),\"\")","v":584940681}]
["   46 -- Terrains et garages de stationnement",null,null,{"$f":"IFERROR(VLOOKUP('Pilotage charte de postes'!D32*10+1,Tableau_Lancer_la_requête_à_partir_de_apps_U_B11_1[],2,FALSE),\"\")","v":3117},{"$f":"IFERROR(VLOOKUP('Pilotage charte de postes'!E32*10+1,Tableau_Lancer_la_requête_à_partir_de_apps_U_B11_1[],2,FALSE),\"\")","v":1294232860},{"$f":"IFERROR(VLOOKUP('Pilotage charte de postes'!F32*10+1,Tableau_Lancer_la_requête_à_partir_de_apps_U_B11_1[],2,FALSE),\"\")","v":320095042},{"$f":"IFERROR(VLOOKUP('Pilotage charte de postes'!H32*10+1,Tableau_Lancer_la_requête_à_partir_de_apps_U_B11_1[],2,FALSE),\"\")","v":1614327902},{"$f":"IFERROR(VLOOKUP('Pilotage charte de postes'!I32*10+1,Tableau_Lancer_la_requête_à_partir_de_apps_U_B11_1[],2,FALSE),\"\")","v":931},{"$f":"IFERROR(VLOOKUP('Pilotage charte de postes'!J32*10+1,Tableau_Lancer_la_requête_à_partir_de_apps_U_B11_1[],2,FALSE),\"\")","v":683408099},{"$f":"IFERROR(VLOOKUP('Pilotage charte de postes'!K32*10+1,Tableau_Lancer_la_requête_à_partir_de_apps_U_B11_1[],2,FALSE),\"\")","v":157415477},{"$f":"IFERROR(VLOOKUP('Pilotage charte de postes'!L32*10+1,Tableau_Lancer_la_requête_à_partir_de_apps_U_B11_1[],2,FALSE),\"\")","v":840823576}]
["5 --- TOTALE DE LA CATÉGORIE COMMERCIALE",null,null,{"$f":"IFERROR(VLOOKUP('Pilotage charte de postes'!D33*10+1,Tableau_Lancer_la_requête_à_partir_de_apps_U_B11_1[],2,FALSE),\"\")","v":52953},{"$f":"IFERROR(VLOOKUP('Pilotage charte de postes'!E33*10+1,Tableau_Lancer_la_requête_à_partir_de_apps_U_B11_1[],2,FALSE),\"\")","v":29283726642},{"$f":"IFERROR(VLOOKUP('Pilotage charte de postes'!F33*10+1,Tableau_Lancer_la_requête_à_partir_de_apps_U_B11_1[],2,FALSE),\"\")","v":55977245265},{"$f":"IFERROR(VLOOKUP('Pilotage charte de postes'!H33*10+1,Tableau_Lancer_la_requête_à_partir_de_apps_U_B11_1[],2,FALSE),\"\")","v":85260971907},{"$f":"IFERROR(VLOOKUP('Pilotage charte de postes'!I33*10+1,Tableau_Lancer_la_requête_à_partir_de_apps_U_B11_1[],2,FALSE),\"\")","v":610},{"$f":"IFERROR(VLOOKUP('Pilotage charte de postes'!J33*10+1,Tableau_Lancer_la_requête_à_partir_de_apps_U_B11_1[],2,FALSE),\"\")","v":258959400},{"$f":"IFERROR(VLOOKUP('Pilotage charte de postes'!K33*10+1,Tableau_Lancer_la_requête_à_partir_de_apps_U_B11_1[],2,FALSE),\"\")","v":473253097},{"$f":"IFERROR(VLOOKUP('Pilotage charte de postes'!L33*10+1,Tableau_Lancer_la_requête_à_partir_de_apps_U_B11_1[],2,FALSE),\"\")","v":732212497}]
["   50 -- Centres et immeubles commerciaux",null,null,{"$f":"IFERROR(VLOOKUP('Pilotage charte de postes'!D34*10+1,Tableau_Lancer_la_requête_à_partir_de_apps_U_B11_1[],2,FALSE),\"\")","v":17359},{"$f":"IFERROR(VLOOKUP('Pilotage charte de postes'!E34*10+1,Tableau_Lancer_la_requête_à_partir_de_apps_U_B11_1[],2,FALSE),\"\")","v":16042482908},{"$f":"IFERROR(VLOOKUP('Pilotage charte de postes'!F34*10+1,Tableau_Lancer_la_requête_à_partir_de_apps_U_B11_1[],2,FALSE),\"\")","v":29808367596},{"$f":"IFERROR(VLOOKUP('Pilotage charte de postes'!H34*10+1,Tableau_Lancer_la_requête_à_partir_de_apps_U_B11_1[],2,FALSE),\"\")","v":45850850504},{"$f":"IFERROR(VLOOKUP('Pilotage charte de postes'!I34*10+1,Tableau_Lancer_la_requête_à_partir_de_apps_U_B11_1[],2,FALSE),\"\")","v":247},{"$f":"IFERROR(VLOOKUP('Pilotage charte de postes'!J34*10+1,Tableau_Lancer_la_requête_à_partir_de_apps_U_B11_1[],2,FALSE),\"\")","v":155635371},{"$f":"IFERROR(VLOOKUP('Pilotage charte de postes'!K34*10+1,Tableau_Lancer_la_requête_à_partir_de_apps_U_B11_1[],2,FALSE),\"\")","v":269597368},{"$f":"IFERROR(VLOOKUP('Pilotage charte de postes'!L34*10+1,Tableau_Lancer_la_requête_à_partir_de_apps_U_B11_1[],2,FALSE),\"\")","v":425232738}]
["   51 --  Ventes en gros",null,null,{"$f":"IFERROR(VLOOKUP('Pilotage charte de postes'!D35*10+1,Tableau_Lancer_la_requête_à_partir_de_apps_U_B11_1[],2,FALSE),\"\")","v":1922},{"$f":"IFERROR(VLOOKUP('Pilotage charte de postes'!E35*10+1,Tableau_Lancer_la_requête_à_partir_de_apps_U_B11_1[],2,FALSE),\"\")","v":1213446715},{"$f":"IFERROR(VLOOKUP('Pilotage charte de postes'!F35*10+1,Tableau_Lancer_la_requête_à_partir_de_apps_U_B11_1[],2,FALSE),\"\")","v":2550705476},{"$f":"IFERROR(VLOOKUP('Pilotage charte de postes'!H35*10+1,Tableau_Lancer_la_requête_à_partir_de_apps_U_B11_1[],2,FALSE),\"\")","v":3764152191},{"$f":"IFERROR(VLOOKUP('Pilotage charte de postes'!I35*10+1,Tableau_Lancer_la_requête_à_partir_de_apps_U_B11_1[],2,FALSE),\"\")","v":9},{"$f":"IFERROR(VLOOKUP('Pilotage charte de postes'!J35*10+1,Tableau_Lancer_la_requête_à_partir_de_apps_U_B11_1[],2,FALSE),\"\")","v":7797197},{"$f":"IFERROR(VLOOKUP('Pilotage charte de postes'!K35*10+1,Tableau_Lancer_la_requête_à_partir_de_apps_U_B11_1[],2,FALSE),\"\")","v":13195589},{"$f":"IFERROR(VLOOKUP('Pilotage charte de postes'!L35*10+1,Tableau_Lancer_la_requête_à_partir_de_apps_U_B11_1[],2,FALSE),\"\")","v":20992786}]
["   52 à 59 --    Ventes au détail (sauf 583 -)",null,null,{"$f":"IFERROR(VLOOKUP('Pilotage charte de postes'!D36*10+1,Tableau_Lancer_la_requête_à_partir_de_apps_U_B11_1[],2,FALSE),\"\")","v":22741},{"$f":"IFERROR(VLOOKUP('Pilotage charte de postes'!E36*10+1,Tableau_Lancer_la_requête_à_partir_de_apps_U_B11_1[],2,FALSE),\"\")","v":10049351399},{"$f":"IFERROR(VLOOKUP('Pilotage charte de postes'!F36*10+1,Tableau_Lancer_la_requête_à_partir_de_apps_U_B11_1[],2,FALSE),\"\")","v":17034900022},{"$f":"IFERROR(VLOOKUP('Pilotage charte de postes'!H36*10+1,Tableau_Lancer_la_requête_à_partir_de_apps_U_B11_1[],2,FALSE),\"\")","v":27084251421},{"$f":"IFERROR(VLOOKUP('Pilotage charte de postes'!I36*10+1,Tableau_Lancer_la_requête_à_partir_de_apps_U_B11_1[],2,FALSE),\"\")","v":298},{"$f":"IFERROR(VLOOKUP('Pilotage charte de postes'!J36*10+1,Tableau_Lancer_la_requête_à_partir_de_apps_U_B11_1[],2,FALSE),\"\")","v":82211931},{"$f":"IFERROR(VLOOKUP('Pilotage charte de postes'!K36*10+1,Tableau_Lancer_la_requête_à_partir_de_apps_U_B11_1[],2,FALSE),\"\")","v":163259188},{"$f":"IFERROR(VLOOKUP('Pilotage charte de postes'!L36*10+1,Tableau_Lancer_la_requête_à_partir_de_apps_U_B11_1[],2,FALSE),\"\")","v":245471120}]
["   583 -- Hôtels, motels et maisons de touristes",null,null,{"$f":"IFERROR(VLOOKUP('Pilotage charte de postes'!D37*10+1,Tableau_Lancer_la_requête_à_partir_de_apps_U_B11_1[],2,FALSE),\"\")","v":10931},{"$f":"IFERROR(VLOOKUP('Pilotage charte de postes'!E37*10+1,Tableau_Lancer_la_requête_à_partir_de_apps_U_B11_1[],2,FALSE),\"\")","v":1978445620},{"$f":"IFERROR(VLOOKUP('Pilotage charte de postes'!F37*10+1,Tableau_Lancer_la_requête_à_partir_de_apps_U_B11_1[],2,FALSE),\"\")","v":6583272171},{"$f":"IFERROR(VLOOKUP('Pilotage charte de postes'!H37*10+1,Tableau_Lancer_la_requête_à_partir_de_apps_U_B11_1[],2,FALSE),\"\")","v":8561717791},{"$f":"IFERROR(VLOOKUP('Pilotage charte de postes'!I37*10+1,Tableau_Lancer_la_requête_à_partir_de_apps_U_B11_1[],2,FALSE),\"\")","v":56},{"$f":"IFERROR(VLOOKUP('Pilotage charte de postes'!J37*10+1,Tableau_Lancer_la_requête_à_partir_de_apps_U_B11_1[],2,FALSE),\"\")","v":13314901},{"$f":"IFERROR(VLOOKUP('Pilotage charte de postes'!K37*10+1,Tableau_Lancer_la_requête_à_partir_de_apps_U_B11_1[],2,FALSE),\"\")","v":27200952},{"$f":"IFERROR(VLOOKUP('Pilotage charte de postes'!L37*10+1,Tableau_Lancer_la_requête_à_partir_de_apps_U_B11_1[],2,FALSE),\"\")","v":40515853}]
["   5 --- Commerciale sauf « condominium »",null,null,{"$f":"IFERROR(VLOOKUP('Pilotage charte de postes'!D38*10+1,Tableau_Lancer_la_requête_à_partir_de_apps_U_B11_1[],2,FALSE),\"\")","v":43547},{"$f":"IFERROR(VLOOKUP('Pilotage charte de postes'!E38*10+1,Tableau_Lancer_la_requête_à_partir_de_apps_U_B11_1[],2,FALSE),\"\")","v":28059718719},{"$f":"IFERROR(VLOOKUP('Pilotage charte de postes'!F38*10+1,Tableau_Lancer_la_requête_à_partir_de_apps_U_B11_1[],2,FALSE),\"\")","v":51430533575},{"$f":"IFERROR(VLOOKUP('Pilotage charte de postes'!H38*10+1,Tableau_Lancer_la_requête_à_partir_de_apps_U_B11_1[],2,FALSE),\"\")","v":79490252294},{"$f":"IFERROR(VLOOKUP('Pilotage charte de postes'!I38*10+1,Tableau_Lancer_la_requête_à_partir_de_apps_U_B11_1[],2,FALSE),\"\")","v":597},{"$f":"IFERROR(VLOOKUP('Pilotage charte de postes'!J38*10+1,Tableau_Lancer_la_requête_à_partir_de_apps_U_B11_1[],2,FALSE),\"\")","v":252398702},{"$f":"IFERROR(VLOOKUP('Pilotage charte de postes'!K38*10+1,Tableau_Lancer_la_requête_à_partir_de_apps_U_B11_1[],2,FALSE),\"\")","v":456757985},{"$f":"IFERROR(VLOOKUP('Pilotage charte de postes'!L38*10+1,Tableau_Lancer_la_requête_à_partir_de_apps_U_B11_1[],2,FALSE),\"\")","v":709156687}]
["   5 --- Commerciale « condominium »",null,null,{"$f":"IFERROR(VLOOKUP('Pilotage charte de postes'!D39*10+1,Tableau_Lancer_la_requête_à_partir_de_apps_U_B11_1[],2,FALSE),\"\")","v":9406},{"$f":"IFERROR(VLOOKUP('Pilotage charte de postes'!E39*10+1,Tableau_Lancer_la_requête_à_partir_de_apps_U_B11_1[],2,FALSE),\"\")","v":1224007923},{"$f":"IFERROR(VLOOKUP('Pilotage charte de postes'!F39*10+1,Tableau_Lancer_la_requête_à_partir_de_apps_U_B11_1[],2,FALSE),\"\")","v":4546711690},{"$f":"IFERROR(VLOOKUP('Pilotage charte de postes'!H39*10+1,Tableau_Lancer_la_requête_à_partir_de_apps_U_B11_1[],2,FALSE),\"\")","v":5770719613},{"$f":"IFERROR(VLOOKUP('Pilotage charte de postes'!I39*10+1,Tableau_Lancer_la_requête_à_partir_de_apps_U_B11_1[],2,FALSE),\"\")","v":13},{"$f":"IFERROR(VLOOKUP('Pilotage charte de postes'!J39*10+1,Tableau_Lancer_la_requête_à_partir_de_apps_U_B11_1[],2,FALSE),\"\")","v":6560698},{"$f":"IFERROR(VLOOKUP('Pilotage charte de postes'!K39*10+1,Tableau_Lancer_la_requête_à_partir_de_apps_U_B11_1[],2,FALSE),\"\")","v":16495112},{"$f":"IFERROR(VLOOKUP('Pilotage charte de postes'!L39*10+1,Tableau_Lancer_la_requête_à_partir_de_apps_U_B11_1[],2,FALSE),\"\")","v":23055810}]
["6 ---TOTALE DE LA CATÉGORIE SERVICES",null,null,{"$f":"IFERROR(VLOOKUP('Pilotage charte de postes'!D40*10+1,Tableau_Lancer_la_requête_à_partir_de_apps_U_B11_1[],2,FALSE),\"\")","v":35189},{"$f":"IFERROR(VLOOKUP('Pilotage charte de postes'!E40*10+1,Tableau_Lancer_la_requête_à_partir_de_apps_U_B11_1[],2,FALSE),\"\")","v":15614368554},{"$f":"IFERROR(VLOOKUP('Pilotage charte de postes'!F40*10+1,Tableau_Lancer_la_requête_à_partir_de_apps_U_B11_1[],2,FALSE),\"\")","v":44837655676},{"$f":"IFERROR(VLOOKUP('Pilotage charte de postes'!H40*10+1,Tableau_Lancer_la_requête_à_partir_de_apps_U_B11_1[],2,FALSE),\"\")","v":60452024229},{"$f":"IFERROR(VLOOKUP('Pilotage charte de postes'!I40*10+1,Tableau_Lancer_la_requête_à_partir_de_apps_U_B11_1[],2,FALSE),\"\")","v":15728},{"$f":"IFERROR(VLOOKUP('Pilotage charte de postes'!J40*10+1,Tableau_Lancer_la_requête_à_partir_de_apps_U_B11_1[],2,FALSE),\"\")","v":20669611928},{"$f":"IFERROR(VLOOKUP('Pilotage charte de postes'!K40*10+1,Tableau_Lancer_la_requête_à_partir_de_apps_U_B11_1[],2,FALSE),\"\")","v":61362919594},{"$f":"IFERROR(VLOOKUP('Pilotage charte de postes'!L40*10+1,Tableau_Lancer_la_requête_à_partir_de_apps_U_B11_1[],2,FALSE),\"\")","v":82032531521}]
["  60 -- Immeubles à bureaux",null,null,{"$f":"IFERROR(VLOOKUP('Pilotage charte de postes'!D41*10+1,Tableau_Lancer_la_requête_à_partir_de_apps_U_B11_1[],2,FALSE),\"\")","v":4083},{"$f":"IFERROR(VLOOKUP('Pilotage charte de postes'!E41*10+1,Tableau_Lancer_la_requête_à_partir_de_apps_U_B11_1[],2,FALSE),\"\")","v":7616411017},{"$f":"IFERROR(VLOOKUP('Pilotage charte de postes'!F41*10+1,Tableau_Lancer_la_requête_à_partir_de_apps_U_B11_1[],2,FALSE),\"\")","v":26206063143},{"$f":"IFERROR(VLOOKUP('Pilotage charte de postes'!H41*10+1,Tableau_Lancer_la_requête_à_partir_de_apps_U_B11_1[],2,FALSE),\"\")","v":33822474160},{"$f":"IFERROR(VLOOKUP('Pilotage charte de postes'!I41*10+1,Tableau_Lancer_la_requête_à_partir_de_apps_U_B11_1[],2,FALSE),\"\")","v":609},{"$f":"IFERROR(VLOOKUP('Pilotage charte de postes'!J41*10+1,Tableau_Lancer_la_requête_à_partir_de_apps_U_B11_1[],2,FALSE),\"\")","v":951849025},{"$f":"IFERROR(VLOOKUP('Pilotage charte de postes'!K41*10+1,Tableau_Lancer_la_requête_à_partir_de_apps_U_B11_1[],2,FALSE),\"\")","v":2953687722},{"$f":"IFERROR(VLOOKUP('Pilotage charte de postes'!L41*10+1,Tableau_Lancer_la_requête_à_partir_de_apps_U_B11_1[],2,FALSE),\"\")","v":3905536747}]
["  6 --  Services sauf « condominium »",null,null,{"$f":"IFERROR(VLOOKUP('Pilotage charte de postes'!D42*10+1,Tableau_Lancer_la_requête_à_partir_de_apps_U_B11_1[],2,FALSE),\"\")","v":30816},{"$f":"IFERROR(VLOOKUP('Pilotage charte de postes'!E42*10+1,Tableau_Lancer_la_requête_à_partir_de_apps_U_B11_1[],2,FALSE),\"\")","v":14191240907},{"$f":"IFERROR(VLOOKUP('Pilotage charte de postes'!F42*10+1,Tableau_Lancer_la_requête_à_partir_de_apps_U_B11_1[],2,FALSE),\"\")","v":39602518266},{"$f":"IFERROR(VLOOKUP('Pilotage charte de postes'!H42*10+1,Tableau_Lancer_la_requête_à_partir_de_apps_U_B11_1[],2,FALSE),\"\")","v":53793759172},{"$f":"IFERROR(VLOOKUP('Pilotage charte de postes'!I42*10+1,Tableau_Lancer_la_requête_à_partir_de_apps_U_B11_1[],2,FALSE),\"\")","v":15552},{"$f":"IFERROR(VLOOKUP('Pilotage charte de postes'!J42*10+1,Tableau_Lancer_la_requête_à_partir_de_apps_U_B11_1[],2,FALSE),\"\")","v":20513802927},{"$f":"IFERROR(VLOOKUP('Pilotage charte de postes'!K42*10+1,Tableau_Lancer_la_requête_à_partir_de_apps_U_B11_1[],2,FALSE),\"\")","v":60931106693},{"$f":"IFERROR(VLOOKUP('Pilotage charte de postes'!L42*10+1,Tableau_Lancer_la_requête_à_partir_de_apps_U_B11_1[],2,FALSE),\"\")","v":81444909619}]
["  6 --  Services « condominium »",null,null,{"$f":"IFERROR(VLOOKUP('Pilotage charte de postes'!D43*10+1,Tableau_Lancer_la_requête_à_partir_de_apps_U_B11_1[],2,FALSE),\"\")","v":4373},{"$f":"IFERROR(VLOOKUP('Pilotage charte de postes'!E43*10+1,Tableau_Lancer_la_requête_à_partir_de_apps_U_B11_1[],2,FALSE),\"\")","v":1423127647},{"$f":"IFERROR(VLOOKUP('Pilotage charte de postes'!F43*10+1,Tableau_Lancer_la_requête_à_partir_de_apps_U_B11_1[],2,FALSE),\"\")","v":5235137410},{"$f":"IFERROR(VLOOKUP('Pilotage charte de postes'!H43*10+1,Tableau_Lancer_la_requête_à_partir_de_apps_U_B11_1[],2,FALSE),\"\")","v":6658265057},{"$f":"IFERROR(VLOOKUP('Pilotage charte de postes'!I43*10+1,Tableau_Lancer_la_requête_à_partir_de_apps_U_B11_1[],2,FALSE),\"\")","v":176},{"$f":"IFERROR(VLOOKUP('Pilotage charte de postes'!J43*10+1,Tableau_Lancer_la_requête_à_partir_de_apps_U_B11_1[],2,FALSE),\"\")","v":155809001},{"$f":"IFERROR(VLOOKUP('Pilotage charte de postes'!K43*10+1,Tableau_Lancer_la_requête_à_partir_de_apps_U_B11_1[],2,FALSE),\"\")","v":431812901},{"$f":"IFERROR(VLOOKUP('Pilotage charte de postes'!L43*10+1,Tableau_Lancer_la_requête_à_partir_de_apps_U_B11_1[],2,FALSE),\"\")","v":587621902}]
["7 --- TOTALE DE LA CATÉGORIE CULTURELLE, RÉCRÉATIVE ET DE LOISIRS",null,null,{"$f":"IFERROR(VLOOKUP('Pilotage charte de postes'!D44*10+1,Tableau_Lancer_la_requête_à_partir_de_apps_U_B11_1[],2,FALSE),\"\")","v":5245},{"$f":"IFERROR(VLOOKUP('Pilotage charte de postes'!E44*10+1,Tableau_Lancer_la_requête_à_partir_de_apps_U_B11_1[],2,FALSE),\"\")","v":2170834112},{"$f":"IFERROR(VLOOKUP('Pilotage charte de postes'!F44*10+1,Tableau_Lancer_la_requête_à_partir_de_apps_U_B11_1[],2,FALSE),\"\")","v":4654664921},{"$f":"IFERROR(VLOOKUP('Pilotage charte de postes'!H44*10+1,Tableau_Lancer_la_requête_à_partir_de_apps_U_B11_1[],2,FALSE),\"\")","v":6825499033},{"$f":"IFERROR(VLOOKUP('Pilotage charte de postes'!I44*10+1,Tableau_Lancer_la_requête_à_partir_de_apps_U_B11_1[],2,FALSE),\"\")","v":12676},{"$f":"IFERROR(VLOOKUP('Pilotage charte de postes'!J44*10+1,Tableau_Lancer_la_requête_à_partir_de_apps_U_B11_1[],2,FALSE),\"\")","v":17530903215},{"$f":"IFERROR(VLOOKUP('Pilotage charte de postes'!K44*10+1,Tableau_Lancer_la_requête_à_partir_de_apps_U_B11_1[],2,FALSE),\"\")","v":10319040866},{"$f":"IFERROR(VLOOKUP('Pilotage charte de postes'!L44*10+1,Tableau_Lancer_la_requête_à_partir_de_apps_U_B11_1[],2,FALSE),\"\")","v":27849944081}]
["  7411 - 7412 Terrains de golf",null,null,{"$f":"IFERROR(VLOOKUP('Pilotage charte de postes'!D45*10+1,Tableau_Lancer_la_requête_à_partir_de_apps_U_B11_1[],2,FALSE),\"\")","v":390},{"$f":"IFERROR(VLOOKUP('Pilotage charte de postes'!E45*10+1,Tableau_Lancer_la_requête_à_partir_de_apps_U_B11_1[],2,FALSE),\"\")","v":365219979},{"$f":"IFERROR(VLOOKUP('Pilotage charte de postes'!F45*10+1,Tableau_Lancer_la_requête_à_partir_de_apps_U_B11_1[],2,FALSE),\"\")","v":324361682},{"$f":"IFERROR(VLOOKUP('Pilotage charte de postes'!H45*10+1,Tableau_Lancer_la_requête_à_partir_de_apps_U_B11_1[],2,FALSE),\"\")","v":689581661},{"$f":"IFERROR(VLOOKUP('Pilotage charte de postes'!I45*10+1,Tableau_Lancer_la_requête_à_partir_de_apps_U_B11_1[],2,FALSE),\"\")","v":26},{"$f":"IFERROR(VLOOKUP('Pilotage charte de postes'!J45*10+1,Tableau_Lancer_la_requête_à_partir_de_apps_U_B11_1[],2,FALSE),\"\")","v":152666986},{"$f":"IFERROR(VLOOKUP('Pilotage charte de postes'!K45*10+1,Tableau_Lancer_la_requête_à_partir_de_apps_U_B11_1[],2,FALSE),\"\")","v":357626890},{"$f":"IFERROR(VLOOKUP('Pilotage charte de postes'!L45*10+1,Tableau_Lancer_la_requête_à_partir_de_apps_U_B11_1[],2,FALSE),\"\")","v":510293876}]
["  76 -- Parcs",null,null,{"$f":"IFERROR(VLOOKUP('Pilotage charte de postes'!D46*10+1,Tableau_Lancer_la_requête_à_partir_de_apps_U_B11_1[],2,FALSE),\"\")","v":873},{"$f":"IFERROR(VLOOKUP('Pilotage charte de postes'!E46*10+1,Tableau_Lancer_la_requête_à_partir_de_apps_U_B11_1[],2,FALSE),\"\")","v":76265136},{"$f":"IFERROR(VLOOKUP('Pilotage charte de postes'!F46*10+1,Tableau_Lancer_la_requête_à_partir_de_apps_U_B11_1[],2,FALSE),\"\")","v":57982819},{"$f":"IFERROR(VLOOKUP('Pilotage charte de postes'!H46*10+1,Tableau_Lancer_la_requête_à_partir_de_apps_U_B11_1[],2,FALSE),\"\")","v":134247955},{"$f":"IFERROR(VLOOKUP('Pilotage charte de postes'!I46*10+1,Tableau_Lancer_la_requête_à_partir_de_apps_U_B11_1[],2,FALSE),\"\")","v":6678},{"$f":"IFERROR(VLOOKUP('Pilotage charte de postes'!J46*10+1,Tableau_Lancer_la_requête_à_partir_de_apps_U_B11_1[],2,FALSE),\"\")","v":10718032674},{"$f":"IFERROR(VLOOKUP('Pilotage charte de postes'!K46*10+1,Tableau_Lancer_la_requête_à_partir_de_apps_U_B11_1[],2,FALSE),\"\")","v":1221888291},{"$f":"IFERROR(VLOOKUP('Pilotage charte de postes'!L46*10+1,Tableau_Lancer_la_requête_à_partir_de_apps_U_B11_1[],2,FALSE),\"\")","v":11939920965}]
["8 --- TOTALE DE LA CATÉGORIE PRODUCTION, EXT. DE RICHESSES NAT.",null,null,{"$f":"IFERROR(VLOOKUP('Pilotage charte de postes'!D47*10+1,Tableau_Lancer_la_requête_à_partir_de_apps_U_B11_1[],2,FALSE),\"\")","v":135725},{"$f":"IFERROR(VLOOKUP('Pilotage charte de postes'!E47*10+1,Tableau_Lancer_la_requête_à_partir_de_apps_U_B11_1[],2,FALSE),\"\")","v":43222235594},{"$f":"IFERROR(VLOOKUP('Pilotage charte de postes'!F47*10+1,Tableau_Lancer_la_requête_à_partir_de_apps_U_B11_1[],2,FALSE),\"\")","v":15033795739},{"$f":"IFERROR(VLOOKUP('Pilotage charte de postes'!H47*10+1,Tableau_Lancer_la_requête_à_partir_de_apps_U_B11_1[],2,FALSE),\"\")","v":58256031333},{"$f":"IFERROR(VLOOKUP('Pilotage charte de postes'!I47*10+1,Tableau_Lancer_la_requête_à_partir_de_apps_U_B11_1[],2,FALSE),\"\")","v":1061},{"$f":"IFERROR(VLOOKUP('Pilotage charte de postes'!J47*10+1,Tableau_Lancer_la_requête_à_partir_de_apps_U_B11_1[],2,FALSE),\"\")","v":490572326},{"$f":"IFERROR(VLOOKUP('Pilotage charte de postes'!K47*10+1,Tableau_Lancer_la_requête_à_partir_de_apps_U_B11_1[],2,FALSE),\"\")","v":124444002},{"$f":"IFERROR(VLOOKUP('Pilotage charte de postes'!L47*10+1,Tableau_Lancer_la_requête_à_partir_de_apps_U_B11_1[],2,FALSE),\"\")","v":615016328}]
["  81 -- Agriculture",null,null,{"$f":"IFERROR(VLOOKUP('Pilotage charte de postes'!D48*10+1,Tableau_Lancer_la_requête_à_partir_de_apps_U_B11_1[],2,FALSE),\"\")","v":111223},{"$f":"IFERROR(VLOOKUP('Pilotage charte de postes'!E48*10+1,Tableau_Lancer_la_requête_à_partir_de_apps_U_B11_1[],2,FALSE),\"\")","v":40202238838},{"$f":"IFERROR(VLOOKUP('Pilotage charte de postes'!F48*10+1,Tableau_Lancer_la_requête_à_partir_de_apps_U_B11_1[],2,FALSE),\"\")","v":13072549071},{"$f":"IFERROR(VLOOKUP('Pilotage charte de postes'!H48*10+1,Tableau_Lancer_la_requête_à_partir_de_apps_U_B11_1[],2,FALSE),\"\")","v":53274787909},{"$f":"IFERROR(VLOOKUP('Pilotage charte de postes'!I48*10+1,Tableau_Lancer_la_requête_à_partir_de_apps_U_B11_1[],2,FALSE),\"\")","v":516},{"$f":"IFERROR(VLOOKUP('Pilotage charte de postes'!J48*10+1,Tableau_Lancer_la_requête_à_partir_de_apps_U_B11_1[],2,FALSE),\"\")","v":106623213},{"$f":"IFERROR(VLOOKUP('Pilotage charte de postes'!K48*10+1,Tableau_Lancer_la_requête_à_partir_de_apps_U_B11_1[],2,FALSE),\"\")","v":71608605},{"$f":"IFERROR(VLOOKUP('Pilotage charte de postes'!L48*10+1,Tableau_Lancer_la_requête_à_partir_de_apps_U_B11_1[],2,FALSE),\"\")","v":178231818}]
["  83 -- Exploitation forestière",null,null,{"$f":"IFERROR(VLOOKUP('Pilotage charte de postes'!D49*10+1,Tableau_Lancer_la_requête_à_partir_de_apps_U_B11_1[],2,FALSE),\"\")","v":21829},{"$f":"IFERROR(VLOOKUP('Pilotage charte de postes'!E49*10+1,Tableau_Lancer_la_requête_à_partir_de_apps_U_B11_1[],2,FALSE),\"\")","v":2438924934},{"$f":"IFERROR(VLOOKUP('Pilotage charte de postes'!F49*10+1,Tableau_Lancer_la_requête_à_partir_de_apps_U_B11_1[],2,FALSE),\"\")","v":456949178},{"$f":"IFERROR(VLOOKUP('Pilotage charte de postes'!H49*10+1,Tableau_Lancer_la_requête_à_partir_de_apps_U_B11_1[],2,FALSE),\"\")","v":2895874112},{"$f":"IFERROR(VLOOKUP('Pilotage charte de postes'!I49*10+1,Tableau_Lancer_la_requête_à_partir_de_apps_U_B11_1[],2,FALSE),\"\")","v":414},{"$f":"IFERROR(VLOOKUP('Pilotage charte de postes'!J49*10+1,Tableau_Lancer_la_requête_à_partir_de_apps_U_B11_1[],2,FALSE),\"\")","v":314814816},{"$f":"IFERROR(VLOOKUP('Pilotage charte de postes'!K49*10+1,Tableau_Lancer_la_requête_à_partir_de_apps_U_B11_1[],2,FALSE),\"\")","v":25082681},{"$f":"IFERROR(VLOOKUP('Pilotage charte de postes'!L49*10+1,Tableau_Lancer_la_requête_à_partir_de_apps_U_B11_1[],2,FALSE),\"\")","v":339897497}]
["  85 -- Exploitation minière",null,null,{"$f":"IFERROR(VLOOKUP('Pilotage charte de postes'!D50*10+1,Tableau_Lancer_la_requête_à_partir_de_apps_U_B11_1[],2,FALSE),\"\")","v":1351},{"$f":"IFERROR(VLOOKUP('Pilotage charte de postes'!E50*10+1,Tableau_Lancer_la_requête_à_partir_de_apps_U_B11_1[],2,FALSE),\"\")","v":455905148},{"$f":"IFERROR(VLOOKUP('Pilotage charte de postes'!F50*10+1,Tableau_Lancer_la_requête_à_partir_de_apps_U_B11_1[],2,FALSE),\"\")","v":1333500438},{"$f":"IFERROR(VLOOKUP('Pilotage charte de postes'!H50*10+1,Tableau_Lancer_la_requête_à_partir_de_apps_U_B11_1[],2,FALSE),\"\")","v":1789405586},{"$f":"IFERROR(VLOOKUP('Pilotage charte de postes'!I50*10+1,Tableau_Lancer_la_requête_à_partir_de_apps_U_B11_1[],2,FALSE),\"\")","v":65},{"$f":"IFERROR(VLOOKUP('Pilotage charte de postes'!J50*10+1,Tableau_Lancer_la_requête_à_partir_de_apps_U_B11_1[],2,FALSE),\"\")","v":59838831},{"$f":"IFERROR(VLOOKUP('Pilotage charte de postes'!K50*10+1,Tableau_Lancer_la_requête_à_partir_de_apps_U_B11_1[],2,FALSE),\"\")","v":11257034},{"$f":"IFERROR(VLOOKUP('Pilotage charte de postes'!L50*10+1,Tableau_Lancer_la_requête_à_partir_de_apps_U_B11_1[],2,FALSE),\"\")","v":71095865}]
["9 --- TOTALE DE LA CATÉGORIE IMMEUBLES NON EXPLOITÉS, ÉTENDUES D'EAU",null,null,{"$f":"IFERROR(VLOOKUP('Pilotage charte de postes'!D51*10+1,Tableau_Lancer_la_requête_à_partir_de_apps_U_B11_1[],2,FALSE),\"\")","v":377281},{"$f":"IFERROR(VLOOKUP('Pilotage charte de postes'!E51*10+1,Tableau_Lancer_la_requête_à_partir_de_apps_U_B11_1[],2,FALSE),\"\")","v":27444891041},{"$f":"IFERROR(VLOOKUP('Pilotage charte de postes'!F51*10+1,Tableau_Lancer_la_requête_à_partir_de_apps_U_B11_1[],2,FALSE),\"\")","v":630307868},{"$f":"IFERROR(VLOOKUP('Pilotage charte de postes'!H51*10+1,Tableau_Lancer_la_requête_à_partir_de_apps_U_B11_1[],2,FALSE),\"\")","v":28075198910},{"$f":"IFERROR(VLOOKUP('Pilotage charte de postes'!I51*10+1,Tableau_Lancer_la_requête_à_partir_de_apps_U_B11_1[],2,FALSE),\"\")","v":78493},{"$f":"IFERROR(VLOOKUP('Pilotage charte de postes'!J51*10+1,Tableau_Lancer_la_requête_à_partir_de_apps_U_B11_1[],2,FALSE),\"\")","v":16269085670},{"$f":"IFERROR(VLOOKUP('Pilotage charte de postes'!K51*10+1,Tableau_Lancer_la_requête_à_partir_de_apps_U_B11_1[],2,FALSE),\"\")","v":64195471},{"$f":"IFERROR(VLOOKUP('Pilotage charte de postes'!L51*10+1,Tableau_Lancer_la_requête_à_partir_de_apps_U_B11_1[],2,FALSE),\"\")","v":16333281141}]
["  91 -- Terrains vagues",null,null,{"$f":"IFERROR(VLOOKUP('Pilotage charte de postes'!D52*10+1,Tableau_Lancer_la_requête_à_partir_de_apps_U_B11_1[],2,FALSE),\"\")","v":323131},{"$f":"IFERROR(VLOOKUP('Pilotage charte de postes'!E52*10+1,Tableau_Lancer_la_requête_à_partir_de_apps_U_B11_1[],2,FALSE),\"\")","v":23783330575},{"$f":"IFERROR(VLOOKUP('Pilotage charte de postes'!F52*10+1,Tableau_Lancer_la_requête_à_partir_de_apps_U_B11_1[],2,FALSE),\"\")","v":10102369},{"$f":"IFERROR(VLOOKUP('Pilotage charte de postes'!H52*10+1,Tableau_Lancer_la_requête_à_partir_de_apps_U_B11_1[],2,FALSE),\"\")","v":23793432944},{"$f":"IFERROR(VLOOKUP('Pilotage charte de postes'!I52*10+1,Tableau_Lancer_la_requête_à_partir_de_apps_U_B11_1[],2,FALSE),\"\")","v":71591},{"$f":"IFERROR(VLOOKUP('Pilotage charte de postes'!J52*10+1,Tableau_Lancer_la_requête_à_partir_de_apps_U_B11_1[],2,FALSE),\"\")","v":11522151230},{"$f":"IFERROR(VLOOKUP('Pilotage charte de postes'!K52*10+1,Tableau_Lancer_la_requête_à_partir_de_apps_U_B11_1[],2,FALSE),\"\")","v":1730892},{"$f":"IFERROR(VLOOKUP('Pilotage charte de postes'!L52*10+1,Tableau_Lancer_la_requête_à_partir_de_apps_U_B11_1[],2,FALSE),\"\")","v":11523882122}]
["  9220 -- Forêts inexploitées qui ne sont pas des réserves",null,null,{"$f":"IFERROR(VLOOKUP('Pilotage charte de postes'!D53*10+1,Tableau_Lancer_la_requête_à_partir_de_apps_U_B11_1[],2,FALSE),\"\")","v":44032},{"$f":"IFERROR(VLOOKUP('Pilotage charte de postes'!E53*10+1,Tableau_Lancer_la_requête_à_partir_de_apps_U_B11_1[],2,FALSE),\"\")","v":2667463492},{"$f":"IFERROR(VLOOKUP('Pilotage charte de postes'!F53*10+1,Tableau_Lancer_la_requête_à_partir_de_apps_U_B11_1[],2,FALSE),\"\")","v":67791392},{"$f":"IFERROR(VLOOKUP('Pilotage charte de postes'!H53*10+1,Tableau_Lancer_la_requête_à_partir_de_apps_U_B11_1[],2,FALSE),\"\")","v":2735254884},{"$f":"IFERROR(VLOOKUP('Pilotage charte de postes'!I53*10+1,Tableau_Lancer_la_requête_à_partir_de_apps_U_B11_1[],2,FALSE),\"\")","v":3997},{"$f":"IFERROR(VLOOKUP('Pilotage charte de postes'!J53*10+1,Tableau_Lancer_la_requête_à_partir_de_apps_U_B11_1[],2,FALSE),\"\")","v":3795696709},{"$f":"IFERROR(VLOOKUP('Pilotage charte de postes'!K53*10+1,Tableau_Lancer_la_requête_à_partir_de_apps_U_B11_1[],2,FALSE),\"\")","v":743325},{"$f":"IFERROR(VLOOKUP('Pilotage charte de postes'!L53*10+1,Tableau_Lancer_la_requête_à_partir_de_apps_U_B11_1[],2,FALSE),\"\")","v":3796440034}]
["TOTAL DU RÔLE D'ÉVALUATION FONCIÈRE",null,null,{"$f":"IFERROR(VLOOKUP('Pilotage charte de postes'!D54*10+1,Tableau_Lancer_la_requête_à_partir_de_apps_U_B11_1[],2,FALSE),\"\")","v":3475701},{"$f":"IFERROR(VLOOKUP('Pilotage charte de postes'!E54*10+1,Tableau_Lancer_la_requête_à_partir_de_apps_U_B11_1[],2,FALSE),\"\")","v":460102473483},{"$f":"IFERROR(VLOOKUP('Pilotage charte de postes'!F54*10+1,Tableau_Lancer_la_requête_à_partir_de_apps_U_B11_1[],2,FALSE),\"\")","v":840899661185},{"$f":"IFERROR(VLOOKUP('Pilotage charte de postes'!H54*10+1,Tableau_Lancer_la_requête_à_partir_de_apps_U_B11_1[],2,FALSE),\"\")","v":1301002134668},{"$f":"IFERROR(VLOOKUP('Pilotage charte de postes'!I54*10+1,Tableau_Lancer_la_requête_à_partir_de_apps_U_B11_1[],2,FALSE),\"\")","v":183412},{"$f":"IFERROR(VLOOKUP('Pilotage charte de postes'!J54*10+1,Tableau_Lancer_la_requête_à_partir_de_apps_U_B11_1[],2,FALSE),\"\")","v":64354029872},{"$f":"IFERROR(VLOOKUP('Pilotage charte de postes'!K54*10+1,Tableau_Lancer_la_requête_à_partir_de_apps_U_B11_1[],2,FALSE),\"\")","v":85266910723},{"$f":"IFERROR(VLOOKUP('Pilotage charte de postes'!L54*10+1,Tableau_Lancer_la_requête_à_partir_de_apps_U_B11_1[],2,FALSE),\"\")","v":149620940599}]

{"sheet":"Provincial non uniformisé","index":1,"n_rows":54,"n_cols":11,"rows_kept":54,"cut":false,"hidden":false,"merged":[[0,0,1,10],[3,0,4,2],[3,3,3,6],[3,7,3,10]]}
["DONNÉES DE L'ÉVALUATION FONCIÈRE"]
[]
[]
["CATÉGORIE (Utilisation)",null,null,"VALEURS IMPOSABLES",null,null,null,"VALEURS NON IMPOSABLES"]
[null,null,null,"NOMBRE","TERRAINS","BÂTIMENTS","IMMEUBLES","NOMBRE","TERRAINS","BÂTIMENTS","IMMEUBLES"]
["1-- TOTALE DE LA CATÉGORIE RÉSIDENTIELLE",null,null,{"$f":"IFERROR(VLOOKUP('Pilotage charte de postes'!D6*10,Tableau_Lancer_la_requête_à_partir_de_apps_U_B11_1[],2,FALSE),\"\")","v":2808549},{"$f":"IFERROR(VLOOKUP('Pilotage charte de postes'!E6*10,Tableau_Lancer_la_requête_à_partir_de_apps_U_B11_1[],2,FALSE),\"\")","v":305575602674},{"$f":"IFERROR(VLOOKUP('Pilotage charte de postes'!F6*10,Tableau_Lancer_la_requête_à_partir_de_apps_U_B11_1[],2,FALSE),\"\")","v":641272674481},{"$f":"IFERROR(VLOOKUP('Pilotage charte de postes'!H6*10,Tableau_Lancer_la_requête_à_partir_de_apps_U_B11_1[],2,FALSE),\"\")","v":946848277155},{"$f":"IFERROR(VLOOKUP('Pilotage charte de postes'!I6*10,Tableau_Lancer_la_requête_à_partir_de_apps_U_B11_1[],2,FALSE),\"\")","v":4917},{"$f":"IFERROR(VLOOKUP('Pilotage charte de postes'!J6*10,Tableau_Lancer_la_requête_à_partir_de_apps_U_B11_1[],2,FALSE),\"\")","v":2174345876},{"$f":"IFERROR(VLOOKUP('Pilotage charte de postes'!K6*10,Tableau_Lancer_la_requête_à_partir_de_apps_U_B11_1[],2,FALSE),\"\")","v":4274915803},{"$f":"IFERROR(VLOOKUP('Pilotage charte de postes'!L6*10,Tableau_Lancer_la_requête_à_partir_de_apps_U_B11_1[],2,FALSE),\"\")","v":6449261679}]
["   10 -- Totale Logements",null,null,{"$f":"IFERROR(VLOOKUP('Pilotage charte de postes'!D7*10,Tableau_Lancer_la_requête_à_partir_de_apps_U_B11_1[],2,FALSE),\"\")","v":2548288},{"$f":"IFERROR(VLOOKUP('Pilotage charte de postes'!E7*10,Tableau_Lancer_la_requête_à_partir_de_apps_U_B11_1[],2,FALSE),\"\")","v":289963053060},{"$f":"IFERROR(VLOOKUP('Pilotage charte de postes'!F7*10,Tableau_Lancer_la_requête_à_partir_de_apps_U_B11_1[],2,FALSE),\"\")","v":608420562426},{"$f":"IFERROR(VLOOKUP('Pilotage charte de postes'!H7*10,Tableau_Lancer_la_requête_à_partir_de_apps_U_B11_1[],2,FALSE),\"\")","v":898383615486},{"$f":"IFERROR(VLOOKUP('Pilotage charte de postes'!I7*10,Tableau_Lancer_la_requête_à_partir_de_apps_U_B11_1[],2,FALSE),\"\")","v":1706},{"$f":"IFERROR(VLOOKUP('Pilotage charte de postes'!J7*10,Tableau_Lancer_la_requête_à_partir_de_apps_U_B11_1[],2,FALSE),\"\")","v":303712363},{"$f":"IFERROR(VLOOKUP('Pilotage charte de postes'!K7*10,Tableau_Lancer_la_requête_à_partir_de_apps_U_B11_1[],2,FALSE),\"\")","v":712375770},{"$f":"IFERROR(VLOOKUP('Pilotage charte de postes'!L7*10,Tableau_Lancer_la_requête_à_partir_de_apps_U_B11_1[],2,FALSE),\"\")","v":1016088133}]
[null,"1 logement « condominium »",null,{"$f":"IFERROR(VLOOKUP('Pilotage charte de postes'!D8*10,Tableau_Lancer_la_requête_à_partir_de_apps_U_B11_1[],2,FALSE),\"\")","v":366527},{"$f":"IFERROR(VLOOKUP('Pilotage charte de postes'!E8*10,Tableau_Lancer_la_requête_à_partir_de_apps_U_B11_1[],2,FALSE),\"\")","v":20778586207},{"$f":"IFERROR(VLOOKUP('Pilotage charte de postes'!F8*10,Tableau_Lancer_la_requête_à_partir_de_apps_U_B11_1[],2,FALSE),\"\")","v":89343496100},{"$f":"IFERROR(VLOOKUP('Pilotage charte de postes'!H8*10,Tableau_Lancer_la_requête_à_partir_de_apps_U_B11_1[],2,FALSE),\"\")","v":110122082307},{"$f":"IFERROR(VLOOKUP('Pilotage charte de postes'!I8*10,Tableau_Lancer_la_requête_à_partir_de_apps_U_B11_1[],2,FALSE),\"\")","v":6},{"$f":"IFERROR(VLOOKUP('Pilotage charte de postes'!J8*10,Tableau_Lancer_la_requête_à_partir_de_apps_U_B11_1[],2,FALSE),\"\")","v":472600},{"$f":"IFERROR(VLOOKUP('Pilotage charte de postes'!K8*10,Tableau_Lancer_la_requête_à_partir_de_apps_U_B11_1[],2,FALSE),\"\")","v":1418700},{"$f":"IFERROR(VLOOKUP('Pilotage charte de postes'!L8*10,Tableau_Lancer_la_requête_à_partir_de_apps_U_B11_1[],2,FALSE),\"\")","v":1891300}]
[null,"1 logement « sauf condominium »",null,{"$f":"IFERROR(VLOOKUP('Pilotage charte de postes'!D9*10,Tableau_Lancer_la_requête_à_partir_de_apps_U_B11_1[],2,FALSE),\"\")","v":1799690},{"$f":"IFERROR(VLOOKUP('Pilotage charte de postes'!E9*10,Tableau_Lancer_la_requête_à_partir_de_apps_U_B11_1[],2,FALSE),\"\")","v":200577050316},{"$f":"IFERROR(VLOOKUP('Pilotage charte de postes'!F9*10,Tableau_Lancer_la_requête_à_partir_de_apps_U_B11_1[],2,FALSE),\"\")","v":355220069643},{"$f":"IFERROR(VLOOKUP('Pilotage charte de postes'!H9*10,Tableau_Lancer_la_requête_à_partir_de_apps_U_B11_1[],2,FALSE),\"\")","v":555797119959},{"$f":"IFERROR(VLOOKUP('Pilotage charte de postes'!I9*10,Tableau_Lancer_la_requête_à_partir_de_apps_U_B11_1[],2,FALSE),\"\")","v":1337},{"$f":"IFERROR(VLOOKUP('Pilotage charte de postes'!J9*10,Tableau_Lancer_la_requête_à_partir_de_apps_U_B11_1[],2,FALSE),\"\")","v":123480000},{"$f":"IFERROR(VLOOKUP('Pilotage charte de postes'!K9*10,Tableau_Lancer_la_requête_à_partir_de_apps_U_B11_1[],2,FALSE),\"\")","v":215025650},{"$f":"IFERROR(VLOOKUP('Pilotage charte de postes'!L9*10,Tableau_Lancer_la_requête_à_partir_de_apps_U_B11_1[],2,FALSE),\"\")","v":338505650}]
[null,"2 logements",null,{"$f":"IFERROR(VLOOKUP('Pilotage charte de postes'!D10*10,Tableau_Lancer_la_requête_à_partir_de_apps_U_B11_1[],2,FALSE),\"\")","v":190439},{"$f":"IFERROR(VLOOKUP('Pilotage charte de postes'!E10*10,Tableau_Lancer_la_requête_à_partir_de_apps_U_B11_1[],2,FALSE),\"\")","v":24334846600},{"$f":"IFERROR(VLOOKUP('Pilotage charte de postes'!F10*10,Tableau_Lancer_la_requête_à_partir_de_apps_U_B11_1[],2,FALSE),\"\")","v":45786671002},{"$f":"IFERROR(VLOOKUP('Pilotage charte de postes'!H10*10,Tableau_Lancer_la_requête_à_partir_de_apps_U_B11_1[],2,FALSE),\"\")","v":70121517602},{"$f":"IFERROR(VLOOKUP('Pilotage charte de postes'!I10*10,Tableau_Lancer_la_requête_à_partir_de_apps_U_B11_1[],2,FALSE),\"\")","v":188},{"$f":"IFERROR(VLOOKUP('Pilotage charte de postes'!J10*10,Tableau_Lancer_la_requête_à_partir_de_apps_U_B11_1[],2,FALSE),\"\")","v":34437600},{"$f":"IFERROR(VLOOKUP('Pilotage charte de postes'!K10*10,Tableau_Lancer_la_requête_à_partir_de_apps_U_B11_1[],2,FALSE),\"\")","v":55059400},{"$f":"IFERROR(VLOOKUP('Pilotage charte de postes'!L10*10,Tableau_Lancer_la_requête_à_partir_de_apps_U_B11_1[],2,FALSE),\"\")","v":89497000}]
[null,"3 logements",null,{"$f":"IFERROR(VLOOKUP('Pilotage charte de postes'!D11*10,Tableau_Lancer_la_requête_à_partir_de_apps_U_B11_1[],2,FALSE),\"\")","v":85458},{"$f":"IFERROR(VLOOKUP('Pilotage charte de postes'!E11*10,Tableau_Lancer_la_requête_à_partir_de_apps_U_B11_1[],2,FALSE),\"\")","v":13942710200},{"$f":"IFERROR(VLOOKUP('Pilotage charte de postes'!F11*10,Tableau_Lancer_la_requête_à_partir_de_apps_U_B11_1[],2,FALSE),\"\")","v":28127548701},{"$f":"IFERROR(VLOOKUP('Pilotage charte de postes'!H11*10,Tableau_Lancer_la_requête_à_partir_de_apps_U_B11_1[],2,FALSE),\"\")","v":42070258901},{"$f":"IFERROR(VLOOKUP('Pilotage charte de postes'!I11*10,Tableau_Lancer_la_requête_à_partir_de_apps_U_B11_1[],2,FALSE),\"\")","v":41},{"$f":"IFERROR(VLOOKUP('Pilotage charte de postes'!J11*10,Tableau_Lancer_la_requête_à_partir_de_apps_U_B11_1[],2,FALSE),\"\")","v":7606900},{"$f":"IFERROR(VLOOKUP('Pilotage charte de postes'!K11*10,Tableau_Lancer_la_requête_à_partir_de_apps_U_B11_1[],2,FALSE),\"\")","v":14959800},{"$f":"IFERROR(VLOOKUP('Pilotage charte de postes'!L11*10,Tableau_Lancer_la_requête_à_partir_de_apps_U_B11_1[],2,FALSE),\"\")","v":22566700}]
[null,"4 logements",null,{"$f":"IFERROR(VLOOKUP('Pilotage charte de postes'!D12*10,Tableau_Lancer_la_requête_à_partir_de_apps_U_B11_1[],2,FALSE),\"\")","v":39974},{"$f":"IFERROR(VLOOKUP('Pilotage charte de postes'!E12*10,Tableau_Lancer_la_requête_à_partir_de_apps_U_B11_1[],2,FALSE),\"\")","v":6347115070},{"$f":"IFERROR(VLOOKUP('Pilotage charte de postes'!F12*10,Tableau_Lancer_la_requête_à_partir_de_apps_U_B11_1[],2,FALSE),\"\")","v":14147745280},{"$f":"IFERROR(VLOOKUP('Pilotage charte de postes'!H12*10,Tableau_Lancer_la_requête_à_partir_de_apps_U_B11_1[],2,FALSE),\"\")","v":20494860350},{"$f":"IFERROR(VLOOKUP('Pilotage charte de postes'!I12*10,Tableau_Lancer_la_requête_à_partir_de_apps_U_B11_1[],2,FALSE),\"\")","v":27},{"$f":"IFERROR(VLOOKUP('Pilotage charte de postes'!J12*10,Tableau_Lancer_la_requête_à_partir_de_apps_U_B11_1[],2,FALSE),\"\")","v":4864130},{"$f":"IFERROR(VLOOKUP('Pilotage charte de postes'!K12*10,Tableau_Lancer_la_requête_à_partir_de_apps_U_B11_1[],2,FALSE),\"\")","v":19519720},{"$f":"IFERROR(VLOOKUP('Pilotage charte de postes'!L12*10,Tableau_Lancer_la_requête_à_partir_de_apps_U_B11_1[],2,FALSE),\"\")","v":24383850}]
[null,"5 logements",null,{"$f":"IFERROR(VLOOKUP('Pilotage charte de postes'!D13*10,Tableau_Lancer_la_requête_à_partir_de_apps_U_B11_1[],2,FALSE),\"\")","v":11829},{"$f":"IFERROR(VLOOKUP('Pilotage charte de postes'!E13*10,Tableau_Lancer_la_requête_à_partir_de_apps_U_B11_1[],2,FALSE),\"\")","v":2562376500},{"$f":"IFERROR(VLOOKUP('Pilotage charte de postes'!F13*10,Tableau_Lancer_la_requête_à_partir_de_apps_U_B11_1[],2,FALSE),\"\")","v":5227985200},{"$f":"IFERROR(VLOOKUP('Pilotage charte de postes'!H13*10,Tableau_Lancer_la_requête_à_partir_de_apps_U_B11_1[],2,FALSE),\"\")","v":7790361700},{"$f":"IFERROR(VLOOKUP('Pilotage charte de postes'!I13*10,Tableau_Lancer_la_requête_à_partir_de_apps_U_B11_1[],2,FALSE),\"\")","v":9},{"$f":"IFERROR(VLOOKUP('Pilotage charte de postes'!J13*10,Tableau_Lancer_la_requête_à_partir_de_apps_U_B11_1[],2,FALSE),\"\")","v":3231500},{"$f":"IFERROR(VLOOKUP('Pilotage charte de postes'!K13*10,Tableau_Lancer_la_requête_à_partir_de_apps_U_B11_1[],2,FALSE),\"\")","v":5690500},{"$f":"IFERROR(VLOOKUP('Pilotage charte de postes'!L13*10,Tableau_Lancer_la_requête_à_partir_de_apps_U_B11_1[],2,FALSE),\"\")","v":8922000}]
[null,"6 à 9 logements",null,{"$f":"IFERROR(VLOOKUP('Pilotage charte de postes'!D14*10,Tableau_Lancer_la_requête_à_partir_de_apps_U_B11_1[],2,FALSE),\"\")","v":35260},{"$f":"IFERROR(VLOOKUP('Pilotage charte de postes'!E14*10,Tableau_Lancer_la_requête_à_partir_de_apps_U_B11_1[],2,FALSE),\"\")","v":7393052712},{"$f":"IFERROR(VLOOKUP('Pilotage charte de postes'!F14*10,Tableau_Lancer_la_requête_à_partir_de_apps_U_B11_1[],2,FALSE),\"\")","v":18539733130},{"$f":"IFERROR(VLOOKUP('Pilotage charte de postes'!H14*10,Tableau_Lancer_la_requête_à_partir_de_apps_U_B11_1[],2,FALSE),\"\")","v":25932785842},{"$f":"IFERROR(VLOOKUP('Pilotage charte de postes'!I14*10,Tableau_Lancer_la_requête_à_partir_de_apps_U_B11_1[],2,FALSE),\"\")","v":33},{"$f":"IFERROR(VLOOKUP('Pilotage charte de postes'!J14*10,Tableau_Lancer_la_requête_à_partir_de_apps_U_B11_1[],2,FALSE),\"\")","v":11329088},{"$f":"IFERROR(VLOOKUP('Pilotage charte de postes'!K14*10,Tableau_Lancer_la_requête_à_partir_de_apps_U_B11_1[],2,FALSE),\"\")","v":22623670},{"$f":"IFERROR(VLOOKUP('Pilotage charte de postes'!L14*10,Tableau_Lancer_la_requête_à_partir_de_apps_U_B11_1[],2,FALSE),\"\")","v":33952758}]
[null,"10 à 19 logements",null,{"$f":"IFERROR(VLOOKUP('Pilotage charte de postes'!D15*10,Tableau_Lancer_la_requête_à_partir_de_apps_U_B11_1[],2,FALSE),\"\")","v":11132},{"$f":"IFERROR(VLOOKUP('Pilotage charte de postes'!E15*10,Tableau_Lancer_la_requête_à_partir_de_apps_U_B11_1[],2,FALSE),\"\")","v":4023817119},{"$f":"IFERROR(VLOOKUP('Pilotage charte de postes'!F15*10,Tableau_Lancer_la_requête_à_partir_de_apps_U_B11_1[],2,FALSE),\"\")","v":11956308491},{"$f":"IFERROR(VLOOKUP('Pilotage charte de postes'!H15*10,Tableau_Lancer_la_requête_à_partir_de_apps_U_B11_1[],2,FALSE),\"\")","v":15980125610},{"$f":"IFERROR(VLOOKUP('Pilotage charte de postes'!I15*10,Tableau_Lancer_la_requête_à_partir_de_apps_U_B11_1[],2,FALSE),\"\")","v":38},{"$f":"IFERROR(VLOOKUP('Pilotage charte de postes'!J15*10,Tableau_Lancer_la_requête_à_partir_de_apps_U_B11_1[],2,FALSE),\"\")","v":14947381},{"$f":"IFERROR(VLOOKUP('Pilotage charte de postes'!K15*10,Tableau_Lancer_la_requête_à_partir_de_apps_U_B11_1[],2,FALSE),\"\")","v":63183509},{"$f":"IFERROR(VLOOKUP('Pilotage charte de postes'!L15*10,Tableau_Lancer_la_requête_à_partir_de_apps_U_B11_1[],2,FALSE),\"\")","v":78130890}]
[null,"20 à 29 logements",null,{"$f":"IFERROR(VLOOKUP('Pilotage charte de postes'!D16*10,Tableau_Lancer_la_requête_à_partir_de_apps_U_B11_1[],2,FALSE),\"\")","v":3387},{"$f":"IFERROR(VLOOKUP('Pilotage charte de postes'!E16*10,Tableau_Lancer_la_requête_à_partir_de_apps_U_B11_1[],2,FALSE),\"\")","v":1943250800},{"$f":"IFERROR(VLOOKUP('Pilotage charte de postes'!F16*10,Tableau_Lancer_la_requête_à_partir_de_apps_U_B11_1[],2,FALSE),\"\")","v":6202392700},{"$f":"IFERROR(VLOOKUP('Pilotage charte de postes'!H16*10,Tableau_Lancer_la_requête_à_partir_de_apps_U_B11_1[],2,FALSE),\"\")","v":8145643500},{"$f":"IFERROR(VLOOKUP('Pilotage charte de postes'!I16*10,Tableau_Lancer_la_requête_à_partir_de_apps_U_B11_1[],2,FALSE),\"\")","v":12},{"$f":"IFERROR(VLOOKUP('Pilotage charte de postes'!J16*10,Tableau_Lancer_la_requête_à_partir_de_apps_U_B11_1[],2,FALSE),\"\")","v":8414200},{"$f":"IFERROR(VLOOKUP('Pilotage charte de postes'!K16*10,Tableau_Lancer_la_requête_à_partir_de_apps_U_B11_1[],2,FALSE),\"\")","v":39156400},{"$f":"IFERROR(VLOOKUP('Pilotage charte de postes'!L16*10,Tableau_Lancer_la_requête_à_partir_de_apps_U_B11_1[],2,FALSE),\"\")","v":47570600}]
[null,"30 à 49 logements",null,{"$f":"IFERROR(VLOOKUP('Pilotage charte de postes'!D17*10,Tableau_Lancer_la_requête_à_partir_de_apps_U_B11_1[],2,FALSE),\"\")","v":2518},{"$f":"IFERROR(VLOOKUP('Pilotage charte de postes'!E17*10,Tableau_Lancer_la_requête_à_partir_de_apps_U_B11_1[],2,FALSE),\"\")","v":2288631700},{"$f":"IFERROR(VLOOKUP('Pilotage charte de postes'!F17*10,Tableau_Lancer_la_requête_à_partir_de_apps_U_B11_1[],2,FALSE),\"\")","v":7835148200},{"$f":"IFERROR(VLOOKUP('Pilotage charte de postes'!H17*10,Tableau_Lancer_la_requête_à_partir_de_apps_U_B11_1[],2,FALSE),\"\")","v":10123779900},{"$f":"IFERROR(VLOOKUP('Pilotage charte de postes'!I17*10,Tableau_Lancer_la_requête_à_partir_de_apps_U_B11_1[],2,FALSE),\"\")","v":4},{"$f":"IFERROR(VLOOKUP('Pilotage charte de postes'!J17*10,Tableau_Lancer_la_requête_à_partir_de_apps_U_B11_1[],2,FALSE),\"\")","v":8674800},{"$f":"IFERROR(VLOOKUP('Pilotage charte de postes'!K17*10,Tableau_Lancer_la_requête_à_partir_de_apps_U_B11_1[],2,FALSE),\"\")","v":34366900},{"$f":"IFERROR(VLOOKUP('Pilotage charte de postes'!L17*10,Tableau_Lancer_la_requête_à_partir_de_apps_U_B11_1[],2,FALSE),\"\")","v":43041700}]
[null,"50 à 99 logements",null,{"$f":"IFERROR(VLOOKUP('Pilotage charte de postes'!D18*10,Tableau_Lancer_la_requête_à_partir_de_apps_U_B11_1[],2,FALSE),\"\")","v":1294},{"$f":"IFERROR(VLOOKUP('Pilotage charte de postes'!E18*10,Tableau_Lancer_la_requête_à_partir_de_apps_U_B11_1[],2,FALSE),\"\")","v":2185799400},{"$f":"IFERROR(VLOOKUP('Pilotage charte de postes'!F18*10,Tableau_Lancer_la_requête_à_partir_de_apps_U_B11_1[],2,FALSE),\"\")","v":8898044300},{"$f":"IFERROR(VLOOKUP('Pilotage charte de postes'!H18*10,Tableau_Lancer_la_requête_à_partir_de_apps_U_B11_1[],2,FALSE),\"\")","v":11083843700},{"$f":"IFERROR(VLOOKUP('Pilotage charte de postes'!I18*10,Tableau_Lancer_la_requête_à_partir_de_apps_U_B11_1[],2,FALSE),\"\")","v":3},{"$f":"IFERROR(VLOOKUP('Pilotage charte de postes'!J18*10,Tableau_Lancer_la_requête_à_partir_de_apps_U_B11_1[],2,FALSE),\"\")","v":6831500},{"$f":"IFERROR(VLOOKUP('Pilotage charte de postes'!K18*10,Tableau_Lancer_la_requête_à_partir_de_apps_U_B11_1[],2,FALSE),\"\")","v":34353500},{"$f":"IFERROR(VLOOKUP('Pilotage charte de postes'!L18*10,Tableau_Lancer_la_requête_à_partir_de_apps_U_B11_1[],2,FALSE),\"\")","v":41185000}]
[null,"100 à 199 logements",null,{"$f":"IFERROR(VLOOKUP('Pilotage charte de postes'!D19*10,Tableau_Lancer_la_requête_à_partir_de_apps_U_B11_1[],2,FALSE),\"\")","v":602},{"$f":"IFERROR(VLOOKUP('Pilotage charte de postes'!E19*10,Tableau_Lancer_la_requête_à_partir_de_apps_U_B11_1[],2,FALSE),\"\")","v":2062436136},{"$f":"IFERROR(VLOOKUP('Pilotage charte de postes'!F19*10,Tableau_Lancer_la_requête_à_partir_de_apps_U_B11_1[],2,FALSE),\"\")","v":9771435779},{"$f":"IFERROR(VLOOKUP('Pilotage charte de postes'!H19*10,Tableau_Lancer_la_requête_à_partir_de_apps_U_B11_1[],2,FALSE),\"\")","v":11833871915},{"$f":"IFERROR(VLOOKUP('Pilotage charte de postes'!I19*10,Tableau_Lancer_la_requête_à_partir_de_apps_U_B11_1[],2,FALSE),\"\")","v":5},{"$f":"IFERROR(VLOOKUP('Pilotage charte de postes'!J19*10,Tableau_Lancer_la_requête_à_partir_de_apps_U_B11_1[],2,FALSE),\"\")","v":41145364},{"$f":"IFERROR(VLOOKUP('Pilotage charte de postes'!K19*10,Tableau_Lancer_la_requête_à_partir_de_apps_U_B11_1[],2,FALSE),\"\")","v":75409921},{"$f":"IFERROR(VLOOKUP('Pilotage charte de postes'!L19*10,Tableau_Lancer_la_requête_à_partir_de_apps_U_B11_1[],2,FALSE),\"\")","v":116555285}]
[null,"200 logements et plus",null,{"$f":"IFERROR(VLOOKUP('Pilotage charte de postes'!D20*10,Tableau_Lancer_la_requête_à_partir_de_apps_U_B11_1[],2,FALSE),\"\")","v":178},{"$f":"IFERROR(VLOOKUP('Pilotage charte de postes'!E20*10,Tableau_Lancer_la_requête_à_partir_de_apps_U_B11_1[],2,FALSE),\"\")","v":1523380300},{"$f":"IFERROR(VLOOKUP('Pilotage charte de postes'!F20*10,Tableau_Lancer_la_requête_à_partir_de_apps_U_B11_1[],2,FALSE),\"\")","v":7363983900},{"$f":"IFERROR(VLOOKUP('Pilotage charte de postes'!H20*10,Tableau_Lancer_la_requête_à_partir_de_apps_U_B11_1[],2,FALSE),\"\")","v":8887364200},{"$f":"IFERROR(VLOOKUP('Pilotage charte de postes'!I20*10,Tableau_Lancer_la_requête_à_partir_de_apps_U_B11_1[],2,FALSE),\"\")","v":3},{"$f":"IFERROR(VLOOKUP('Pilotage charte de postes'!J20*10,Tableau_Lancer_la_requête_à_partir_de_apps_U_B11_1[],2,FALSE),\"\")","v":38277300},{"$f":"IFERROR(VLOOKUP('Pilotage charte de postes'!K20*10,Tableau_Lancer_la_requête_à_partir_de_apps_U_B11_1[],2,FALSE),\"\")","v":131608100},{"$f":"IFERROR(VLOOKUP('Pilotage charte de postes'!L20*10,Tableau_Lancer_la_requête_à_partir_de_apps_U_B11_1[],2,FALSE),\"\")","v":169885400}]
["   11 -- Chalets, maisons de villégiatures",null,null,{"$f":"IFERROR(VLOOKUP('Pilotage charte de postes'!D21*10,Tableau_Lancer_la_requête_à_partir_de_apps_U_B11_1[],2,FALSE),\"\")","v":137186},{"$f":"IFERROR(VLOOKUP('Pilotage charte de postes'!E21*10,Tableau_Lancer_la_requête_à_partir_de_apps_U_B11_1[],2,FALSE),\"\")","v":9439539500},{"$f":"IFERROR(VLOOKUP('Pilotage charte de postes'!F21*10,Tableau_Lancer_la_requête_à_partir_de_apps_U_B11_1[],2,FALSE),\"\")","v":13257663100},{"$f":"IFERROR(VLOOKUP('Pilotage charte de postes'!H21*10,Tableau_Lancer_la_requête_à_partir_de_apps_U_B11_1[],2,FALSE),\"\")","v":22697202600},{"$f":"IFERROR(VLOOKUP('Pilotage charte de postes'!I21*10,Tableau_Lancer_la_requête_à_partir_de_apps_U_B11_1[],2,FALSE),\"\")","v":400},{"$f":"IFERROR(VLOOKUP('Pilotage charte de postes'!J21*10,Tableau_Lancer_la_requête_à_partir_de_apps_U_B11_1[],2,FALSE),\"\")","v":161900900},{"$f":"IFERROR(VLOOKUP('Pilotage charte de postes'!K21*10,Tableau_Lancer_la_requête_à_partir_de_apps_U_B11_1[],2,FALSE),\"\")","v":26504300},{"$f":"IFERROR(VLOOKUP('Pilotage charte de postes'!L21*10,Tableau_Lancer_la_requête_à_partir_de_apps_U_B11_1[],2,FALSE),\"\")","v":188405200}]
["   12 -- Maisons mobiles, roulottes",null,null,{"$f":"IFERROR(VLOOKUP('Pilotage charte de postes'!D22*10,Tableau_Lancer_la_requête_à_partir_de_apps_U_B11_1[],2,FALSE),\"\")","v":46172},{"$f":"IFERROR(VLOOKUP('Pilotage charte de postes'!E22*10,Tableau_Lancer_la_requête_à_partir_de_apps_U_B11_1[],2,FALSE),\"\")","v":1151462900},{"$f":"IFERROR(VLOOKUP('Pilotage charte de postes'!F22*10,Tableau_Lancer_la_requête_à_partir_de_apps_U_B11_1[],2,FALSE),\"\")","v":3367641100},{"$f":"IFERROR(VLOOKUP('Pilotage charte de postes'!H22*10,Tableau_Lancer_la_requête_à_partir_de_apps_U_B11_1[],2,FALSE),\"\")","v":4519104000},{"$f":"IFERROR(VLOOKUP('Pilotage charte de postes'!I22*10,Tableau_Lancer_la_requête_à_partir_de_apps_U_B11_1[],2,FALSE),\"\")","v":149},{"$f":"IFERROR(VLOOKUP('Pilotage charte de postes'!J22*10,Tableau_Lancer_la_requête_à_partir_de_apps_U_B11_1[],2,FALSE),\"\")","v":809300},{"$f":"IFERROR(VLOOKUP('Pilotage charte de postes'!K22*10,Tableau_Lancer_la_requête_à_partir_de_apps_U_B11_1[],2,FALSE),\"\")","v":3660800},{"$f":"IFERROR(VLOOKUP('Pilotage charte de postes'!L22*10,Tableau_Lancer_la_requête_à_partir_de_apps_U_B11_1[],2,FALSE),\"\")","v":4470100}]
["   15 -- Habitations en commun",null,null,{"$f":"IFERROR(VLOOKUP('Pilotage charte de postes'!D23*10,Tableau_Lancer_la_requête_à_partir_de_apps_U_B11_1[],2,FALSE),\"\")","v":4152},{"$f":"IFERROR(VLOOKUP('Pilotage charte de postes'!E23*10,Tableau_Lancer_la_requête_à_partir_de_apps_U_B11_1[],2,FALSE),\"\")","v":2376887790},{"$f":"IFERROR(VLOOKUP('Pilotage charte de postes'!F23*10,Tableau_Lancer_la_requête_à_partir_de_apps_U_B11_1[],2,FALSE),\"\")","v":14831664199},{"$f":"IFERROR(VLOOKUP('Pilotage charte de postes'!H23*10,Tableau_Lancer_la_requête_à_partir_de_apps_U_B11_1[],2,FALSE),\"\")","v":17208551989},{"$f":"IFERROR(VLOOKUP('Pilotage charte de postes'!I23*10,Tableau_Lancer_la_requête_à_partir_de_apps_U_B11_1[],2,FALSE),\"\")","v":1450},{"$f":"IFERROR(VLOOKUP('Pilotage charte de postes'!J23*10,Tableau_Lancer_la_requête_à_partir_de_apps_U_B11_1[],2,FALSE),\"\")","v":1384838470},{"$f":"IFERROR(VLOOKUP('Pilotage charte de postes'!K23*10,Tableau_Lancer_la_requête_à_partir_de_apps_U_B11_1[],2,FALSE),\"\")","v":3458577130},{"$f":"IFERROR(VLOOKUP('Pilotage charte de postes'!L23*10,Tableau_Lancer_la_requête_à_partir_de_apps_U_B11_1[],2,FALSE),\"\")","v":4843415600}]
["   16 -- Hôtels résidentiels",null,null,{"$f":"IFERROR(VLOOKUP('Pilotage charte de postes'!D24*10,Tableau_Lancer_la_requête_à_partir_de_apps_U_B11_1[],2,FALSE),\"\")","v":28},{"$f":"IFERROR(VLOOKUP('Pilotage charte de postes'!E24*10,Tableau_Lancer_la_requête_à_partir_de_apps_U_B11_1[],2,FALSE),\"\")","v":7558000},{"$f":"IFERROR(VLOOKUP('Pilotage charte de postes'!F24*10,Tableau_Lancer_la_requête_à_partir_de_apps_U_B11_1[],2,FALSE),\"\")","v":16036500},{"$f":"IFERROR(VLOOKUP('Pilotage charte de postes'!H24*10,Tableau_Lancer_la_requête_à_partir_de_apps_U_B11_1[],2,FALSE),\"\")","v":23594500},{"$f":"IFERROR(VLOOKUP('Pilotage charte de postes'!I24*10,Tableau_Lancer_la_requête_à_partir_de_apps_U_B11_1[],2,FALSE),\"\")","v":""},{"$f":"IFERROR(VLOOKUP('Pilotage charte de postes'!J24*10,Tableau_Lancer_la_requête_à_partir_de_apps_U_B11_1[],2,FALSE),\"\")","v":""},{"$f":"IFERROR(VLOOKUP('Pilotage charte de postes'!K24*10,Tableau_Lancer_la_requête_à_partir_de_apps_U_B11_1[],2,FALSE),\"\")","v":""},{"$f":"IFERROR(VLOOKUP('Pilotage charte de postes'!L24*10,Tableau_Lancer_la_requête_à_partir_de_apps_U_B11_1[],2,FALSE),\"\")","v":""}]
["   17 -- Parcs de roulottes et de maisons mobiles",null,null,{"$f":"IFERROR(VLOOKUP('Pilotage charte de postes'!D25*10,Tableau_Lancer_la_requête_à_partir_de_apps_U_B11_1[],2,FALSE),\"\")","v":177},{"$f":"IFERROR(VLOOKUP('Pilotage charte de postes'!E25*10,Tableau_Lancer_la_requête_à_partir_de_apps_U_B11_1[],2,FALSE),\"\")","v":133268100},{"$f":"IFERROR(VLOOKUP('Pilotage charte de postes'!F25*10,Tableau_Lancer_la_requête_à_partir_de_apps_U_B11_1[],2,FALSE),\"\")","v":10240100},{"$f":"IFERROR(VLOOKUP('Pilotage charte de postes'!H25*10,Tableau_Lancer_la_requête_à_partir_de_apps_U_B11_1[],2,FALSE),\"\")","v":143508200},{"$f":"IFERROR(VLOOKUP('Pilotage charte de postes'!I25*10,Tableau_Lancer_la_requête_à_partir_de_apps_U_B11_1[],2,FALSE),\"\")","v":9},{"$f":"IFERROR(VLOOKUP('Pilotage charte de postes'!J25*10,Tableau_Lancer_la_requête_à_partir_de_apps_U_B11_1[],2,FALSE),\"\")","v":784800},{"$f":"IFERROR(VLOOKUP('Pilotage charte de postes'!K25*10,Tableau_Lancer_la_requête_à_partir_de_apps_U_B11_1[],2,FALSE),\"\")","v":2300},{"$f":"IFERROR(VLOOKUP('Pilotage charte de postes'!L25*10,Tableau_Lancer_la_requête_à_partir_de_apps_U_B11_1[],2,FALSE),\"\")","v":787100}]
["   18 - 19 --  Autres immeubles résidentiels",null,null,{"$f":"IFERROR(VLOOKUP('Pilotage charte de postes'!D26*10,Tableau_Lancer_la_requête_à_partir_de_apps_U_B11_1[],2,FALSE),\"\")","v":72546},{"$f":"IFERROR(VLOOKUP('Pilotage charte de postes'!E26*10,Tableau_Lancer_la_requête_à_partir_de_apps_U_B11_1[],2,FALSE),\"\")","v":2503833324},{"$f":"IFERROR(VLOOKUP('Pilotage charte de postes'!F26*10,Tableau_Lancer_la_requête_à_partir_de_apps_U_B11_1[],2,FALSE),\"\")","v":1368867056},{"$f":"IFERROR(VLOOKUP('Pilotage charte de postes'!H26*10,Tableau_Lancer_la_requête_à_partir_de_apps_U_B11_1[],2,FALSE),\"\")","v":3872700380},{"$f":"IFERROR(VLOOKUP('Pilotage charte de postes'!I26*10,Tableau_Lancer_la_requête_à_partir_de_apps_U_B11_1[],2,FALSE),\"\")","v":1203},{"$f":"IFERROR(VLOOKUP('Pilotage charte de postes'!J26*10,Tableau_Lancer_la_requête_à_partir_de_apps_U_B11_1[],2,FALSE),\"\")","v":322300043},{"$f":"IFERROR(VLOOKUP('Pilotage charte de postes'!K26*10,Tableau_Lancer_la_requête_à_partir_de_apps_U_B11_1[],2,FALSE),\"\")","v":73795503},{"$f":"IFERROR(VLOOKUP('Pilotage charte de postes'!L26*10,Tableau_Lancer_la_requête_à_partir_de_apps_U_B11_1[],2,FALSE),\"\")","v":396095546}]
["2 - 3 --TOTALE DE LA CATÉGORIE INDUSTRIES MANUFACTURIÈRES",null,null,{"$f":"IFERROR(VLOOKUP('Pilotage charte de postes'!D27*10,Tableau_Lancer_la_requête_à_partir_de_apps_U_B11_1[],2,FALSE),\"\")","v":10819},{"$f":"IFERROR(VLOOKUP('Pilotage charte de postes'!E27*10,Tableau_Lancer_la_requête_à_partir_de_apps_U_B11_1[],2,FALSE),\"\")","v":5870104200},{"$f":"IFERROR(VLOOKUP('Pilotage charte de postes'!F27*10,Tableau_Lancer_la_requête_à_partir_de_apps_U_B11_1[],2,FALSE),\"\")","v":20565358600},{"$f":"IFERROR(VLOOKUP('Pilotage charte de postes'!H27*10,Tableau_Lancer_la_requête_à_partir_de_apps_U_B11_1[],2,FALSE),\"\")","v":26435462800},{"$f":"IFERROR(VLOOKUP('Pilotage charte de postes'!I27*10,Tableau_Lancer_la_requête_à_partir_de_apps_U_B11_1[],2,FALSE),\"\")","v":132},{"$f":"IFERROR(VLOOKUP('Pilotage charte de postes'!J27*10,Tableau_Lancer_la_requête_à_partir_de_apps_U_B11_1[],2,FALSE),\"\")","v":214961201},{"$f":"IFERROR(VLOOKUP('Pilotage charte de postes'!K27*10,Tableau_Lancer_la_requête_à_partir_de_apps_U_B11_1[],2,FALSE),\"\")","v":217236702},{"$f":"IFERROR(VLOOKUP('Pilotage charte de postes'!L27*10,Tableau_Lancer_la_requête_à_partir_de_apps_U_B11_1[],2,FALSE),\"\")","v":432197903}]
["   2 - 3 -- Industries manufacturières sauf « condominium »",null,null,{"$f":"IFERROR(VLOOKUP('Pilotage charte de postes'!D28*10,Tableau_Lancer_la_requête_à_partir_de_apps_U_B11_1[],2,FALSE),\"\")","v":10108},{"$f":"IFERROR(VLOOKUP('Pilotage charte de postes'!E28*10,Tableau_Lancer_la_requête_à_partir_de_apps_U_B11_1[],2,FALSE),\"\")","v":5751849300},{"$f":"IFERROR(VLOOKUP('Pilotage charte de postes'!F28*10,Tableau_Lancer_la_requête_à_partir_de_apps_U_B11_1[],2,FALSE),\"\")","v":20228247300},{"$f":"IFERROR(VLOOKUP('Pilotage charte de postes'!H28*10,Tableau_Lancer_la_requête_à_partir_de_apps_U_B11_1[],2,FALSE),\"\")","v":25980096600},{"$f":"IFERROR(VLOOKUP('Pilotage charte de postes'!I28*10,Tableau_Lancer_la_requête_à_partir_de_apps_U_B11_1[],2,FALSE),\"\")","v":130},{"$f":"IFERROR(VLOOKUP('Pilotage charte de postes'!J28*10,Tableau_Lancer_la_requête_à_partir_de_apps_U_B11_1[],2,FALSE),\"\")","v":214873401},{"$f":"IFERROR(VLOOKUP('Pilotage charte de postes'!K28*10,Tableau_Lancer_la_requête_à_partir_de_apps_U_B11_1[],2,FALSE),\"\")","v":216882002},{"$f":"IFERROR(VLOOKUP('Pilotage charte de postes'!L28*10,Tableau_Lancer_la_requête_à_partir_de_apps_U_B11_1[],2,FALSE),\"\")","v":431755403}]
["   2 - 3 -- Industries manufacturières « condominium »",null,null,{"$f":"IFERROR(VLOOKUP('Pilotage charte de postes'!D29*10,Tableau_Lancer_la_requête_à_partir_de_apps_U_B11_1[],2,FALSE),\"\")","v":711},{"$f":"IFERROR(VLOOKUP('Pilotage charte de postes'!E29*10,Tableau_Lancer_la_requête_à_partir_de_apps_U_B11_1[],2,FALSE),\"\")","v":118254900},{"$f":"IFERROR(VLOOKUP('Pilotage charte de postes'!F29*10,Tableau_Lancer_la_requête_à_partir_de_apps_U_B11_1[],2,FALSE),\"\")","v":337111300},{"$f":"IFERROR(VLOOKUP('Pilotage charte de postes'!H29*10,Tableau_Lancer_la_requête_à_partir_de_apps_U_B11_1[],2,FALSE),\"\")","v":455366200},{"$f":"IFERROR(VLOOKUP('Pilotage charte de postes'!I29*10,Tableau_Lancer_la_requête_à_partir_de_apps_U_B11_1[],2,FALSE),\"\")","v":2},{"$f":"IFERROR(VLOOKUP('Pilotage charte de postes'!J29*10,Tableau_Lancer_la_requête_à_partir_de_apps_U_B11_1[],2,FALSE),\"\")","v":87800},{"$f":"IFERROR(VLOOKUP('Pilotage charte de postes'!K29*10,Tableau_Lancer_la_requête_à_partir_de_apps_U_B11_1[],2,FALSE),\"\")","v":354700},{"$f":"IFERROR(VLOOKUP('Pilotage charte de postes'!L29*10,Tableau_Lancer_la_requête_à_partir_de_apps_U_B11_1[],2,FALSE),\"\")","v":442500}]
["4 --- TOTALE DE LA CATÉGORIE TRANSPORTS, COMM., SERVICES PUBLICS",null,null,{"$f":"IFERROR(VLOOKUP('Pilotage charte de postes'!D30*10,Tableau_Lancer_la_requête_à_partir_de_apps_U_B11_1[],2,FALSE),\"\")","v":49940},{"$f":"IFERROR(VLOOKUP('Pilotage charte de postes'!E30*10,Tableau_Lancer_la_requête_à_partir_de_apps_U_B11_1[],2,FALSE),\"\")","v":6184222397},{"$f":"IFERROR(VLOOKUP('Pilotage charte de postes'!F30*10,Tableau_Lancer_la_requête_à_partir_de_apps_U_B11_1[],2,FALSE),\"\")","v":6641749241},{"$f":"IFERROR(VLOOKUP('Pilotage charte de postes'!H30*10,Tableau_Lancer_la_requête_à_partir_de_apps_U_B11_1[],2,FALSE),\"\")","v":12825971638},{"$f":"IFERROR(VLOOKUP('Pilotage charte de postes'!I30*10,Tableau_Lancer_la_requête_à_partir_de_apps_U_B11_1[],2,FALSE),\"\")","v":69795},{"$f":"IFERROR(VLOOKUP('Pilotage charte de postes'!J30*10,Tableau_Lancer_la_requête_à_partir_de_apps_U_B11_1[],2,FALSE),\"\")","v":5897200323},{"$f":"IFERROR(VLOOKUP('Pilotage charte de postes'!K30*10,Tableau_Lancer_la_requête_à_partir_de_apps_U_B11_1[],2,FALSE),\"\")","v":7354844919},{"$f":"IFERROR(VLOOKUP('Pilotage charte de postes'!L30*10,Tableau_Lancer_la_requête_à_partir_de_apps_U_B11_1[],2,FALSE),\"\")","v":13252045242}]
["   4111  Chemin de fer",null,null,{"$f":"IFERROR(VLOOKUP('Pilotage charte de postes'!D31*10,Tableau_Lancer_la_requête_à_partir_de_apps_U_B11_1[],2,FALSE),\"\")","v":914},{"$f":"IFERROR(VLOOKUP('Pilotage charte de postes'!E31*10,Tableau_Lancer_la_requête_à_partir_de_apps_U_B11_1[],2,FALSE),\"\")","v":2264765601},{"$f":"IFERROR(VLOOKUP('Pilotage charte de postes'!F31*10,Tableau_Lancer_la_requête_à_partir_de_apps_U_B11_1[],2,FALSE),\"\")","v":3089850},{"$f":"IFERROR(VLOOKUP('Pilotage charte de postes'!H31*10,Tableau_Lancer_la_requête_à_partir_de_apps_U_B11_1[],2,FALSE),\"\")","v":2267855451},{"$f":"IFERROR(VLOOKUP('Pilotage charte de postes'!I31*10,Tableau_Lancer_la_requête_à_partir_de_apps_U_B11_1[],2,FALSE),\"\")","v":263},{"$f":"IFERROR(VLOOKUP('Pilotage charte de postes'!J31*10,Tableau_Lancer_la_requête_à_partir_de_apps_U_B11_1[],2,FALSE),\"\")","v":511011695},{"$f":"IFERROR(VLOOKUP('Pilotage charte de postes'!K31*10,Tableau_Lancer_la_requête_à_partir_de_apps_U_B11_1[],2,FALSE),\"\")","v":1271400},{"$f":"IFERROR(VLOOKUP('Pilotage charte de postes'!L31*10,Tableau_Lancer_la_requête_à_partir_de_apps_U_B11_1[],2,FALSE),\"\")","v":512283095}]
["   46 -- Terrains et garages de stationnement",null,null,{"$f":"IFERROR(VLOOKUP('Pilotage charte de postes'!D32*10,Tableau_Lancer_la_requête_à_partir_de_apps_U_B11_1[],2,FALSE),\"\")","v":3117},{"$f":"IFERROR(VLOOKUP('Pilotage charte de postes'!E32*10,Tableau_Lancer_la_requête_à_partir_de_apps_U_B11_1[],2,FALSE),\"\")","v":1146486089},{"$f":"IFERROR(VLOOKUP('Pilotage charte de postes'!F32*10,Tableau_Lancer_la_requête_à_partir_de_apps_U_B11_1[],2,FALSE),\"\")","v":280722042},{"$f":"IFERROR(VLOOKUP('Pilotage charte de postes'!H32*10,Tableau_Lancer_la_requête_à_partir_de_apps_U_B11_1[],2,FALSE),\"\")","v":1427208131},{"$f":"IFERROR(VLOOKUP('Pilotage charte de postes'!I32*10,Tableau_Lancer_la_requête_à_partir_de_apps_U_B11_1[],2,FALSE),\"\")","v":931},{"$f":"IFERROR(VLOOKUP('Pilotage charte de postes'!J32*10,Tableau_Lancer_la_requête_à_partir_de_apps_U_B11_1[],2,FALSE),\"\")","v":626207341},{"$f":"IFERROR(VLOOKUP('Pilotage charte de postes'!K32*10,Tableau_Lancer_la_requête_à_partir_de_apps_U_B11_1[],2,FALSE),\"\")","v":148672523},{"$f":"IFERROR(VLOOKUP('Pilotage charte de postes'!L32*10,Tableau_Lancer_la_requête_à_partir_de_apps_U_B11_1[],2,FALSE),\"\")","v":774879864}]
["5 --- TOTALE DE LA CATÉGORIE COMMERCIALE",null,null,{"$f":"IFERROR(VLOOKUP('Pilotage charte de postes'!D33*10,Tableau_Lancer_la_requête_à_partir_de_apps_U_B11_1[],2,FALSE),\"\")","v":52953},{"$f":"IFERROR(VLOOKUP('Pilotage charte de postes'!E33*10,Tableau_Lancer_la_requête_à_partir_de_apps_U_B11_1[],2,FALSE),\"\")","v":27181748085},{"$f":"IFERROR(VLOOKUP('Pilotage charte de postes'!F33*10,Tableau_Lancer_la_requête_à_partir_de_apps_U_B11_1[],2,FALSE),\"\")","v":52069814043},{"$f":"IFERROR(VLOOKUP('Pilotage charte de postes'!H33*10,Tableau_Lancer_la_requête_à_partir_de_apps_U_B11_1[],2,FALSE),\"\")","v":79251562128},{"$f":"IFERROR(VLOOKUP('Pilotage charte de postes'!I33*10,Tableau_Lancer_la_requête_à_partir_de_apps_U_B11_1[],2,FALSE),\"\")","v":610},{"$f":"IFERROR(VLOOKUP('Pilotage charte de postes'!J33*10,Tableau_Lancer_la_requête_à_partir_de_apps_U_B11_1[],2,FALSE),\"\")","v":234571135},{"$f":"IFERROR(VLOOKUP('Pilotage charte de postes'!K33*10,Tableau_Lancer_la_requête_à_partir_de_apps_U_B11_1[],2,FALSE),\"\")","v":434415822},{"$f":"IFERROR(VLOOKUP('Pilotage charte de postes'!L33*10,Tableau_Lancer_la_requête_à_partir_de_apps_U_B11_1[],2,FALSE),\"\")","v":668986957}]
["   50 -- Centres et immeubles commerciaux",null,null,{"$f":"IFERROR(VLOOKUP('Pilotage charte de postes'!D34*10,Tableau_Lancer_la_requête_à_partir_de_apps_U_B11_1[],2,FALSE),\"\")","v":17359},{"$f":"IFERROR(VLOOKUP('Pilotage charte de postes'!E34*10,Tableau_Lancer_la_requête_à_partir_de_apps_U_B11_1[],2,FALSE),\"\")","v":14659475716},{"$f":"IFERROR(VLOOKUP('Pilotage charte de postes'!F34*10,Tableau_Lancer_la_requête_à_partir_de_apps_U_B11_1[],2,FALSE),\"\")","v":27429278884},{"$f":"IFERROR(VLOOKUP('Pilotage charte de postes'!H34*10,Tableau_Lancer_la_requête_à_partir_de_apps_U_B11_1[],2,FALSE),\"\")","v":42088754600},{"$f":"IFERROR(VLOOKUP('Pilotage charte de postes'!I34*10,Tableau_Lancer_la_requête_à_partir_de_apps_U_B11_1[],2,FALSE),\"\")","v":247},{"$f":"IFERROR(VLOOKUP('Pilotage charte de postes'!J34*10,Tableau_Lancer_la_requête_à_partir_de_apps_U_B11_1[],2,FALSE),\"\")","v":139583356},{"$f":"IFERROR(VLOOKUP('Pilotage charte de postes'!K34*10,Tableau_Lancer_la_requête_à_partir_de_apps_U_B11_1[],2,FALSE),\"\")","v":247218036},{"$f":"IFERROR(VLOOKUP('Pilotage charte de postes'!L34*10,Tableau_Lancer_la_requête_à_partir_de_apps_U_B11_1[],2,FALSE),\"\")","v":386801392}]
["   51 --  Ventes en gros",null,null,{"$f":"IFERROR(VLOOKUP('Pilotage charte de postes'!D35*10,Tableau_Lancer_la_requête_à_partir_de_apps_U_B11_1[],2,FALSE),\"\")","v":1922},{"$f":"IFERROR(VLOOKUP('Pilotage charte de postes'!E35*10,Tableau_Lancer_la_requête_à_partir_de_apps_U_B11_1[],2,FALSE),\"\")","v":1142695900},{"$f":"IFERROR(VLOOKUP('Pilotage charte de postes'!F35*10,Tableau_Lancer_la_requête_à_partir_de_apps_U_B11_1[],2,FALSE),\"\")","v":2411196700},{"$f":"IFERROR(VLOOKUP('Pilotage charte de postes'!H35*10,Tableau_Lancer_la_requête_à_partir_de_apps_U_B11_1[],2,FALSE),\"\")","v":3553892600},{"$f":"IFERROR(VLOOKUP('Pilotage charte de postes'!I35*10,Tableau_Lancer_la_requête_à_partir_de_apps_U_B11_1[],2,FALSE),\"\")","v":9},{"$f":"IFERROR(VLOOKUP('Pilotage charte de postes'!J35*10,Tableau_Lancer_la_requête_à_partir_de_apps_U_B11_1[],2,FALSE),\"\")","v":7777300},{"$f":"IFERROR(VLOOKUP('Pilotage charte de postes'!K35*10,Tableau_Lancer_la_requête_à_partir_de_apps_U_B11_1[],2,FALSE),\"\")","v":13159400},{"$f":"IFERROR(VLOOKUP('Pilotage charte de postes'!L35*10,Tableau_Lancer_la_requête_à_partir_de_apps_U_B11_1[],2,FALSE),\"\")","v":20936700}]
["   52 à 59 --    Ventes au détail (sauf 583 -)",null,null,{"$f":"IFERROR(VLOOKUP('Pilotage charte de postes'!D36*10,Tableau_Lancer_la_requête_à_partir_de_apps_U_B11_1[],2,FALSE),\"\")","v":22741},{"$f":"IFERROR(VLOOKUP('Pilotage charte de postes'!E36*10,Tableau_Lancer_la_requête_à_partir_de_apps_U_B11_1[],2,FALSE),\"\")","v":9571088668},{"$f":"IFERROR(VLOOKUP('Pilotage charte de postes'!F36*10,Tableau_Lancer_la_requête_à_partir_de_apps_U_B11_1[],2,FALSE),\"\")","v":16250196950},{"$f":"IFERROR(VLOOKUP('Pilotage charte de postes'!H36*10,Tableau_Lancer_la_requête_à_partir_de_apps_U_B11_1[],2,FALSE),\"\")","v":25821285618},{"$f":"IFERROR(VLOOKUP('Pilotage charte de postes'!I36*10,Tableau_Lancer_la_requête_à_partir_de_apps_U_B11_1[],2,FALSE),\"\")","v":298},{"$f":"IFERROR(VLOOKUP('Pilotage charte de postes'!J36*10,Tableau_Lancer_la_requête_à_partir_de_apps_U_B11_1[],2,FALSE),\"\")","v":74831368},{"$f":"IFERROR(VLOOKUP('Pilotage charte de postes'!K36*10,Tableau_Lancer_la_requête_à_partir_de_apps_U_B11_1[],2,FALSE),\"\")","v":148275286},{"$f":"IFERROR(VLOOKUP('Pilotage charte de postes'!L36*10,Tableau_Lancer_la_requête_à_partir_de_apps_U_B11_1[],2,FALSE),\"\")","v":223106654}]
["   583 -- Hôtels, motels et maisons de touristes",null,null,{"$f":"IFERROR(VLOOKUP('Pilotage charte de postes'!D37*10,Tableau_Lancer_la_requête_à_partir_de_apps_U_B11_1[],2,FALSE),\"\")","v":10931},{"$f":"IFERROR(VLOOKUP('Pilotage charte de postes'!E37*10,Tableau_Lancer_la_requête_à_partir_de_apps_U_B11_1[],2,FALSE),\"\")","v":1808487801},{"$f":"IFERROR(VLOOKUP('Pilotage charte de postes'!F37*10,Tableau_Lancer_la_requête_à_partir_de_apps_U_B11_1[],2,FALSE),\"\")","v":5979141509},{"$f":"IFERROR(VLOOKUP('Pilotage charte de postes'!H37*10,Tableau_Lancer_la_requête_à_partir_de_apps_U_B11_1[],2,FALSE),\"\")","v":7787629310},{"$f":"IFERROR(VLOOKUP('Pilotage charte de postes'!I37*10,Tableau_Lancer_la_requête_à_partir_de_apps_U_B11_1[],2,FALSE),\"\")","v":56},{"$f":"IFERROR(VLOOKUP('Pilotage charte de postes'!J37*10,Tableau_Lancer_la_requête_à_partir_de_apps_U_B11_1[],2,FALSE),\"\")","v":12379111},{"$f":"IFERROR(VLOOKUP('Pilotage charte de postes'!K37*10,Tableau_Lancer_la_requête_à_partir_de_apps_U_B11_1[],2,FALSE),\"\")","v":25763100},{"$f":"IFERROR(VLOOKUP('Pilotage charte de postes'!L37*10,Tableau_Lancer_la_requête_à_partir_de_apps_U_B11_1[],2,FALSE),\"\")","v":38142211}]
["   5 --- Commerciale sauf « condominium »",null,null,{"$f":"IFERROR(VLOOKUP('Pilotage charte de postes'!D38*10,Tableau_Lancer_la_requête_à_partir_de_apps_U_B11_1[],2,FALSE),\"\")","v":43547},{"$f":"IFERROR(VLOOKUP('Pilotage charte de postes'!E38*10,Tableau_Lancer_la_requête_à_partir_de_apps_U_B11_1[],2,FALSE),\"\")","v":26093940084},{"$f":"IFERROR(VLOOKUP('Pilotage charte de postes'!F38*10,Tableau_Lancer_la_requête_à_partir_de_apps_U_B11_1[],2,FALSE),\"\")","v":48032069742},{"$f":"IFERROR(VLOOKUP('Pilotage charte de postes'!H38*10,Tableau_Lancer_la_requête_à_partir_de_apps_U_B11_1[],2,FALSE),\"\")","v":74126009826},{"$f":"IFERROR(VLOOKUP('Pilotage charte de postes'!I38*10,Tableau_Lancer_la_requête_à_partir_de_apps_U_B11_1[],2,FALSE),\"\")","v":597},{"$f":"IFERROR(VLOOKUP('Pilotage charte de postes'!J38*10,Tableau_Lancer_la_requête_à_partir_de_apps_U_B11_1[],2,FALSE),\"\")","v":228995835},{"$f":"IFERROR(VLOOKUP('Pilotage charte de postes'!K38*10,Tableau_Lancer_la_requête_à_partir_de_apps_U_B11_1[],2,FALSE),\"\")","v":420397622},{"$f":"IFERROR(VLOOKUP('Pilotage charte de postes'!L38*10,Tableau_Lancer_la_requête_à_partir_de_apps_U_B11_1[],2,FALSE),\"\")","v":649393457}]
["   5 --- Commerciale « condominium »",null,null,{"$f":"IFERROR(VLOOKUP('Pilotage charte de postes'!D39*10,Tableau_Lancer_la_requête_à_partir_de_apps_U_B11_1[],2,FALSE),\"\")","v":9406},{"$f":"IFERROR(VLOOKUP('Pilotage charte de postes'!E39*10,Tableau_Lancer_la_requête_à_partir_de_apps_U_B11_1[],2,FALSE),\"\")","v":1087808001},{"$f":"IFERROR(VLOOKUP('Pilotage charte de postes'!F39*10,Tableau_Lancer_la_requête_à_partir_de_apps_U_B11_1[],2,FALSE),\"\")","v":4037744301},{"$f":"IFERROR(VLOOKUP('Pilotage charte de postes'!H39*10,Tableau_Lancer_la_requête_à_partir_de_apps_U_B11_1[],2,FALSE),\"\")","v":5125552302},{"$f":"IFERROR(VLOOKUP('Pilotage charte de postes'!I39*10,Tableau_Lancer_la_requête_à_partir_de_apps_U_B11_1[],2,FALSE),\"\")","v":13},{"$f":"IFERROR(VLOOKUP('Pilotage charte de postes'!J39*10,Tableau_Lancer_la_requête_à_partir_de_apps_U_B11_1[],2,FALSE),\"\")","v":5575300},{"$f":"IFERROR(VLOOKUP('Pilotage charte de postes'!K39*10,Tableau_Lancer_la_requête_à_partir_de_apps_U_B11_1[],2,FALSE),\"\")","v":14018200},{"$f":"IFERROR(VLOOKUP('Pilotage charte de postes'!L39*10,Tableau_Lancer_la_requête_à_partir_de_apps_U_B11_1[],2,FALSE),\"\")","v":19593500}]
["6 ---TOTALE DE LA CATÉGORIE SERVICES",null,null,{"$f":"IFERROR(VLOOKUP('Pilotage charte de postes'!D40*10,Tableau_Lancer_la_requête_à_partir_de_apps_U_B11_1[],2,FALSE),\"\")","v":35189},{"$f":"IFERROR(VLOOKUP('Pilotage charte de postes'!E40*10,Tableau_Lancer_la_requête_à_partir_de_apps_U_B11_1[],2,FALSE),\"\")","v":14187515494},{"$f":"IFERROR(VLOOKUP('Pilotage charte de postes'!F40*10,Tableau_Lancer_la_requête_à_partir_de_apps_U_B11_1[],2,FALSE),\"\")","v":40539061822},{"$f":"IFERROR(VLOOKUP('Pilotage charte de postes'!H40*10,Tableau_Lancer_la_requête_à_partir_de_apps_U_B11_1[],2,FALSE),\"\")","v":54726577316},{"$f":"IFERROR(VLOOKUP('Pilotage charte de postes'!I40*10,Tableau_Lancer_la_requête_à_partir_de_apps_U_B11_1[],2,FALSE),\"\")","v":15728},{"$f":"IFERROR(VLOOKUP('Pilotage charte de postes'!J40*10,Tableau_Lancer_la_requête_à_partir_de_apps_U_B11_1[],2,FALSE),\"\")","v":18650024437},{"$f":"IFERROR(VLOOKUP('Pilotage charte de postes'!K40*10,Tableau_Lancer_la_requête_à_partir_de_apps_U_B11_1[],2,FALSE),\"\")","v":56842980557},{"$f":"IFERROR(VLOOKUP('Pilotage charte de postes'!L40*10,Tableau_Lancer_la_requête_à_partir_de_apps_U_B11_1[],2,FALSE),\"\")","v":75493004994}]
["  60 -- Immeubles à bureaux",null,null,{"$f":"IFERROR(VLOOKUP('Pilotage charte de postes'!D41*10,Tableau_Lancer_la_requête_à_partir_de_apps_U_B11_1[],2,FALSE),\"\")","v":4083},{"$f":"IFERROR(VLOOKUP('Pilotage charte de postes'!E41*10,Tableau_Lancer_la_requête_à_partir_de_apps_U_B11_1[],2,FALSE),\"\")","v":6688582532},{"$f":"IFERROR(VLOOKUP('Pilotage charte de postes'!F41*10,Tableau_Lancer_la_requête_à_partir_de_apps_U_B11_1[],2,FALSE),\"\")","v":23069606268},{"$f":"IFERROR(VLOOKUP('Pilotage charte de postes'!H41*10,Tableau_Lancer_la_requête_à_partir_de_apps_U_B11_1[],2,FALSE),\"\")","v":29758188800},{"$f":"IFERROR(VLOOKUP('Pilotage charte de postes'!I41*10,Tableau_Lancer_la_requête_à_partir_de_apps_U_B11_1[],2,FALSE),\"\")","v":609},{"$f":"IFERROR(VLOOKUP('Pilotage charte de postes'!J41*10,Tableau_Lancer_la_requête_à_partir_de_apps_U_B11_1[],2,FALSE),\"\")","v":852567860},{"$f":"IFERROR(VLOOKUP('Pilotage charte de postes'!K41*10,Tableau_Lancer_la_requête_à_partir_de_apps_U_B11_1[],2,FALSE),\"\")","v":2677894560},{"$f":"IFERROR(VLOOKUP('Pilotage charte de postes'!L41*10,Tableau_Lancer_la_requête_à_partir_de_apps_U_B11_1[],2,FALSE),\"\")","v":3530462420}]
["  6 --  Services sauf « condominium »",null,null,{"$f":"IFERROR(VLOOKUP('Pilotage charte de postes'!D42*10,Tableau_Lancer_la_requête_à_partir_de_apps_U_B11_1[],2,FALSE),\"\")","v":30816},{"$f":"IFERROR(VLOOKUP('Pilotage charte de postes'!E42*10,Tableau_Lancer_la_requête_à_partir_de_apps_U_B11_1[],2,FALSE),\"\")","v":12929175993},{"$f":"IFERROR(VLOOKUP('Pilotage charte de postes'!F42*10,Tableau_Lancer_la_requête_à_partir_de_apps_U_B11_1[],2,FALSE),\"\")","v":35936598721},{"$f":"IFERROR(VLOOKUP('Pilotage charte de postes'!H42*10,Tableau_Lancer_la_requête_à_partir_de_apps_U_B11_1[],2,FALSE),\"\")","v":48865774714},{"$f":"IFERROR(VLOOKUP('Pilotage charte de postes'!I42*10,Tableau_Lancer_la_requête_à_partir_de_apps_U_B11_1[],2,FALSE),\"\")","v":15552},{"$f":"IFERROR(VLOOKUP('Pilotage charte de postes'!J42*10,Tableau_Lancer_la_requête_à_partir_de_apps_U_B11_1[],2,FALSE),\"\")","v":18513603537},{"$f":"IFERROR(VLOOKUP('Pilotage charte de postes'!K42*10,Tableau_Lancer_la_requête_à_partir_de_apps_U_B11_1[],2,FALSE),\"\")","v":56460298757},{"$f":"IFERROR(VLOOKUP('Pilotage charte de postes'!L42*10,Tableau_Lancer_la_requête_à_partir_de_apps_U_B11_1[],2,FALSE),\"\")","v":74973902294}]
["  6 --  Services « condominium »",null,null,{"$f":"IFERROR(VLOOKUP('Pilotage charte de postes'!D43*10,Tableau_Lancer_la_requête_à_partir_de_apps_U_B11_1[],2,FALSE),\"\")","v":4373},{"$f":"IFERROR(VLOOKUP('Pilotage charte de postes'!E43*10,Tableau_Lancer_la_requête_à_partir_de_apps_U_B11_1[],2,FALSE),\"\")","v":1258339501},{"$f":"IFERROR(VLOOKUP('Pilotage charte de postes'!F43*10,Tableau_Lancer_la_requête_à_partir_de_apps_U_B11_1[],2,FALSE),\"\")","v":4602463101},{"$f":"IFERROR(VLOOKUP('Pilotage charte de postes'!H43*10,Tableau_Lancer_la_requête_à_partir_de_apps_U_B11_1[],2,FALSE),\"\")","v":5860802602},{"$f":"IFERROR(VLOOKUP('Pilotage charte de postes'!I43*10,Tableau_Lancer_la_requête_à_partir_de_apps_U_B11_1[],2,FALSE),\"\")","v":176},{"$f":"IFERROR(VLOOKUP('Pilotage charte de postes'!J43*10,Tableau_Lancer_la_requête_à_partir_de_apps_U_B11_1[],2,FALSE),\"\")","v":136420900},{"$f":"IFERROR(VLOOKUP('Pilotage charte de postes'!K43*10,Tableau_Lancer_la_requête_à_partir_de_apps_U_B11_1[],2,FALSE),\"\")","v":382681800},{"$f":"IFERROR(VLOOKUP('Pilotage charte de postes'!L43*10,Tableau_Lancer_la_requête_à_partir_de_apps_U_B11_1[],2,FALSE),\"\")","v":519102700}]
["7 --- TOTALE DE LA CATÉGORIE CULTURELLE, RÉCRÉATIVE ET DE LOISIRS",null,null,{"$f":"IFERROR(VLOOKUP('Pilotage charte de postes'!D44*10,Tableau_Lancer_la_requête_à_partir_de_apps_U_B11_1[],2,FALSE),\"\")","v":5245},{"$f":"IFERROR(VLOOKUP('Pilotage charte de postes'!E44*10,Tableau_Lancer_la_requête_à_partir_de_apps_U_B11_1[],2,FALSE),\"\")","v":2025788607},{"$f":"IFERROR(VLOOKUP('Pilotage charte de postes'!F44*10,Tableau_Lancer_la_requête_à_partir_de_apps_U_B11_1[],2,FALSE),\"\")","v":4305091973},{"$f":"IFERROR(VLOOKUP('Pilotage charte de postes'!H44*10,Tableau_Lancer_la_requête_à_partir_de_apps_U_B11_1[],2,FALSE),\"\")","v":6330880580},{"$f":"IFERROR(VLOOKUP('Pilotage charte de postes'!I44*10,Tableau_Lancer_la_requête_à_partir_de_apps_U_B11_1[],2,FALSE),\"\")","v":12676},{"$f":"IFERROR(VLOOKUP('Pilotage charte de postes'!J44*10,Tableau_Lancer_la_requête_à_partir_de_apps_U_B11_1[],2,FALSE),\"\")","v":15735054035},{"$f":"IFERROR(VLOOKUP('Pilotage charte de postes'!K44*10,Tableau_Lancer_la_requête_à_partir_de_apps_U_B11_1[],2,FALSE),\"\")","v":9591411953},{"$f":"IFERROR(VLOOKUP('Pilotage charte de postes'!L44*10,Tableau_Lancer_la_requête_à_partir_de_apps_U_B11_1[],2,FALSE),\"\")","v":25326465988}]
["  7411 - 7412 Terrains de golf",null,null,{"$f":"IFERROR(VLOOKUP('Pilotage charte de postes'!D45*10,Tableau_Lancer_la_requête_à_partir_de_apps_U_B11_1[],2,FALSE),\"\")","v":390},{"$f":"IFERROR(VLOOKUP('Pilotage charte de postes'!E45*10,Tableau_Lancer_la_requête_à_partir_de_apps_U_B11_1[],2,FALSE),\"\")","v":343082138},{"$f":"IFERROR(VLOOKUP('Pilotage charte de postes'!F45*10,Tableau_Lancer_la_requête_à_partir_de_apps_U_B11_1[],2,FALSE),\"\")","v":307252246},{"$f":"IFERROR(VLOOKUP('Pilotage charte de postes'!H45*10,Tableau_Lancer_la_requête_à_partir_de_apps_U_B11_1[],2,FALSE),\"\")","v":650334384},{"$f":"IFERROR(VLOOKUP('Pilotage charte de postes'!I45*10,Tableau_Lancer_la_requête_à_partir_de_apps_U_B11_1[],2,FALSE),\"\")","v":26},{"$f":"IFERROR(VLOOKUP('Pilotage charte de postes'!J45*10,Tableau_Lancer_la_requête_à_partir_de_apps_U_B11_1[],2,FALSE),\"\")","v":137244464},{"$f":"IFERROR(VLOOKUP('Pilotage charte de postes'!K45*10,Tableau_Lancer_la_requête_à_partir_de_apps_U_B11_1[],2,FALSE),\"\")","v":341508256},{"$f":"IFERROR(VLOOKUP('Pilotage charte de postes'!L45*10,Tableau_Lancer_la_requête_à_partir_de_apps_U_B11_1[],2,FALSE),\"\")","v":478752720}]
["  76 -- Parcs",null,null,{"$f":"IFERROR(VLOOKUP('Pilotage charte de postes'!D46*10,Tableau_Lancer_la_requête_à_partir_de_apps_U_B11_1[],2,FALSE),\"\")","v":873},{"$f":"IFERROR(VLOOKUP('Pilotage charte de postes'!E46*10,Tableau_Lancer_la_requête_à_partir_de_apps_U_B11_1[],2,FALSE),\"\")","v":74748704},{"$f":"IFERROR(VLOOKUP('Pilotage charte de postes'!F46*10,Tableau_Lancer_la_requête_à_partir_de_apps_U_B11_1[],2,FALSE),\"\")","v":55607701},{"$f":"IFERROR(VLOOKUP('Pilotage charte de postes'!H46*10,Tableau_Lancer_la_requête_à_partir_de_apps_U_B11_1[],2,FALSE),\"\")","v":130356405},{"$f":"IFERROR(VLOOKUP('Pilotage charte de postes'!I46*10,Tableau_Lancer_la_requête_à_partir_de_apps_U_B11_1[],2,FALSE),\"\")","v":6678},{"$f":"IFERROR(VLOOKUP('Pilotage charte de postes'!J46*10,Tableau_Lancer_la_requête_à_partir_de_apps_U_B11_1[],2,FALSE),\"\")","v":9464432587},{"$f":"IFERROR(VLOOKUP('Pilotage charte de postes'!K46*10,Tableau_Lancer_la_requête_à_partir_de_apps_U_B11_1[],2,FALSE),\"\")","v":1080001317},{"$f":"IFERROR(VLOOKUP('Pilotage charte de postes'!L46*10,Tableau_Lancer_la_requête_à_partir_de_apps_U_B11_1[],2,FALSE),\"\")","v":10544433904}]
["8 --- TOTALE DE LA CATÉGORIE PRODUCTION, EXT. DE RICHESSES NAT.",null,null,{"$f":"IFERROR(VLOOKUP('Pilotage charte de postes'!D47*10,Tableau_Lancer_la_requête_à_partir_de_apps_U_B11_1[],2,FALSE),\"\")","v":135725},{"$f":"IFERROR(VLOOKUP('Pilotage charte de postes'!E47*10,Tableau_Lancer_la_requête_à_partir_de_apps_U_B11_1[],2,FALSE),\"\")","v":41416685370},{"$f":"IFERROR(VLOOKUP('Pilotage charte de postes'!F47*10,Tableau_Lancer_la_requête_à_partir_de_apps_U_B11_1[],2,FALSE),\"\")","v":14429374070},{"$f":"IFERROR(VLOOKUP('Pilotage charte de postes'!H47*10,Tableau_Lancer_la_requête_à_partir_de_apps_U_B11_1[],2,FALSE),\"\")","v":55846059440},{"$f":"IFERROR(VLOOKUP('Pilotage charte de postes'!I47*10,Tableau_Lancer_la_requête_à_partir_de_apps_U_B11_1[],2,FALSE),\"\")","v":1061},{"$f":"IFERROR(VLOOKUP('Pilotage charte de postes'!J47*10,Tableau_Lancer_la_requête_à_partir_de_apps_U_B11_1[],2,FALSE),\"\")","v":473019320},{"$f":"IFERROR(VLOOKUP('Pilotage charte de postes'!K47*10,Tableau_Lancer_la_requête_à_partir_de_apps_U_B11_1[],2,FALSE),\"\")","v":121848407},{"$f":"IFERROR(VLOOKUP('Pilotage charte de postes'!L47*10,Tableau_Lancer_la_requête_à_partir_de_apps_U_B11_1[],2,FALSE),\"\")","v":594867727}]
["  81 -- Agriculture",null,null,{"$f":"IFERROR(VLOOKUP('Pilotage charte de postes'!D48*10,Tableau_Lancer_la_requête_à_partir_de_apps_U_B11_1[],2,FALSE),\"\")","v":111223},{"$f":"IFERROR(VLOOKUP('Pilotage charte de postes'!E48*10,Tableau_Lancer_la_requête_à_partir_de_apps_U_B11_1[],2,FALSE),\"\")","v":38508204800},{"$f":"IFERROR(VLOOKUP('Pilotage charte de postes'!F48*10,Tableau_Lancer_la_requête_à_partir_de_apps_U_B11_1[],2,FALSE),\"\")","v":12508126000},{"$f":"IFERROR(VLOOKUP('Pilotage charte de postes'!H48*10,Tableau_Lancer_la_requête_à_partir_de_apps_U_B11_1[],2,FALSE),\"\")","v":51016330800},{"$f":"IFERROR(VLOOKUP('Pilotage charte de postes'!I48*10,Tableau_Lancer_la_requête_à_partir_de_apps_U_B11_1[],2,FALSE),\"\")","v":516},{"$f":"IFERROR(VLOOKUP('Pilotage charte de postes'!J48*10,Tableau_Lancer_la_requête_à_partir_de_apps_U_B11_1[],2,FALSE),\"\")","v":103839200},{"$f":"IFERROR(VLOOKUP('Pilotage charte de postes'!K48*10,Tableau_Lancer_la_requête_à_partir_de_apps_U_B11_1[],2,FALSE),\"\")","v":70606501},{"$f":"IFERROR(VLOOKUP('Pilotage charte de postes'!L48*10,Tableau_Lancer_la_requête_à_partir_de_apps_U_B11_1[],2,FALSE),\"\")","v":174445701}]
["  83 -- Exploitation forestière",null,null,{"$f":"IFERROR(VLOOKUP('Pilotage charte de postes'!D49*10,Tableau_Lancer_la_requête_à_partir_de_apps_U_B11_1[],2,FALSE),\"\")","v":21829},{"$f":"IFERROR(VLOOKUP('Pilotage charte de postes'!E49*10,Tableau_Lancer_la_requête_à_partir_de_apps_U_B11_1[],2,FALSE),\"\")","v":2346920270},{"$f":"IFERROR(VLOOKUP('Pilotage charte de postes'!F49*10,Tableau_Lancer_la_requête_à_partir_de_apps_U_B11_1[],2,FALSE),\"\")","v":436124000},{"$f":"IFERROR(VLOOKUP('Pilotage charte de postes'!H49*10,Tableau_Lancer_la_requête_à_partir_de_apps_U_B11_1[],2,FALSE),\"\")","v":2783044270},{"$f":"IFERROR(VLOOKUP('Pilotage charte de postes'!I49*10,Tableau_Lancer_la_requête_à_partir_de_apps_U_B11_1[],2,FALSE),\"\")","v":414},{"$f":"IFERROR(VLOOKUP('Pilotage charte de postes'!J49*10,Tableau_Lancer_la_requête_à_partir_de_apps_U_B11_1[],2,FALSE),\"\")","v":308446000},{"$f":"IFERROR(VLOOKUP('Pilotage charte de postes'!K49*10,Tableau_Lancer_la_requête_à_partir_de_apps_U_B11_1[],2,FALSE),\"\")","v":24378100},{"$f":"IFERROR(VLOOKUP('Pilotage charte de postes'!L49*10,Tableau_Lancer_la_requête_à_partir_de_apps_U_B11_1[],2,FALSE),\"\")","v":332824100}]
["  85 -- Exploitation minière",null,null,{"$f":"IFERROR(VLOOKUP('Pilotage charte de postes'!D50*10,Tableau_Lancer_la_requête_à_partir_de_apps_U_B11_1[],2,FALSE),\"\")","v":1351},{"$f":"IFERROR(VLOOKUP('Pilotage charte de postes'!E50*10,Tableau_Lancer_la_requête_à_partir_de_apps_U_B11_1[],2,FALSE),\"\")","v":439524200},{"$f":"IFERROR(VLOOKUP('Pilotage charte de postes'!F50*10,Tableau_Lancer_la_requête_à_partir_de_apps_U_B11_1[],2,FALSE),\"\")","v":1320309200},{"$f":"IFERROR(VLOOKUP('Pilotage charte de postes'!H50*10,Tableau_Lancer_la_requête_à_partir_de_apps_U_B11_1[],2,FALSE),\"\")","v":1759833400},{"$f":"IFERROR(VLOOKUP('Pilotage charte de postes'!I50*10,Tableau_Lancer_la_requête_à_partir_de_apps_U_B11_1[],2,FALSE),\"\")","v":65},{"$f":"IFERROR(VLOOKUP('Pilotage charte de postes'!J50*10,Tableau_Lancer_la_requête_à_partir_de_apps_U_B11_1[],2,FALSE),\"\")","v":51548920},{"$f":"IFERROR(VLOOKUP('Pilotage charte de postes'!K50*10,Tableau_Lancer_la_requête_à_partir_de_apps_U_B11_1[],2,FALSE),\"\")","v":10486576},{"$f":"IFERROR(VLOOKUP('Pilotage charte de postes'!L50*10,Tableau_Lancer_la_requête_à_partir_de_apps_U_B11_1[],2,FALSE),\"\")","v":62035496}]
["9 --- TOTALE DE LA CATÉGORIE IMMEUBLES NON EXPLOITÉS, ÉTENDUES D'EAU",null,null,{"$f":"IFERROR(VLOOKUP('Pilotage charte de postes'!D51*10,Tableau_Lancer_la_requête_à_partir_de_apps_U_B11_1[],2,FALSE),\"\")","v":377281},{"$f":"IFERROR(VLOOKUP('Pilotage charte de postes'!E51*10,Tableau_Lancer_la_requête_à_partir_de_apps_U_B11_1[],2,FALSE),\"\")","v":25885069107},{"$f":"IFERROR(VLOOKUP('Pilotage charte de postes'!F51*10,Tableau_Lancer_la_requête_à_partir_de_apps_U_B11_1[],2,FALSE),\"\")","v":596842049},{"$f":"IFERROR(VLOOKUP('Pilotage charte de postes'!H51*10,Tableau_Lancer_la_requête_à_partir_de_apps_U_B11_1[],2,FALSE),\"\")","v":26481911156},{"$f":"IFERROR(VLOOKUP('Pilotage charte de postes'!I51*10,Tableau_Lancer_la_requête_à_partir_de_apps_U_B11_1[],2,FALSE),\"\")","v":78493},{"$f":"IFERROR(VLOOKUP('Pilotage charte de postes'!J51*10,Tableau_Lancer_la_requête_à_partir_de_apps_U_B11_1[],2,FALSE),\"\")","v":15107761771},{"$f":"IFERROR(VLOOKUP('Pilotage charte de postes'!K51*10,Tableau_Lancer_la_requête_à_partir_de_apps_U_B11_1[],2,FALSE),\"\")","v":59343078},{"$f":"IFERROR(VLOOKUP('Pilotage charte de postes'!L51*10,Tableau_Lancer_la_requête_à_partir_de_apps_U_B11_1[],2,FALSE),\"\")","v":15167104849}]
["  91 -- Terrains vagues",null,null,{"$f":"IFERROR(VLOOKUP('Pilotage charte de postes'!D52*10,Tableau_Lancer_la_requête_à_partir_de_apps_U_B11_1[],2,FALSE),\"\")","v":323131},{"$f":"IFERROR(VLOOKUP('Pilotage charte de postes'!E52*10,Tableau_Lancer_la_requête_à_partir_de_apps_U_B11_1[],2,FALSE),\"\")","v":22400095115},{"$f":"IFERROR(VLOOKUP('Pilotage charte de postes'!F52*10,Tableau_Lancer_la_requête_à_partir_de_apps_U_B11_1[],2,FALSE),\"\")","v":9798700},{"$f":"IFERROR(VLOOKUP('Pilotage charte de postes'!H52*10,Tableau_Lancer_la_requête_à_partir_de_apps_U_B11_1[],2,FALSE),\"\")","v":22409893815},{"$f":"IFERROR(VLOOKUP('Pilotage charte de postes'!I52*10,Tableau_Lancer_la_requête_à_partir_de_apps_U_B11_1[],2,FALSE),\"\")","v":71591},{"$f":"IFERROR(VLOOKUP('Pilotage charte de postes'!J52*10,Tableau_Lancer_la_requête_à_partir_de_apps_U_B11_1[],2,FALSE),\"\")","v":10526723536},{"$f":"IFERROR(VLOOKUP('Pilotage charte de postes'!K52*10,Tableau_Lancer_la_requête_à_partir_de_apps_U_B11_1[],2,FALSE),\"\")","v":1708000},{"$f":"IFERROR(VLOOKUP('Pilotage charte de postes'!L52*10,Tableau_Lancer_la_requête_à_partir_de_apps_U_B11_1[],2,FALSE),\"\")","v":10528431536}]
["  9220 -- Forêts inexploitées qui ne sont pas des réserves",null,null,{"$f":"IFERROR(VLOOKUP('Pilotage charte de postes'!D53*10,Tableau_Lancer_la_requête_à_partir_de_apps_U_B11_1[],2,FALSE),\"\")","v":44032},{"$f":"IFERROR(VLOOKUP('Pilotage charte de postes'!E53*10,Tableau_Lancer_la_requête_à_partir_de_apps_U_B11_1[],2,FALSE),\"\")","v":2576732670},{"$f":"IFERROR(VLOOKUP('Pilotage charte de postes'!F53*10,Tableau_Lancer_la_requête_à_partir_de_apps_U_B11_1[],2,FALSE),\"\")","v":65690800},{"$f":"IFERROR(VLOOKUP('Pilotage charte de postes'!H53*10,Tableau_Lancer_la_requête_à_partir_de_apps_U_B11_1[],2,FALSE),\"\")","v":2642423470},{"$f":"IFERROR(VLOOKUP('Pilotage charte de postes'!I53*10,Tableau_Lancer_la_requête_à_partir_de_apps_U_B11_1[],2,FALSE),\"\")","v":3997},{"$f":"IFERROR(VLOOKUP('Pilotage charte de postes'!J53*10,Tableau_Lancer_la_requête_à_partir_de_apps_U_B11_1[],2,FALSE),\"\")","v":3685568431},{"$f":"IFERROR(VLOOKUP('Pilotage charte de postes'!K53*10,Tableau_Lancer_la_requête_à_partir_de_apps_U_B11_1[],2,FALSE),\"\")","v":736200},{"$f":"IFERROR(VLOOKUP('Pilotage charte de postes'!L53*10,Tableau_Lancer_la_requête_à_partir_de_apps_U_B11_1[],2,FALSE),\"\")","v":3686304631}]
["TOTAL DU RÔLE D'ÉVALUATION FONCIÈRE",null,null,{"$f":"IFERROR(VLOOKUP('Pilotage charte de postes'!D54*10,Tableau_Lancer_la_requête_à_partir_de_apps_U_B11_1[],2,FALSE),\"\")","v":3475701},{"$f":"IFERROR(VLOOKUP('Pilotage charte de postes'!E54*10,Tableau_Lancer_la_requête_à_partir_de_apps_U_B11_1[],2,FALSE),\"\")","v":428326735934},{"$f":"IFERROR(VLOOKUP('Pilotage charte de postes'!F54*10,Tableau_Lancer_la_requête_à_partir_de_apps_U_B11_1[],2,FALSE),\"\")","v":780419966279},{"$f":"IFERROR(VLOOKUP('Pilotage charte de postes'!H54*10,Tableau_Lancer_la_requête_à_partir_de_apps_U_B11_1[],2,FALSE),\"\")","v":1208746702213},{"$f":"IFERROR(VLOOKUP('Pilotage charte de postes'!I54*10,Tableau_Lancer_la_requête_à_partir_de_apps_U_B11_1[],2,FALSE),\"\")","v":183412},{"$f":"IFERROR(VLOOKUP('Pilotage charte de postes'!J54*10,Tableau_Lancer_la_requête_à_partir_de_apps_U_B11_1[],2,FALSE),\"\")","v":58486938098},{"$f":"IFERROR(VLOOKUP('Pilotage charte de postes'!K54*10,Tableau_Lancer_la_requête_à_partir_de_apps_U_B11_1[],2,FALSE),\"\")","v":78896997241},{"$f":"IFERROR(VLOOKUP('Pilotage charte de postes'!L54*10,Tableau_Lancer_la_requête_à_partir_de_apps_U_B11_1[],2,FALSE),\"\")","v":137383935339}]

{"sheet":"Charte des codes de poste","index":2,"n_rows":54,"n_cols":11,"rows_kept":54,"cut":false,"hidden":false,"merged":[[0,0,1,10],[3,0,4,2],[3,3,3,6],[3,7,3,10]]}
["CHARTE DES DONNÉES DE L'ÉVALUATION FONCIÈRE"]
[]
[]
["CATÉGORIE (Utilisation)",null,null,"VALEURS IMPOSABLES",null,null,null,"VALEURS NON IMPOSABLES"]
[null,null,null,"NOMBRE","TERRAINS","BÂTIMENTS","IMMEUBLES","NOMBRE","TERRAINS","BÂTIMENTS","IMMEUBLES"]
["1-- TOTALE DE LA CATÉGORIE RÉSIDENTIELLE",null,null,300001,300002,300003,300004,300005,300006,300007,300008]
["   10 -- Totale Logements",null,null,300010,300011,300012,300013,300014,300015,300016,300017]
[null,"1 logement « condominium »",null,300019,300020,300021,300022,300023,300024,300025,300026]
[null,"1 logement « sauf condominium »",null,300028,300029,300030,300031,300032,300033,300034,300035]
[null,"2 logements",null,300037,300038,300039,300040,300041,300042,300043,300044]
[null,"3 logements",null,300046,300047,300048,300049,300050,300051,300052,300053]
[null,"4 logements",null,300055,300056,300057,300058,300059,300060,300061,300062]
[null,"5 logements",null,300064,300065,300066,300067,300068,300069,300070,300071]
[null,"6 à 9 logements",null,300073,300074,300075,300076,300077,300078,300079,300080]
[null,"10 à 19 logements",null,300082,300083,300084,300085,300086,300087,300088,300089]
[null,"20 à 29 logements",null,300091,300092,300093,300094,300095,300096,300097,300098]
[null,"30 à 49 logements",null,300100,300101,300102,300103,300104,300105,300106,300107]
[null,"50 à 99 logements",null,300109,300110,300111,300112,300113,300114,300115,300116]
[null,"100 à 199 logements",null,300118,300119,300120,300121,300122,300123,300124,300125]
[null,"200 logements et plus",null,300127,300128,300129,300130,300131,300132,300133,300134]
["   11 -- Chalets, maisons de villégiatures",null,null,300136,300137,300138,300139,300140,300141,300142,300143]
["   12 -- Maisons mobiles, roulottes",null,null,300145,300146,300147,300148,300149,300150,300151,300152]
["   15 -- Habitations en commun",null,null,300154,300155,300156,300157,300158,300159,300160,300161]
["   16 -- Hôtels résidentiels",null,null,300163,300164,300165,300166,300167,300168,300169,300170]
["   17 -- Parcs de roulottes et de maisons mobiles",null,null,300172,300173,300174,300175,300176,300177,300178,300179]
["   18 - 19 --  Autres immeubles résidentiels",null,null,300442,300443,300444,300445,300446,300447,300448,300449]
["2 - 3 --TOTALE DE LA CATÉGORIE INDUSTRIES MANUFACTURIÈRES",null,null,300199,300200,300201,300202,300203,300204,300205,300206]
["   2 - 3 -- Industries manufacturières sauf « condominium »",null,null,300208,300209,300210,300211,300212,300213,300214,300215]
["   2 - 3 -- Industries manufacturières « condominium »",null,null,300217,300218,300219,300220,300221,300222,300223,300224]
["4 --- TOTALE DE LA CATÉGORIE TRANSPORTS, COMM., SERVICES PUBLICS",null,null,300226,300227,300228,300229,300230,300231,300232,300233]
["   4111  Chemin de fer",null,null,300235,300236,300237,300238,300239,300240,300241,300242]
["   46 -- Terrains et garages de stationnement",null,null,300244,300245,300246,300247,300248,300249,300250,300251]
["5 --- TOTALE DE LA CATÉGORIE COMMERCIALE",null,null,300253,300254,300255,300256,300257,300258,300259,300260]
["   50 -- Centres et immeubles commerciaux",null,null,300262,300263,300264,300265,300266,300267,300268,300269]
["   51 --  Ventes en gros",null,null,300271,300272,300273,300274,300275,300276,300277,300278]
["   52 à 59 --    Ventes au détail (sauf 583 -)",null,null,300451,300452,300453,300454,300455,300456,300457,300458]
["   583 -- Hôtels, motels et maisons de touristes",null,null,300460,300461,300462,300463,300464,300465,300466,300467]
["   5 --- Commerciale sauf « condominium »",null,null,300289,300290,300291,300292,300293,300294,300295,300296]
["   5 --- Commerciale « condominium »",null,null,300298,300299,300300,300301,300302,300303,300304,300305]
["6 ---TOTALE DE LA CATÉGORIE SERVICES",null,null,300307,300308,300309,300310,300311,300312,300313,300314]
["  60 -- Immeubles à bureaux",null,null,300316,300317,300318,300319,300320,300321,300322,300323]
["  6 --  Services sauf « condominium »",null,null,300325,300326,300327,300328,300329,300330,300331,300332]
["  6 --  Services « condominium »",null,null,300334,300335,300336,300337,300338,300339,300340,300341]
["7 --- TOTALE DE LA CATÉGORIE CULTURELLE, RÉCRÉATIVE ET DE LOISIRS",null,null,300343,300344,300345,300346,300347,300348,300349,300350]
["  7411 - 7412 Terrains de golf",null,null,300352,300353,300354,300355,300356,300357,300358,300359]
["  76 -- Parcs",null,null,300361,300362,300363,300364,300365,300366,300367,300368]
["8 --- TOTALE DE LA CATÉGORIE PRODUCTION, EXT. DE RICHESSES NAT.",null,null,300370,300371,300372,300373,300374,300375,300376,300377]
["  81 -- Agriculture",null,null,300379,300380,300381,300382,300383,300384,300385,300386]
["  83 -- Exploitation forestière",null,null,300388,300389,300390,300391,300392,300393,300394,300395]
["  85 -- Exploitation minière",null,null,300397,300398,300399,300400,300401,300402,300403,300404]
["9 --- TOTALE DE LA CATÉGORIE IMMEUBLES NON EXPLOITÉS, ÉTENDUES D'EAU",null,null,300406,300407,300408,300409,300410,300411,300412,300413]
["  91 -- Terrains vagues",null,null,300415,300416,300417,300418,300419,300420,300421,300422]
["  9220 -- Forêts inexploitées qui ne sont pas des réserves",null,null,300424,300425,300426,300427,300428,300429,300430,300431]
["TOTAL DU RÔLE D'ÉVALUATION FONCIÈRE",null,null,300433,300434,300435,300436,300437,300438,300439,300440]

{"sheet":"Pilotage charte de postes","index":3,"n_rows":54,"n_cols":12,"rows_kept":54,"cut":false,"hidden":true,"merged":[[53,5,53,6],[42,5,42,6],[43,5,43,6],[44,5,44,6],[45,5,45,6],[46,5,46,6],[47,5,47,6],[48,5,48,6],[49,5,49,6],[50,5,50,6],[51,5,51,6],[52,5,52,6],[41,5,41,6],[30,5,30,6],[31,5,31,6],[32,5,32,6],[33,5,33,6],[34,5,34,6],[35,5,35,6],[36,5,36,6],[37,5,37,6],[38,5,38,6],[39,5,39,6],[40,5,40,6],[29,5,29,6],[18,5,18,6],[19,5,19,6],[20,5,20,6],[21,5,21,6],[22,5,22,6],[23,5,23,6],[24,5,24,6],[25,5,25,6],[26,5,26,6],[27,5,27,6],[28,5,28,6],[17,5,17,6],[6,5,6,6],[7,5,7,6],[8,5,8,6],[9,5,9,6],[10,5,10,6],[11,5,11,6],[12,5,12,6],[13,5,13,6],[14,5,14,6],[15,5,15,6],[16,5,16,6],[5,5,5,6],[0,0,1,11],[3,0,4,2],[3,3,3,7],[3,8,3,11],[4,5,4,6]]}
["CHARTE DES DONNÉES DE L'ÉVALUATION FONCIÈRE"]
[]
[]
["CATÉGORIE (Utilisation)",null,null,"VALEURS IMPOSABLES",null,null,null,null,"VALEURS NON IMPOSABLES"]
[null,null,null,"NOMBRE","TERRAINS","BÂTIMENTS",null,"IMMEUBLES","NOMBRE","TERRAINS","BÂTIMENTS","IMMEUBLES"]
["1-- TOTALE DE LA CATÉGORIE RÉSIDENTIELLE",null,null,300001,300002,300003,null,300004,300005,300006,300007,300008]
["   10 -- Totale Logements",null,null,300010,300011,300012,null,300013,300014,300015,300016,300017]
[null,"1 logement « condominium »",null,300019,300020,300021,null,300022,300023,300024,300025,300026]
[null,"1 logement « sauf condominium »",null,300028,300029,300030,null,300031,300032,300033,300034,300035]
[null,"2 logements",null,300037,300038,300039,null,300040,300041,300042,300043,300044]
[null,"3 logements",null,300046,300047,300048,null,300049,300050,300051,300052,300053]
[null,"4 logements",null,300055,300056,300057,null,300058,300059,300060,300061,300062]
[null,"5 logements",null,300064,300065,300066,null,300067,300068,300069,300070,300071]
[null,"6 à 9 logements",null,300073,300074,300075,null,300076,300077,300078,300079,300080]
[null,"10 à 19 logements",null,300082,300083,300084,null,300085,300086,300087,300088,300089]
[null,"20 à 29 logements",null,300091,300092,300093,null,300094,300095,300096,300097,300098]
[null,"30 à 49 logements",null,300100,300101,300102,null,300103,300104,300105,300106,300107]
[null,"50 à 99 logements",null,300109,300110,300111,null,300112,300113,300114,300115,300116]
[null,"100 à 199 logements",null,300118,300119,300120,null,300121,300122,300123,300124,300125]
[null,"200 logements et plus",null,300127,300128,300129,null,300130,300131,300132,300133,300134]
["   11 -- Chalets, maisons de villégiatures",null,null,300136,300137,300138,null,300139,300140,300141,300142,300143]
["   12 -- Maisons mobiles, roulottes",null,null,300145,300146,300147,null,300148,300149,300150,300151,300152]
["   15 -- Habitations en commun",null,null,300154,300155,300156,null,300157,300158,300159,300160,300161]
["   16 -- Hôtels résidentiels",null,null,300163,300164,300165,null,300166,300167,300168,300169,300170]
["   17 -- Parcs de roulottes et de maisons mobiles",null,null,300172,300173,300174,null,300175,300176,300177,300178,300179]
["   18 - 19 --  Autres immeubles résidentiels",null,null,300442,300443,300444,null,300445,300446,300447,300448,300449]
["2 - 3 --TOTALE DE LA CATÉGORIE INDUSTRIES MANUFACTURIÈRES",null,null,300199,300200,300201,null,300202,300203,300204,300205,300206]
["   2 - 3 -- Industries manufacturières sauf « condominium »",null,null,300208,300209,300210,null,300211,300212,300213,300214,300215]
["   2 - 3 -- Industries manufacturières « condominium »",null,null,300217,300218,300219,null,300220,300221,300222,300223,300224]
["4 --- TOTALE DE LA CATÉGORIE TRANSPORTS, COMM., SERVICES PUBLICS",null,null,300226,300227,300228,null,300229,300230,300231,300232,300233]
["   4111  Chemin de fer",null,null,300235,300236,300237,null,300238,300239,300240,300241,300242]
["   46 -- Terrains et garages de stationnement",null,null,300244,300245,300246,null,300247,300248,300249,300250,300251]
["5 --- TOTALE DE LA CATÉGORIE COMMERCIALE",null,null,300253,300254,300255,null,300256,300257,300258,300259,300260]
["   50 -- Centres et immeubles commerciaux",null,null,300262,300263,300264,null,300265,300266,300267,300268,300269]
["   51 --  Ventes en gros",null,null,300271,300272,300273,null,300274,300275,300276,300277,300278]
["   52 à 59 --    Ventes au détail (sauf 583 -)",null,null,300451,300452,300453,331002,300454,300455,300456,300457,300458]
["   583 -- Hôtels, motels et maisons de touristes",null,null,300460,300461,300462,332002,300463,300464,300465,300466,300467]
["   5 --- Commerciale sauf « condominium »",null,null,300289,300290,300291,333002,300292,300293,300294,300295,300296]
["   5 --- Commerciale « condominium »",null,null,300298,300299,300300,null,300301,300302,300303,300304,300305]
["6 ---TOTALE DE LA CATÉGORIE SERVICES",null,null,300307,300308,300309,null,300310,300311,300312,300313,300314]
["  60 -- Immeubles à bureaux",null,null,300316,300317,300318,null,300319,300320,300321,300322,300323]
["  6 --  Services sauf « condominium »",null,null,300325,300326,300327,null,300328,300329,300330,300331,300332]
["  6 --  Services « condominium »",null,null,300334,300335,300336,null,300337,300338,300339,300340,300341]
["7 --- TOTALE DE LA CATÉGORIE CULTURELLE, RÉCRÉATIVE ET DE LOISIRS",null,null,300343,300344,300345,null,300346,300347,300348,300349,300350]
["  7411 - 7412 Terrains de golf",null,null,300352,300353,300354,null,300355,300356,300357,300358,300359]
["  76 -- Parcs",null,null,300361,300362,300363,null,300364,300365,300366,300367,300368]
["8 --- TOTALE DE LA CATÉGORIE PRODUCTION, EXT. DE RICHESSES NAT.",null,null,300370,300371,300372,null,300373,300374,300375,300376,300377]
["  81 -- Agriculture",null,null,300379,300380,300381,null,300382,300383,300384,300385,300386]
["  83 -- Exploitation forestière",null,null,300388,300389,300390,null,300391,300392,300393,300394,300395]
["  85 -- Exploitation minière",null,null,300397,300398,300399,null,300400,300401,300402,300403,300404]
["9 --- TOTALE DE LA CATÉGORIE IMMEUBLES NON EXPLOITÉS, ÉTENDUES D'EAU",null,null,300406,300407,300408,null,300409,300410,300411,300412,300413]
["  91 -- Terrains vagues",null,null,300415,300416,300417,null,300418,300419,300420,300421,300422]
["  9220 -- Forêts inexploitées qui ne sont pas des réserves",null,null,300424,300425,300426,null,300427,300428,300429,300430,300431]
["TOTAL DU RÔLE D'ÉVALUATION FONCIÈRE",null,null,300433,300434,300435,null,300436,300437,300438,300439,300440]

{"sheet":"PilotageDonnees","index":4,"n_rows":875,"n_cols":2,"rows_kept":875,"cut":false,"hidden":true,"merged":[]}
["code","valeur"]
[3000010,2808549]
[3000011,2808549]
[3000020,305575602674]
[3000021,329109301432]
[3000030,641272674481]
[3000031,690740840557]
[3000040,946848277155]
[3000041,1019850141989]
[3000050,4917]
[3000051,4917]
[3000060,2174345876]
[3000061,2399813449]
[3000070,4274915803]
[3000071,4626487222]
[3000080,6449261679]
[3000081,7026300672]
[3000090,33262828434]
[3000091,33262828434]
[3000100,2548288]
[3000101,2548288]
[3000110,289963053060]
[3000111,312589828499]
[3000120,608420562426]
[3000121,655982778223]
[3000130,898383615486]
[3000131,968572606721]
[3000140,1706]
[3000141,1706]
[3000150,303712363]
[3000151,334399409]
[3000160,712375770]
[3000161,782383337]
[3000170,1016088133]
[3000171,1116782747]
[3000180,11808353788]
[3000181,11808353788]
[3000190,366527]
[3000191,366527]
[3000200,20778586207]
[3000201,23000151149]
[3000210,89343496100]
[3000211,99136414100]
[3000220,110122082307]
[3000221,122136565249]
[3000230,6]
[3000231,6]
[3000240,472600]
[3000241,516470]
[3000250,1418700]
[3000251,1528085]
[3000260,1891300]
[3000261,2044555]
[3000270,57474343]
[3000271,57474343]
[3000280,1799690]
[3000281,1799690]
[3000290,200577050316]
[3000291,213301050708]
[3000300,355220069643]
[3000301,375768417277]
[3000310,555797119959]
[3000311,589069467985]
[3000320,1337]
[3000321,1337]
[3000330,123480000]
[3000331,133998147]
[3000340,215025650]
[3000341,231612422]
[3000350,338505650]
[3000351,365610569]
[3000360,10632331159]
[3000361,10632331159]
[3000370,190439]
[3000371,190439]
[3000380,24334846600]
[3000381,26931266179]
[3000390,45786671002]
[3000391,50378750541]
[3000400,70121517602]
[3000401,77310016720]
[3000410,188]
[3000411,188]
[3000420,34437600]
[3000421,38069069]
[3000430,55059400]
[3000431,60196100]
[3000440,89497000]
[3000441,98265169]
[3000450,804957977]
[3000451,804957977]
[3000460,85458]
[3000461,85458]
[3000470,13942710200]
[3000471,15629044417]
[3000480,28127548701]
[3000481,31406250239]
[3000490,42070258901]
[3000491,47035294656]
[3000500,41]
[3000501,41]
[3000510,7606900]
[3000511,8534391]
[3000520,14959800]
[3000521,16716600]
[3000530,22566700]
[3000531,25250991]
[3000540,138955993]
[3000541,138955993]
[3000550,39974]
[3000551,39974]
[3000560,6347115070]
[3000561,7105783273]
[3000570,14147745280]
[3000571,15643213047]
[3000580,20494860350]
[3000581,22748996320]
[3000590,27]
[3000591,27]
[3000600,4864130]
[3000601,5440461]
[3000610,19519720]
[3000611,21035901]
[3000620,24383850]
[3000621,26476362]
[3000630,62461543]
[3000631,62461543]
[3000640,11829]
[3000641,11829]
[3000650,2562376500]
[3000651,2923700675]
[3000660,5227985200]
[3000661,5922490884]
[3000670,7790361700]
[3000671,8846191559]
[3000680,9]
[3000681,9]
[3000690,3231500]
[3000691,3790503]
[3000700,5690500]
[3000701,6572131]
[3000710,8922000]
[3000711,10362634]
[3000720,10268556]
[3000721,10268556]
[3000730,35260]
[3000731,35260]
[3000740,7393052712]
[3000741,8140356643]
[3000750,18539733130]
[3000751,20195752287]
[3000760,25932785842]
[3000761,28336108930]
[3000770,33]
[3000771,33]
[3000780,11329088]
[3000781,12210026]
[3000790,22623670]
[3000791,24855863]
[3000800,33952758]
[3000801,37065889]
[3000810,50913530]
[3000811,50913530]
[3000820,11132]
[3000821,11132]
[3000830,4023817119]
[3000831,4416585291]
[3000840,11956308491]
[3000841,13001615002]
[3000850,15980125610]
[3000851,17418200292]
[3000860,38]
[3000861,38]
[3000870,14947381]
[3000871,16869033]
[3000880,63183509]
[3000881,71025072]
[3000890,78130890]
[3000891,87894106]
[3000900,18779458]
[3000901,18779458]
[3000910,3387]
[3000911,3387]
[3000920,1943250800]
[3000921,2155103270]
[3000930,6202392700]
[3000931,6820393674]
[3000940,8145643500]
[3000941,8975496944]
[3000950,12]
[3000951,12]
[3000960,8414200]
[3000961,9382392]
[3000970,39156400]
[3000971,42657558]
[3000980,47570600]
[3000981,52039950]
[3000990,8343904]
[3000991,8343904]
[3001000,2518]
[3001001,2518]
[3001010,2288631700]
[3001011,2526524325]
[3001020,7835148200]
[3001021,8628861069]
[3001030,10123779900]
[3001031,11155385394]
[3001040,4]
[3001041,4]
[3001050,8674800]
[3001051,10079942]
[3001060,34366900]
[3001061,39590704]
[3001070,43041700]
[3001071,49670646]
[3001080,8245520]
[3001081,8245520]
[3001090,1294]
[3001091,1294]
[3001100,2185799400]
[3001101,2433000177]
[3001110,8898044300]
[3001111,9851545864]
[3001120,11083843700]
[3001121,12284546041]
[3001130,3]
[3001131,3]
[3001140,6831500]
[3001141,7522613]
[3001150,34353500]
[3001151,37277929]
[3001160,41185000]
[3001161,44800542]
[3001170,6557109]
[3001171,6557109]
[3001180,602]
[3001181,602]
[3001190,2062436136]
[3001191,2309350172]
[3001200,9771435779]
[3001201,10937937892]
[3001210,11833871915]
[3001211,13247288064]
[3001220,5]
[3001221,5]
[3001230,41145364]
[3001231,44913556]
[3001240,75409921]
[3001241,83797645]
[3001250,116555285]
[3001251,128711201]
[3001260,5271924]
[3001261,5271924]
[3001270,178]
[3001271,178]
[3001280,1523380300]
[3001281,1717912220]
[3001290,7363983900]
[3001291,8291136347]
[3001300,8887364200]
[3001301,10009048567]
[3001310,3]
[3001311,3]
[3001320,38277300]
[3001321,43072806]
[3001330,131608100]
[3001331,145517327]
[3001340,169885400]
[3001341,188590133]
[3001350,3792823]
[3001351,3792823]
[3001360,137186]
[3001361,137186]
[3001370,9439539500]
[3001371,9983260416]
[3001380,13257663100]
[3001381,14032809779]
[3001390,22697202600]
[3001391,24016070195]
[3001400,400]
[3001401,400]
[3001410,161900900]
[3001411,174462409]
[3001420,26504300]
[3001421,27952059]
[3001430,188405200]
[3001431,202414468]
[3001440,7303117885]
[3001441,7303117885]
[3001450,46172]
[3001451,46172]
[3001460,1151462900]
[3001461,1182083834]
[3001470,3367641100]
[3001471,3462815270]
[3001480,4519104000]
[3001481,4644899104]
[3001490,149]
[3001491,149]
[3001500,809300]
[3001501,827546]
[3001510,3660800]
[3001511,3783967]
[3001520,4470100]
[3001521,4611513]
[3001530,248184627]
[3001531,248184627]
[3001540,4152]
[3001541,4152]
[3001550,2376887790]
[3001551,2565982647]
[3001560,14831664199]
[3001561,15762713240]
[3001570,17208551989]
[3001571,18328695887]
[3001580,1450]
[3001581,1450]
[3001590,1384838470]
[3001591,1537361245]
[3001600,3458577130]
[3001601,3731058992]
[3001610,4843415600]
[3001611,5268420236]
[3001620,64917906]
[3001621,64917906]
[3001630,28]
[3001631,28]
[3001640,7558000]
[3001641,8315657]
[3001650,16036500]
[3001651,17812332]
[3001660,23594500]
[3001661,26127989]
[3001710,465900]
[3001711,465900]
[3001720,177]
[3001721,177]
[3001730,133268100]
[3001731,137912611]
[3001740,10240100]
[3001741,10705154]
[3001750,143508200]
[3001751,148617765]
[3001760,9]
[3001761,9]
[3001770,784800]
[3001771,785554]
[3001780,2300]
[3001781,2323]
[3001790,787100]
[3001791,787877]
[3001800,5222908]
[3001801,5222908]
[3001990,10819]
[3001991,10819]
[3002000,5870104200]
[3002001,6367965351]
[3002010,20565358600]
[3002011,21823087113]
[3002020,26435462800]
[3002021,28191052464]
[3002030,132]
[3002031,132]
[3002040,214961201]
[3002041,249760077]
[3002050,217236702]
[3002051,235906367]
[3002060,432197903]
[3002061,485666445]
[3002070,459352736]
[3002071,459352736]
[3002080,10108]
[3002081,10108]
[3002090,5751849300]
[3002091,6238661905]
[3002100,20228247300]
[3002101,21453059782]
[3002110,25980096600]
[3002111,27691721687]
[3002120,130]
[3002121,130]
[3002130,214873401]
[3002131,249669937]
[3002140,216882002]
[3002141,235551667]
[3002150,431755403]
[3002151,485221605]
[3002160,457478588]
[3002161,457478588]
[3002170,711]
[3002171,711]
[3002180,118254900]
[3002181,129303446]
[3002190,337111300]
[3002191,370027331]
[3002200,455366200]
[3002201,499330777]
[3002210,2]
[3002211,2]
[3002220,87800]
[3002221,90140]
[3002230,354700]
[3002231,354700]
[3002240,442500]
[3002241,444840]
[3002250,1874150]
[3002251,1874150]
[3002260,49940]
[3002261,49940]
[3002270,6184222397]
[3002271,6889150756]
[3002280,6641749241]
[3002281,7202064046]
[3002290,12825971638]
[3002291,14091214802]
[3002300,69795]
[3002301,69795]
[3002310,5897200323]
[3002311,6485323807]
[3002320,7354844919]
[3002321,8060664103]
[3002330,13252045242]
[3002331,14545987910]
[3002340,3545266762]
[3002341,3545266762]
[3002350,914]
[3002351,914]
[3002360,2264765601]
[3002361,2529406722]
[3002370,3089850]
[3002371,3194548]
[3002380,2267855451]
[3002381,2532601270]
[3002390,263]
[3002391,263]
[3002400,511011695]
[3002401,583585059]
[3002410,1271400]
[3002411,1355622]
[3002420,512283095]
[3002421,584940681]
[3002430,214983085]
[3002431,214983085]
[3002440,3117]
[3002441,3117]
[3002450,1146486089]
[3002451,1294232860]
[3002460,280722042]
[3002461,320095042]
[3002470,1427208131]
[3002471,1614327902]
[3002480,931]
[3002481,931]
[3002490,626207341]
[3002491,683408099]
[3002500,148672523]
[3002501,157415477]
[3002510,774879864]
[3002511,840823576]
[3002520,12476016]
[3002521,12476016]
[3002530,52953]
[3002531,52953]
[3002540,27181748085]
[3002541,29283726642]
[3002550,52069814043]
[3002551,55977245265]
[3002560,79251562128]
[3002561,85260971907]
[3002570,610]
[3002571,610]
[3002580,234571135]
[3002581,258959400]
[3002590,434415822]
[3002591,473253097]
[3002600,668986957]
[3002601,732212497]
[3002610,399401416]
[3002611,399401416]
[3002620,17359]
[3002621,17359]
[3002630,14659475716]
[3002631,16042482908]
[3002640,27429278884]
[3002641,29808367596]
[3002650,42088754600]
[3002651,45850850504]
[3002660,247]
[3002661,247]
[3002670,139583356]
[3002671,155635371]
[3002680,247218036]
[3002681,269597368]
[3002690,386801392]
[3002691,425232738]
[3002700,122412967]
[3002701,122412967]
[3002710,1922]
[3002711,1922]
[3002720,1142695900]
[3002721,1213446715]
[3002730,2411196700]
[3002731,2550705476]
[3002740,3553892600]
[3002741,3764152191]
[3002750,9]
[3002751,9]
[3002760,7777300]
[3002761,7797197]
[3002770,13159400]
[3002771,13195589]
[3002780,20936700]
[3002781,20992786]
[3002790,30445707]
[3002791,30445707]
[3002890,43547]
[3002891,43547]
[3002900,26093940084]
[3002901,28059718719]
[3002910,48032069742]
[3002911,51430533575]
[3002920,74126009826]
[3002921,79490252294]
[3002930,597]
[3002931,597]
[3002940,228995835]
[3002941,252398702]
[3002950,420397622]
[3002951,456757985]
[3002960,649393457]
[3002961,709156687]
[3002970,393278316]
[3002971,393278316]
[3002980,9406]
[3002981,9406]
[3002990,1087808001]
[3002991,1224007923]
[3003000,4037744301]
[3003001,4546711690]
[3003010,5125552302]
[3003011,5770719613]
[3003020,13]
[3003021,13]
[3003030,5575300]
[3003031,6560698]
[3003040,14018200]
[3003041,16495112]
[3003050,19593500]
[3003051,23055810]
[3003060,6123097]
[3003061,6123097]
[3003070,35189]
[3003071,35189]
[3003080,14187515494]
[3003081,15614368554]
[3003090,40539061822]
[3003091,44837655676]
[3003100,54726577316]
[3003101,60452024229]
[3003110,15728]
[3003111,15728]
[3003120,18650024437]
[3003121,20669611928]
[3003130,56842980557]
[3003131,61362919594]
[3003140,75493004994]
[3003141,82032531521]
[3003150,787852984]
[3003151,787852984]
[3003160,4083]
[3003161,4083]
[3003170,6688582532]
[3003171,7616411017]
[3003180,23069606268]
[3003181,26206063143]
[3003190,29758188800]
[3003191,33822474160]
[3003200,609]
[3003201,609]
[3003210,852567860]
[3003211,951849025]
[3003220,2677894560]
[3003221,2953687722]
[3003230,3530462420]
[3003231,3905536747]
[3003240,25555121]
[3003241,25555121]
[3003250,30816]
[3003251,30816]
[3003260,12929175993]
[3003261,14191240907]
[3003270,35936598721]
[3003271,39602518266]
[3003280,48865774714]
[3003281,53793759172]
[3003290,15552]
[3003291,15552]
[3003300,18513603537]
[3003301,20513802927]
[3003310,56460298757]
[3003311,60931106693]
[3003320,74973902294]
[3003321,81444909619]
[3003330,783999255]
[3003331,783999255]
[3003340,4373]
[3003341,4373]
[3003350,1258339501]
[3003351,1423127647]
[3003360,4602463101]
[3003361,5235137410]
[3003370,5860802602]
[3003371,6658265057]
[3003380,176]
[3003381,176]
[3003390,136420900]
[3003391,155809001]
[3003400,382681800]
[3003401,431812901]
[3003410,519102700]
[3003411,587621902]
[3003420,3853732]
[3003421,3853732]
[3003430,5245]
[3003431,5245]
[3003440,2025788607]
[3003441,2170834112]
[3003450,4305091973]
[3003451,4654664921]
[3003460,6330880580]
[3003461,6825499033]
[3003470,12676]
[3003471,12676]
[3003480,15735054035]
[3003481,17530903215]
[3003490,9591411953]
[3003491,10319040866]
[3003500,25326465988]
[3003501,27849944081]
[3003510,4604479170]
[3003511,4604479170]
[3003520,390]
[3003521,390]
[3003530,343082138]
[3003531,365219979]
[3003540,307252246]
[3003541,324361682]
[3003550,650334384]
[3003551,689581661]
[3003560,26]
[3003561,26]
[3003570,137244464]
[3003571,152666986]
[3003580,341508256]
[3003581,357626890]
[3003590,478752720]
[3003591,510293876]
[3003600,222228010]
[3003601,222228010]
[3003610,873]
[3003611,873]
[3003620,74748704]
[3003621,76265136]
[3003630,55607701]
[3003631,57982819]
[3003640,130356405]
[3003641,134247955]
[3003650,6678]
[3003651,6678]
[3003660,9464432587]
[3003661,10718032674]
[3003670,1080001317]
[3003671,1221888291]
[3003680,10544433904]
[3003681,11939920965]
[3003690,1678252369]
[3003691,1678252369]
[3003700,135725]
[3003701,135725]
[3003710,41416685370]
[3003711,43222235594]
[3003720,14429374070]
[3003721,15033795739]
[3003730,55846059440]
[3003731,58256031333]
[3003740,1061]
[3003741,1061]
[3003750,473019320]
[3003751,490572326]
[3003760,121848407]
[3003761,124444002]
[3003770,594867727]
[3003771,615016328]
[3003780,61092180576]
[3003781,61092180576]
[3003790,111223]
[3003791,111223]
[3003800,38508204800]
[3003801,40202238838]
[3003810,12508126000]
[3003811,13072549071]
[3003820,51016330800]
[3003821,53274787909]
[3003830,516]
[3003831,516]
[3003840,103839200]
[3003841,106623213]
[3003850,70606501]
[3003851,71608605]
[3003860,174445701]
[3003861,178231818]
[3003870,40492276853]
[3003871,40492276853]
[3003880,21829]
[3003881,21829]
[3003890,2346920270]
[3003891,2438924934]
[3003900,436124000]
[3003901,456949178]
[3003910,2783044270]
[3003911,2895874112]
[3003920,414]
[3003921,414]
[3003930,308446000]
[3003931,314814816]
[3003940,24378100]
[3003941,25082681]
[3003950,332824100]
[3003951,339897497]
[3003960,19448346141]
[3003961,19448346141]
[3003970,1351]
[3003971,1351]
[3003980,439524200]
[3003981,455905148]
[3003990,1320309200]
[3003991,1333500438]
[3004000,1759833400]
[3004001,1789405586]
[3004010,65]
[3004011,65]
[3004020,51548920]
[3004021,59838831]
[3004030,10486576]
[3004031,11257034]
[3004040,62035496]
[3004041,71095865]
[3004050,928429952]
[3004051,928429952]
[3004060,377281]
[3004061,377281]
[3004070,25885069107]
[3004071,27444891041]
[3004080,596842049]
[3004081,630307868]
[3004090,26481911156]
[3004091,28075198910]
[3004100,78493]
[3004101,78493]
[3004110,15107761771]
[3004111,16269085670]
[3004120,59343078]
[3004121,64195471]
[3004130,15167104849]
[3004131,16333281141]
[3004140,479695332238]
[3004141,479695332238]
[3004150,323131]
[3004151,323131]
[3004160,22400095115]
[3004161,23783330575]
[3004170,9798700]
[3004171,10102369]
[3004180,22409893815]
[3004181,23793432944]
[3004190,71591]
[3004191,71591]
[3004200,10526723536]
[3004201,11522151230]
[3004210,1708000]
[3004211,1730892]
[3004220,10528431536]
[3004221,11523882122]
[3004230,394958945422]
[3004231,394958945422]
[3004240,44032]
[3004241,44032]
[3004250,2576732670]
[3004251,2667463492]
[3004260,65690800]
[3004261,67791392]
[3004270,2642423470]
[3004271,2735254884]
[3004280,3997]
[3004281,3997]
[3004290,3685568431]
[3004291,3795696709]
[3004300,736200]
[3004301,743325]
[3004310,3686304631]
[3004311,3796440034]
[3004320,70185739368]
[3004321,70185739368]
[3004330,3475701]
[3004331,3475701]
[3004340,428326735934]
[3004341,460102473483]
[3004350,780419966279]
[3004351,840899661185]
[3004360,1208746702213]
[3004361,1301002134668]
[3004370,183412]
[3004371,183412]
[3004380,58486938098]
[3004381,64354029872]
[3004390,78896997241]
[3004391,85266910723]
[3004400,137383935339]
[3004401,149620940599]
[3004410,583846694253]
[3004411,583846694253]
[3004420,72546]
[3004421,72546]
[3004430,2503833324]
[3004431,2641917768]
[3004440,1368867056]
[3004441,1471206559]
[3004450,3872700380]
[3004451,4113124328]
[3004460,1203]
[3004461,1203]
[3004470,322300043]
[3004471,351977287]
[3004480,73795503]
[3004481,81306545]
[3004490,396095546]
[3004491,433283831]
[3004500,13832565451]
[3004501,13832565451]
[3004510,22741]
[3004511,22741]
[3004520,9571088668]
[3004521,10049351399]
[3004530,16250196950]
[3004531,17034900022]
[3004540,25821285618]
[3004541,27084251421]
[3004550,298]
[3004551,298]
[3004560,74831368]
[3004561,82211931]
[3004570,148275286]
[3004571,163259188]
[3004580,223106654]
[3004581,245471120]
[3004590,145992116]
[3004591,145992116]
[3004600,10931]
[3004601,10931]
[3004610,1808487801]
[3004611,1978445620]
[3004620,5979141509]
[3004621,6583272171]
[3004630,7787629310]
[3004631,8561717791]
[3004640,56]
[3004641,56]
[3004650,12379111]
[3004651,13314901]
[3004660,25763100]
[3004661,27200952]
[3004670,38142211]
[3004671,40515853]
[3004680,100550631]
[3004681,100550631]

{"sheet":"ParametresConnexion","index":5,"n_rows":7,"n_cols":11,"rows_kept":7,"cut":false,"hidden":true,"merged":[]}
["Pallier","Serveur","Port","NomBD","NomDSN","URLDeBase","Colonne1","Colonne2","Colonne3","Colonne4","Colonne5"]
["inactif","inactif","inactif","inactif","inactif","inactif","inactif","inactif","inactif","inactif","inactif"]
[]
[]
[]
["anneeEnCours"]
["2022"]